{"text_format":"1","workbook":"xlsx","n_sheets":8,"sheets":["基本情報","基本情報2","端末SIM情報","クラウドプロキシ個別設定情報","list","変換","料金プランMVNO","改版履歴"],"not_rendered":{"charts":0,"images":1,"macros":1,"external_links":0,"defined_names":327,"comments":4,"pivot_tables":0},"unopened":[],"bounds":{"document_bytes":16777216,"sheet_cells":100000,"rows_first":2000,"rows_last":500,"rows_between":2000,"halvings":0,"cell_chars":16384,"cell_head_chars":4096},"cells_cut":0,"cells_raw":0,"read":"whole","date_system":"1900"}

{"sheet":"基本情報","index":0,"n_rows":94,"n_cols":62,"rows_kept":94,"cut":false,"hidden":false,"merged":[[92,13,92,32],[85,13,85,32],[65,13,65,32],[66,13,66,32],[67,13,67,32],[68,13,68,32],[69,13,69,32],[52,33,52,51],[61,33,61,51],[62,13,62,32],[63,13,63,32],[64,13,64,32],[66,33,66,51],[67,33,67,51],[68,33,68,51],[59,0,59,51],[81,0,87,5],[89,6,89,12],[89,0,93,5],[90,6,90,12],[91,6,91,12],[92,6,92,12],[93,6,93,12],[87,6,87,12],[93,33,93,51],[85,33,85,51],[86,33,86,51],[87,33,87,51],[89,33,89,51],[90,33,90,51],[78,33,78,51],[81,33,81,51],[82,33,82,51],[83,33,83,51],[84,33,84,51],[1,44,1,51],[1,31,1,39],[91,33,91,51],[92,33,92,51],[37,33,37,51],[38,33,38,51],[19,33,19,51],[20,33,20,51],[40,33,40,51],[62,33,62,51],[63,33,63,51],[54,33,54,51],[55,33,55,51],[91,13,91,32],[81,13,81,32],[82,13,82,32],[83,13,83,32],[84,13,84,32],[64,33,64,51],[65,33,65,51],[56,33,56,51],[57,33,57,51],[60,33,60,51],[51,33,51,51],[26,0,26,51],[43,6,43,12],[44,6,44,12],[40,0,44,5],[40,13,40,32],[41,13,41,32],[42,13,42,32],[43,13,43,32],[38,6,38,12],[39,0,39,51],[40,6,40,12],[41,6,41,12],[42,6,42,12],[33,13,33,32],[35,13,35,32],[36,13,36,32],[27,42,27,51],[93,13,93,32],[16,33,16,51],[17,33,17,51],[18,33,18,51],[21,33,21,51],[22,33,22,51],[25,33,25,51],[30,33,30,51],[31,33,31,51],[32,33,32,51],[33,33,33,51],[35,33,35,51],[36,33,36,51],[86,13,86,32],[87,13,87,32],[89,13,89,32],[90,13,90,32],[58,0,58,51],[60,6,60,12],[61,6,61,12],[56,13,56,32],[57,13,57,32],[60,13,60,32],[61,13,61,32],[48,0,48,12],[47,0,47,12],[45,0,45,51],[47,13,47,32],[47,33,47,51],[55,13,55,32],[56,6,56,12],[57,6,57,12],[56,0,57,5],[46,0,46,51],[52,13,52,32],[53,13,53,32],[54,13,54,32],[55,6,55,12],[49,0,55,5],[49,6,49,12],[50,6,50,12],[51,6,51,12],[52,6,52,12],[53,6,53,12],[54,6,54,12],[86,6,86,12],[82,6,82,12],[85,6,85,12],[84,6,84,12],[83,6,83,12],[71,13,71,51],[62,6,62,12],[63,6,63,12],[64,6,64,12],[76,0,76,12],[76,13,76,32],[76,33,76,51],[1,40,1,43],[1,27,1,30],[16,13,16,32],[17,13,17,32],[81,6,81,12],[67,8,67,12],[68,8,68,12],[69,8,69,12],[67,6,69,7],[70,0,70,51],[48,13,48,32],[2,0,2,51],[44,13,44,32],[41,33,41,51],[42,33,42,51],[43,33,43,51],[44,33,44,51],[48,33,48,51],[49,33,49,51],[50,33,50,51],[53,33,53,51],[49,13,49,32],[50,13,50,32],[51,13,51,32],[60,0,61,5],[69,33,69,51],[65,6,65,12],[66,6,66,12],[71,0,71,12],[74,0,74,12],[75,0,75,12],[78,0,78,12],[73,0,73,51],[74,13,74,32],[75,13,75,32],[77,13,77,32],[78,13,78,32],[74,33,74,51],[75,33,75,51],[77,33,77,51],[77,0,77,12],[62,0,69,5],[18,13,18,32],[21,13,21,32],[22,13,22,32],[25,13,25,32],[15,0,15,51],[37,13,37,32],[38,13,38,32],[28,0,28,12],[29,0,29,51],[30,0,33,5],[33,6,33,12],[32,6,32,12],[28,42,28,51],[27,38,28,41],[28,13,28,37],[27,13,27,37],[16,0,16,12],[35,0,38,5],[35,6,35,12],[36,6,36,12],[37,6,37,12],[31,6,31,12],[30,6,30,12],[34,0,34,51],[4,1,5,51],[12,1,12,51],[6,1,7,51],[8,1,9,51],[10,1,10,51],[80,0,80,51],[88,0,88,51],[3,0,3,51],[14,0,14,51],[30,13,30,32],[31,13,31,32],[32,13,32,32],[17,0,17,12],[18,0,18,12],[22,0,22,12],[21,0,21,12],[25,0,25,12],[27,0,27,12],[24,0,24,51],[19,13,19,32],[20,13,20,32],[19,6,19,12],[19,0,20,5],[20,6,20,12]]}
[null,null,null,null,null,null,null,null,null,null,null,null,null,null,null,null,null,null,null,null,null,null,null,null,null,null,null,null,null,null,null,null,null,null,null,null,null,null,null,null,null,null,null,null,null,null,null,null,null,null,null,{"$f":"CONCATENATE(BG1,BH1,BI1,BJ1)","v":"Ver.1.11A(2023/12/18)"},null,null,"サービス",4,"OCNモバイルOne",null,"Ver.","1.11","A","(2023/12/18)"]
[null,null,null,null,null,null,null,null,null,null,null,null,null,null,null,null,null,null,null,null,null,null,null,null,null,null,null,"オーダ管理番号",null,null,null,null,null,null,null,null,null,null,null,null,"オーダ登録番号",null,null,null,null,null,null,null,null,null,null,null,null,null,"異動種別","新設"]
["第６種オープンコンピュータ通信網サービス　契約申込書\nOCN モバイル ONE for Business"]
[{"$f":"IF(__\\osManabiPocketFlg=1,\"＜まなびポケット対応版＞\",IF(__\\osOpenInfoCsvWishUmuCd=1,\"＜ご利用案内CSV対応版＞\",IF(teleworkType=\"リースプラン\",\"＜テレワークスタートパックリースプラン専用＞\",\"\")))","v":""}]
[null,"NTTコミュニケーションズ株式会社の定める｢IP通信網サービス契約約款（https://www.ntt.com/about-us/disclosure/tariff/yakkan/ip.html）｣｢重要事項に関する説明｣｢各種利用規約｣の内容について承諾の上、下記のとおり申し込みます｡個人情報の取扱いについては、「プライバシーポリシー（https://www.ntt.com/about-us/hp/privacy.html）」の内容を承諾します。"]
[]
[null,"OCN モバイル ONE for Businessは常時高トラフィックが発生するようなご利用には適しません。デジタルサイネージ・Web会議のように、常時高トラフィックを必要とする利用方法で、他のお客様の通信に支障が出る利用をされる場合には、OCN モバイル ONE for Businessの利用をご遠慮いただく場合があります。"]
[]
[null,"お客さまは、本サービスで提供するアプリケーション及びアプリケーションに使用されている技術（以下アプリケーション等）を、直接的であれ間接的であれ、海外に輸出若しくは持ち出す場合又は日本国の非居住者に譲渡、貸与若しくは提供する場合は、外為法等及び米国輸出管理規則を遵守するものとし、適正な政府の許可を取得する等の適切な手続きを行うものとします。"]
[]
[null,"お客さまは、アプリケーション等を外為法等に定める核兵器を含む大量破壊兵器、通常兵器等の開発、製造、使用のために利用しないものとします。"]
[]
[null,"※必ずチェックを入れてください。チェックがない場合はお申込みいただけません。"]
[]
["お申込情報",null,null,null,null,null,null,null,null,null,null,null,null,null,null,null,null,null,null,null,null,null,null,null,null,null,null,null,null,null,null,null,null,null,null,null,null,null,null,null,null,null,null,null,null,null,null,null,null,null,null,null,null,null,"リスト","条件付き書式"]
["■ご注意\n※お申込み後の取り消しはできません。また端末発送後(ご利用開始希望日の概ね5営業日前)にお申込み内容の変更はできません。\n※ビジネスパックをご利用の場合、ご利用開始日の12営業日前以降での、お申込み内容の変更はできません。",null,null,null,null,null,null,null,null,null,null,null,null,null,null,null,null,null,null,null,null,null,null,null,null,null,null,null,null,null,null,null,null,null,null,null,null,null,null,null,null,null,null,null,null,null,null,null,null,null,null,null,null,null,"－","ー"]
["お申込種別（必須）",null,null,null,null,null,null,null,null,null,null,null,null,null,null,null,null,null,null,null,null,null,null,null,null,null,null,null,null,null,null,null,null,"選択してください",null,null,null,null,null,null,null,null,null,null,null,null,null,null,null,null,null,null,null,null,"－","－"]
["お申込年月日（必須）",null,null,null,null,null,null,null,null,null,null,null,null,null,null,null,null,null,null,null,null,null,null,null,null,null,null,null,null,null,null,null,null,"YYYY/MM/DD（半角）",null,null,null,null,null,null,null,null,null,null,null,null,null,null,null,null,null,null,null,null,"－","－"]
["開通希望年月日（必須）",null,null,null,null,null,null,null,null,null,null,null,null,null,null,null,null,null,null,null,null,null,null,null,null,null,null,null,null,null,null,null,null,"YYYY/MM/DD（半角）\n※ご利用開始希望日には、申込みいただく日付から5営業日目以降の土日祝日を除く日付を記入いただきます。\n※ 申込内容に不備等があった場合には、ご利用開始希望日の延期をお願いする場合がございますので、ご了承ください。\n※ビジネスパックのご利用がある場合、ご利用開始希望日には申込みいただく日付から18営業日目以降の土日祝日を除く日付を記入いただきます。\n※手続き上、お客様のご利用開始希望日に添えない場合があります。",null,null,null,null,null,null,null,null,null,null,null,null,null,null,null,null,null,null,null,null,"－","－"]
["お申込サービス",null,null,null,null,null,"認証方式\n（必須）",null,null,null,null,null,null,null,null,null,null,null,null,null,null,null,null,null,null,null,null,null,null,null,null,null,null,"選択してください\n※NW接続用の認証IDを全端末共通でご利用される場合は「共通ID」を、端末ごとに別々でご利用される場合には「個別ID」を選択してください。",null,null,null,null,null,null,null,null,null,null,null,null,null,null,null,null,null,null,null,null,"authenticMethod","－"]
[null,null,null,null,null,null,"サービスメニュー\n（必須）",null,null,null,null,null,null,null,null,null,null,null,null,null,null,null,null,null,null,null,null,null,null,null,null,null,null,"選択してください\n※月次容量コース（1GB～50GB）、データ量従量料金コース（30MBプラス）をお申込みの場合は、「総量規制サービス」を選択してください。\n※速度限定コース（200kbps）をお申込みの場合は、「速度上限サービス」を選択してください。",null,null,null,null,null,null,null,null,null,null,null,null,null,null,null,null,null,null,null,null,{"$f":"IF($N$20=\"個別ID\",\"serviceMenu_3\",IF(__\\osManabiPocketFlg=2,\"serviceMenu_2\",\"serviceMenu_1\"))","v":"serviceMenu_2"},"－"]
["モバイル代表契約番号\n（端末追加）（必須）",null,null,null,null,null,null,null,null,null,null,null,null,null,null,null,null,null,null,null,null,null,null,null,null,null,null,null,null,null,null,null,null,"半角大文字N＋半角数字9桁で記入してください。",null,null,null,null,null,null,null,null,null,null,null,null,null,null,null,null,null,null,null,null,"－",{"$f":"$N$17<>\"新設\"","v":true}]
["お客さま番号（記入不要）",null,null,null,null,null,null,null,null,null,null,null,null,null,null,null,null,null,null,null,null,null,null,null,null,null,null,null,null,null,null,null,null,null,null,null,null,null,null,null,null,null,null,null,null,null,null,null,null,null,null,null,null,null,"－","－"]
[null,null,null,null,null,null,null,null,null,null,null,null,null,null,null,null,null,null,null,null,null,null,null,null,null,null,null,null,null,null,null,null,null,null,null,null,null,null,null,null,null,null,null,null,null,null,null,null,null,null,null,null,null,null,"－","－"]
["共通顧客ID",null,null,null,null,null,null,null,null,null,null,null,null,null,null,null,null,null,null,null,null,null,null,null,null,null,null,null,null,null,null,null,null,null,null,null,null,null,null,null,null,null,null,null,null,null,null,null,null,null,null,null,null,null,"－","－"]
["共通顧客ID（必須）",null,null,null,null,null,null,null,null,null,null,null,null,null,null,null,null,null,null,null,null,null,null,null,null,null,null,null,null,null,null,null,null,"半角大文字C＋半角数字10桁で記入してください。",null,null,null,null,null,null,null,null,null,null,null,null,null,null,null,null,null,null,null,null,"－","－"]
["ご契約者名",null,null,null,null,null,null,null,null,null,null,null,null,null,null,null,null,null,null,null,null,null,null,null,null,null,null,null,null,null,null,null,null,null,null,null,null,null,null,null,null,null,null,null,null,null,null,null,null,null,null,null,null,null,"－","－"]
["フリガナ（必須）",null,null,null,null,null,null,null,null,null,null,null,null,null,null,null,null,null,null,null,null,null,null,null,null,null,null,null,null,null,null,null,null,null,null,null,null,null,null,null,null,null,"全角35桁以内",null,null,null,null,null,null,null,null,null,null,null,"－","－"]
["ご契約者名（必須）",null,null,null,null,null,null,null,null,null,null,null,null,null,null,null,null,null,null,null,null,null,null,null,null,null,null,null,null,null,null,null,null,null,null,null,null,null,null,null,null,null,"全角40桁以内\n※正式名称を40文字以内でご記入いただきますが、弊社の都合により、名称を省略させていただくことがありますので、ご了承ください。",null,null,null,null,null,null,null,null,null,null,null,"－","－"]
["ご契約者住所",null,null,null,null,null,null,null,null,null,null,null,null,null,null,null,null,null,null,null,null,null,null,null,null,null,null,null,null,null,null,null,null,null,null,null,null,null,null,null,null,null,null,null,null,null,null,null,null,null,null,null,null,null,"－","－"]
["ご契約者住所",null,null,null,null,null,"郵便番号（必須）",null,null,null,null,null,null,null,null,null,null,null,null,null,null,null,null,null,null,null,null,null,null,null,null,null,null,"半角数字7桁固定",null,null,null,null,null,null,null,null,null,null,null,null,null,null,null,null,null,null,null,null,"－","－"]
[null,null,null,null,null,null,"ご住所（必須）",null,null,null,null,null,null,null,null,null,null,null,null,null,null,null,null,null,null,null,null,null,null,null,null,null,null,"全角46桁以内\n※住所を都道府県からご記入ください。",null,null,null,null,null,null,null,null,null,null,null,null,null,null,null,null,null,null,null,null,"－","－"]
[null,null,null,null,null,null,"番地等（必須）",null,null,null,null,null,null,null,null,null,null,null,null,null,null,null,null,null,null,null,null,null,null,null,null,null,null,"全角20桁以内",null,null,null,null,null,null,null,null,null,null,null,null,null,null,null,null,null,null,null,null,"－","－"]
[null,null,null,null,null,null,"ビル名等",null,null,null,null,null,null,null,null,null,null,null,null,null,null,null,null,null,null,null,null,null,null,null,null,null,null,"全角20桁以内",null,null,null,null,null,null,null,null,null,null,null,null,null,null,null,null,null,null,null,null,"－","－"]
["事務担当者＜お申込みに関するご連絡先＞",null,null,null,null,null,null,null,null,null,null,null,null,null,null,null,null,null,null,null,null,null,null,null,null,null,null,null,null,null,null,null,null,null,null,null,null,null,null,null,null,null,null,null,null,null,null,null,null,null,null,null,null,null,"－","－"]
["事務担当者",null,null,null,null,null,"部課名",null,null,null,null,null,null,null,null,null,null,null,null,null,null,null,null,null,null,null,null,null,null,null,null,null,null,"全角20桁以内",null,null,null,null,null,null,null,null,null,null,null,null,null,null,null,null,null,null,null,null,"－","－"]
[null,null,null,null,null,null,"担当者名（必須）",null,null,null,null,null,null,null,null,null,null,null,null,null,null,null,null,null,null,null,null,null,null,null,null,null,null,"全角10桁以内",null,null,null,null,null,null,null,null,null,null,null,null,null,null,null,null,null,null,null,null,"－","－"]
[null,null,null,null,null,null,"電話番号（必須）",null,null,null,null,null,null,null,null,null,null,null,null,null,null,null,null,null,null,null,null,null,null,null,null,null,null,"ハイフンを含む半角10桁～13桁\n（数字、ハイフンのみ）",null,null,null,null,null,null,null,null,null,null,null,null,null,null,null,null,null,null,null,null,"－","－"]
[null,null,null,null,null,null,"e-mail（必須）",null,null,null,null,null,null,null,null,null,null,null,null,null,null,null,null,null,null,null,null,null,null,null,null,null,null,"半角英数64桁以内\n※ご契約に関する連絡用として、既存のメールアドレスをご記入ください。\n※ご担当者が複数の場合は、カンマで区切りで記入ください。\n※メールアドレスをお持でない方は「a@a」をご記入ください。",null,null,null,null,null,null,null,null,null,null,null,null,null,null,null,null,null,null,null,null,"－","－"]
["技術担当者情報",null,null,null,null,null,null,null,null,null,null,null,null,null,null,null,null,null,null,null,null,null,null,null,null,null,null,null,null,null,null,null,null,null,null,null,null,null,null,null,null,null,null,null,null,null,null,null,null,null,null,null,null,null,"－","－"]
["技術担当者",null,null,null,null,null,"コピーリスト（必須）",null,null,null,null,null,null,null,null,null,null,null,null,null,null,null,null,null,null,null,null,null,null,null,null,null,null,"選択してください",null,null,null,null,null,null,null,null,null,null,null,null,null,null,null,null,null,null,null,null,"nwTechnologyCopylist","－"]
[null,null,null,null,null,null,"担当者名（必須）",null,null,null,null,null,null,null,null,null,null,null,null,null,null,null,null,null,null,null,null,null,null,null,null,null,null,"全角10桁以内",null,null,null,null,null,null,null,null,null,null,null,null,null,null,null,null,null,null,null,null,"－",{"$f":"$N$41<>\"お申込みに関する連絡先と同じ\"","v":true}]
[null,null,null,null,null,null,"電話番号（必須）",null,null,null,null,null,null,null,null,null,null,null,null,null,null,null,null,null,null,null,null,null,null,null,null,null,null,"ハイフンを含む半角10桁～13桁\n（数字、ハイフンのみ）",null,null,null,null,null,null,null,null,null,null,null,null,null,null,null,null,null,null,null,null,"－",{"$f":"$BD$42","v":true}]
[null,null,null,null,null,null,"FAX番号",null,null,null,null,null,null,null,null,null,null,null,null,null,null,null,null,null,null,null,null,null,null,null,null,null,null,"ハイフンを含む半角10桁～13桁\n（数字、ハイフンのみ）",null,null,null,null,null,null,null,null,null,null,null,null,null,null,null,null,null,null,null,null,"－",{"$f":"$BD$42","v":true}]
[null,null,null,null,null,null,"e-mail（必須）",null,null,null,null,null,null,null,null,null,null,null,null,null,null,null,null,null,null,null,null,null,null,null,null,null,null,"半角英数64桁以内\n※ご担当者が複数の場合は、カンマで区切りで記入ください。\n※メールアドレスをお持ちでない方は「a@a」をご記入ください。",null,null,null,null,null,null,null,null,null,null,null,null,null,null,null,null,null,null,null,null,"－",true]
["お支払に関する情報",null,null,null,null,null,null,null,null,null,null,null,null,null,null,null,null,null,null,null,null,null,null,null,null,null,null,null,null,null,null,null,null,null,null,null,null,null,null,null,null,null,null,null,null,null,null,null,null,null,null,null,null,null,"－","－"]
["■ご注意\n【口座振替でのお支払】をご希望のお客さま\n　※「請求書によるお支払」をご選択ください。\n　※口座振替によるお支払をご希望のお客さまは、www.ntt.com/b-charge　より「口座振替依頼書」PDFをダウンロードください。\n　※初回のご請求は「請求書によるお支払」になる場合があります。\n\n【既契約のお支払情報と同一にする】をご希望のお客さま\n　※引継ぎ元の請求がファイナンス社の場合は対象外となります。\n　※OCN利用料をフレッツ光利用料と合わせて、お支払いただいているお客さまはご利用いただけません。\n　※現在、ご利用中のサービスのお支払情報と同一にします。（但し、ご契約者名義が同一の場合のみ）\n　※複数の請求を一枚にまとめている場合もお支払情報を同一にします。\n　※お支払情報に関するお知らせの送付先は既契約と同一になります。",null,null,null,null,null,null,null,null,null,null,null,null,null,null,null,null,null,null,null,null,null,null,null,null,null,null,null,null,null,null,null,null,null,null,null,null,null,null,null,null,null,null,null,null,null,null,null,null,null,null,null,null,null,"－","－"]
["支払方法（必須）",null,null,null,null,null,null,null,null,null,null,null,null,null,null,null,null,null,null,null,null,null,null,null,null,null,null,null,null,null,null,null,null,"選択してください",null,null,null,null,null,null,null,null,null,null,null,null,null,null,null,null,null,null,null,null,"paymentOption",{"$f":"$N$17<>\"端末追加\"","v":true}]
["既契約のお客さま番号\n（既契約のお支払情報と同一にする）（必須）",null,null,null,null,null,null,null,null,null,null,null,null,null,null,null,null,null,null,null,null,null,null,null,null,null,null,null,null,null,null,null,null,"ＨまたはＮからはじまる10桁のお客さま番号をご記入ください。",null,null,null,null,null,null,null,null,null,null,null,null,null,null,null,null,null,null,null,null,"－",{"$f":"AND($N$48<>\"請求書によるお支払\",$N$17<>\"端末追加\")","v":true}]
["毎月の利用料の\n請求先",null,null,null,null,null,"コピーリスト（必須）",null,null,null,null,null,null,null,null,null,null,null,null,null,null,null,null,null,null,null,null,null,null,null,null,null,null,"選択してください",null,null,null,null,null,null,null,null,null,null,null,null,null,null,null,null,null,null,null,null,"billMailingCopylist",{"$f":"AND($N$48<>\"既契約のお支払情報と同一にする\",$N$17<>\"端末追加\")","v":true}]
[null,null,null,null,null,null,"郵便番号（必須）",null,null,null,null,null,null,null,null,null,null,null,null,null,null,null,null,null,null,null,null,null,null,null,null,null,null,"半角数字7桁固定",null,null,null,null,null,null,null,null,null,null,null,null,null,null,null,null,null,null,null,null,"－",{"$f":"AND($N$17<>\"端末追加\",$N$48<>\"既契約のお支払情報と同一にする\",OR($N$50=\"次のとおり\",$N$50=\"\"))","v":true}]
[null,null,null,null,null,null,"ご住所（必須）",null,null,null,null,null,null,null,null,null,null,null,null,null,null,null,null,null,null,null,null,null,null,null,null,null,null,"全角46桁以内\n※住所を都道府県からご記入ください。",null,null,null,null,null,null,null,null,null,null,null,null,null,null,null,null,null,null,null,null,"－",{"$f":"$BD$51","v":true}]
[null,null,null,null,null,null,"番地等（必須）",null,null,null,null,null,null,null,null,null,null,null,null,null,null,null,null,null,null,null,null,null,null,null,null,null,null,"全角20桁以内",null,null,null,null,null,null,null,null,null,null,null,null,null,null,null,null,null,null,null,null,"－",{"$f":"$BD$51","v":true}]
[null,null,null,null,null,null,"ビル名等",null,null,null,null,null,null,null,null,null,null,null,null,null,null,null,null,null,null,null,null,null,null,null,null,null,null,"全角20桁以内",null,null,null,null,null,null,null,null,null,null,null,null,null,null,null,null,null,null,null,null,"－",true]
[null,null,null,null,null,null,"宛先　お名前フリガナ\n（必須）",null,null,null,null,null,null,null,null,null,null,null,null,null,null,null,null,null,null,null,null,null,null,null,null,null,null,"全角30桁以内",null,null,null,null,null,null,null,null,null,null,null,null,null,null,null,null,null,null,null,null,"－",{"$f":"AND($N$48<>\"既契約のお支払情報と同一にする\",$N$17<>\"端末追加\")","v":true}]
[null,null,null,null,null,null,"宛先　お名前\n（必須）",null,null,null,null,null,null,null,null,null,null,null,null,null,null,null,null,null,null,null,null,null,null,null,null,null,null,"全角20桁以内\n※宛先に記入いただいた内容は、そのまま請求書に印刷されます。会社名・部署名・氏名等をご記入ください。　",null,null,null,null,null,null,null,null,null,null,null,null,null,null,null,null,null,null,null,null,"－",{"$f":"$BD$55","v":true}]
["請求に関する連絡先",null,null,null,null,null,"お名前",null,null,null,null,null,null,null,null,null,null,null,null,null,null,null,null,null,null,null,null,null,null,null,null,null,null,"全角10桁以内\n※請求書の宛先には表示されません。",null,null,null,null,null,null,null,null,null,null,null,null,null,null,null,null,null,null,null,null,"－",{"$f":"$BD$55","v":true}]
[null,null,null,null,null,null,"電話番号",null,null,null,null,null,null,null,null,null,null,null,null,null,null,null,null,null,null,null,null,null,null,null,null,null,null,"ハイフンを含む半角10桁～13桁\n（数字、ハイフンのみ）",null,null,null,null,null,null,null,null,null,null,null,null,null,null,null,null,null,null,null,null,"－",true]
["ご利用案内に関する情報　　　　※接続に必要となる情報をOCNより送付します。",null,null,null,null,null,null,null,null,null,null,null,null,null,null,null,null,null,null,null,null,null,null,null,null,null,null,null,null,null,null,null,null,null,null,null,null,null,null,null,null,null,null,null,null,null,null,null,null,null,null,null,null,null,"－","－"]
["■ご注意\n※「ご利用内容のご案内」メールは、「customer@mail.kaian.ntt.com」から届きますので、メール受信設定いただきますようお願いいたします。\n※「ご利用内容のご案内」は、メールにて送信されるURLから専用サイトへアクセスし、確認パスワードを入力することで、閲覧/保存出来ます。\n※メールに記載されるワンタイムURL有効期限以降は閲覧ができなくなりますのでお早目に確認をお願いします。\n※メールにてお届けできない場合の送付先に関しても必ずご記入下さい。\n※送信したメールが届かなかった場合は、郵送にてお送りいたしますが、開通日に間に合わない場合がありますので、ご注意願います。",null,null,null,null,null,null,null,null,null,null,null,null,null,null,null,null,null,null,null,null,null,null,null,null,null,null,null,null,null,null,null,null,null,null,null,null,null,null,null,null,null,null,null,null,null,null,null,null,null,null,null,null,null,"－","－"]
["ご利用案内の送信先",null,null,null,null,null,"送信先メールアドレス\n（必須）",null,null,null,null,null,null,null,null,null,null,null,null,null,null,null,null,null,null,null,null,null,null,null,null,null,null,"半角英数64桁以内\n※メールアドレスをお持ちでない場合は、記入不要です。(郵送にて送付いたします)\n※複数のメールアドレスを指定することはできません。複数アドレスを指定する場合は、メーリングリストにてお申込ください。\n※携帯電話のメールアドレスは指定できません。",null,null,null,null,null,null,null,null,null,null,null,null,null,null,null,null,null,null,null,null,"－","－"]
[null,null,null,null,null,null,"ご利用案内\n確認パスワード\n（必須）",null,null,null,null,null,null,null,null,null,null,null,null,null,null,null,null,null,null,null,null,null,null,null,null,null,null,"半角英数8桁～10桁以内\n（英大文字、英小文字、数字からそれぞれ1文字以上使用してください）\n※「ご利用内容のご案内」専用サイトにログインする際に本パスワードが必要となりますので、ご案内のメールが届くまで必ず保管願います。\n※メールアドレスをお持ちでない場合は、記入不要です。(郵送にて送付いたします)",null,null,null,null,null,null,null,null,null,null,null,null,null,null,null,null,null,null,null,null,"－","－"]
["ご利用案内の送付先\n\n\n\n※メールにてお届けできない場合、郵送させていただきます。",null,null,null,null,null,"コピーリスト（必須）",null,null,null,null,null,null,null,null,null,null,null,null,null,null,null,null,null,null,null,null,null,null,null,null,null,null,"選択してください",null,null,null,null,null,null,null,null,null,null,null,null,null,null,null,null,null,null,null,null,{"$f":"IF($N$50=\"次のとおり\",\"kaianMailingAddressCopylist_1\",\"kaianMailingAddressCopylist_2\")","v":"kaianMailingAddressCopylist_2"},"－"]
[null,null,null,null,null,null,"郵便番号（必須）",null,null,null,null,null,null,null,null,null,null,null,null,null,null,null,null,null,null,null,null,null,null,null,null,null,null,"半角数字7桁固定",null,null,null,null,null,null,null,null,null,null,null,null,null,null,null,null,null,null,null,null,"－",{"$f":"AND(OR($N$63=\"次のとおり\",$N$63=\"\"))","v":true}]
[null,null,null,null,null,null,"ご住所（必須）",null,null,null,null,null,null,null,null,null,null,null,null,null,null,null,null,null,null,null,null,null,null,null,null,null,null,"全角46桁以内\n※住所を都道府県からご記入ください。",null,null,null,null,null,null,null,null,null,null,null,null,null,null,null,null,null,null,null,null,"－",{"$f":"$BD$64","v":true}]
[null,null,null,null,null,null,"番地等（必須）",null,null,null,null,null,null,null,null,null,null,null,null,null,null,null,null,null,null,null,null,null,null,null,null,null,null,"全角20桁以内",null,null,null,null,null,null,null,null,null,null,null,null,null,null,null,null,null,null,null,null,"－",{"$f":"$BD$64","v":true}]
[null,null,null,null,null,null,"ビル名等",null,null,null,null,null,null,null,null,null,null,null,null,null,null,null,null,null,null,null,null,null,null,null,null,null,null,"全角20桁以内",null,null,null,null,null,null,null,null,null,null,null,null,null,null,null,null,null,null,null,null,"－",true]
[null,null,null,null,null,null,"宛先",null,"会社名/お名前\n（必須）",null,null,null,null,null,null,null,null,null,null,null,null,null,null,null,null,null,null,null,null,null,null,null,null,"全角20桁以内",null,null,null,null,null,null,null,null,null,null,null,null,null,null,null,null,null,null,null,null,"－","－"]
[null,null,null,null,null,null,null,null,"部課名",null,null,null,null,null,null,null,null,null,null,null,null,null,null,null,null,null,null,null,null,null,null,null,null,"全角20桁以内",null,null,null,null,null,null,null,null,null,null,null,null,null,null,null,null,null,null,null,null,"－","－"]
[null,null,null,null,null,null,null,null,"担当者名",null,null,null,null,null,null,null,null,null,null,null,null,null,null,null,null,null,null,null,null,null,null,null,null,"全角10桁以内",null,null,null,null,null,null,null,null,null,null,null,null,null,null,null,null,null,null,null,null,"－","－"]
["お客様ご要望記事欄",null,null,null,null,null,null,null,null,null,null,null,null,null,null,null,null,null,null,null,null,null,null,null,null,null,null,null,null,null,null,null,null,null,null,null,null,null,null,null,null,null,null,null,null,null,null,null,null,null,null,null,null,null,"－","－"]
["お客様ご要望記事欄",null,null,null,null,null,null,null,null,null,null,null,null,null,null,null,null,null,null,null,null,null,null,null,null,null,null,null,null,null,null,null,null,null,null,null,null,null,null,null,null,null,null,null,null,null,null,null,null,null,null,null,null,null,"－","－"]
[null,null,null,null,null,null,null,null,null,null,null,null,null,null,null,null,null,null,null,null,null,null,null,null,null,null,null,null,null,null,null,null,null,null,null,null,null,null,null,null,null,null,null,null,null,null,null,null,null,null,null,null,null,null,"－","－"]
["弊社記入欄",null,null,null,null,null,null,null,null,null,null,null,null,null,null,null,null,null,null,null,null,null,null,null,null,null,null,null,null,null,null,null,null,null,null,null,null,null,null,null,null,null,null,null,null,null,null,null,null,null,null,null,null,null,"－","－"]
["料金に関する留意事項（必須）",null,null,null,null,null,null,null,null,null,null,null,null,null,null,null,null,null,null,null,null,null,null,null,null,null,null,null,null,null,null,null,null,"選択してください",null,null,null,null,null,null,null,null,null,null,null,null,null,null,null,null,null,null,null,null,"individuallyChargeType","－"]
["ＮＰＣＲＭ承認ＩＤ枝番",null,null,null,null,null,null,null,null,null,null,null,null,null,null,null,null,null,null,null,null,null,null,null,null,null,null,null,null,null,null,null,null,"半角15桁以内",null,null,null,null,null,null,null,null,null,null,null,null,null,null,null,null,null,null,null,null,"－","－"]
["CPQ番号",null,null,null,null,null,null,null,null,null,null,null,null,null,null,null,null,null,null,null,null,null,null,null,null,null,null,null,null,null,null,null,null,"CPQ＋半角数字10桁",null,null,null,null,null,null,null,null,null,null,null,null,null,null,null,null,null,null,null,null,"－","－"]
["サブプロジェクトＩＤ",null,null,null,null,null,null,null,null,null,null,null,null,null,null,null,null,null,null,null,null,null,null,null,null,null,null,null,null,null,null,null,null,"半角15桁以内",null,null,null,null,null,null,null,null,null,null,null,null,null,null,null,null,null,null,null,null,"－","－"]
["回線種別（必須）",null,null,null,null,null,null,null,null,null,null,null,null,null,null,null,null,null,null,null,null,null,null,null,null,null,null,null,null,null,null,null,null,"選択してください",null,null,null,null,null,null,null,null,null,null,null,null,null,null,null,null,null,null,null,null,"customerDivision","－"]
[null,null,null,null,null,null,null,null,null,null,null,null,null,null,null,null,null,null,null,null,null,null,null,null,null,null,null,null,null,null,null,null,null,null,null,null,null,null,null,null,null,null,null,null,null,null,null,null,null,null,null,null,null,null,"－","－"]
["お客様対応部門",null,null,null,null,null,null,null,null,null,null,null,null,null,null,null,null,null,null,null,null,null,null,null,null,null,null,null,null,null,null,null,null,null,null,null,null,null,null,null,null,null,null,null,null,null,null,null,null,null,null,null,null,null,"－","－"]
["お客様対応部門",null,null,null,null,null,"販売チャネルコード\n（必須）",null,null,null,null,null,null,null,null,null,null,null,null,null,null,null,null,null,null,null,null,null,null,null,null,null,null,"半角英数字８桁",null,null,null,null,null,null,null,null,null,null,null,null,null,null,null,null,null,null,null,null,"－","－"]
[null,null,null,null,null,null,"販売チャネル名\n（必須）",null,null,null,null,null,null,null,null,null,null,null,null,null,null,null,null,null,null,null,null,null,null,null,null,null,null,"全角16桁以内",null,null,null,null,null,null,null,null,null,null,null,null,null,null,null,null,null,null,null,null,"－","－"]
[null,null,null,null,null,null,"担当者（必須）",null,null,null,null,null,null,null,null,null,null,null,null,null,null,null,null,null,null,null,null,null,null,null,null,null,null,"全角10桁以内",null,null,null,null,null,null,null,null,null,null,null,null,null,null,null,null,null,null,null,null,"－","－"]
[null,null,null,null,null,null,"社員コード ",null,null,null,null,null,null,null,null,null,null,null,null,null,null,null,null,null,null,null,null,null,null,null,null,null,null,"半角英数字8桁以内",null,null,null,null,null,null,null,null,null,null,null,null,null,null,null,null,null,null,null,null,"－","－"]
[null,null,null,null,null,null,"電話番号（必須）",null,null,null,null,null,null,null,null,null,null,null,null,null,null,null,null,null,null,null,null,null,null,null,null,null,null,"ハイフンを含む半角10桁～13桁\n（数字、ハイフンのみ）",null,null,null,null,null,null,null,null,null,null,null,null,null,null,null,null,null,null,null,null,"－","－"]
[null,null,null,null,null,null,"ＦＡＸ番号 ",null,null,null,null,null,null,null,null,null,null,null,null,null,null,null,null,null,null,null,null,null,null,null,null,null,null,"ハイフンを含む半角10桁～13桁\n（数字、ハイフンのみ）",null,null,null,null,null,null,null,null,null,null,null,null,null,null,null,null,null,null,null,null,"－","－"]
[null,null,null,null,null,null,"ｅ-mail（必須）",null,null,null,null,null,null,null,null,null,null,null,null,null,null,null,null,null,null,null,null,null,null,null,null,null,null,"半角英数64桁以内",null,null,null,null,null,null,null,null,null,null,null,null,null,null,null,null,null,null,null,null,"－","－"]
["お申込受付部門",null,null,null,null,null,null,null,null,null,null,null,null,null,null,null,null,null,null,null,null,null,null,null,null,null,null,null,null,null,null,null,null,null,null,null,null,null,null,null,null,null,null,null,null,null,null,null,null,null,null,null,null,null,"－","－"]
["お申込受付部門",null,null,null,null,null,"担当者（必須）",null,null,null,null,null,null,null,null,null,null,null,null,null,null,null,null,null,null,null,null,null,null,null,null,null,null,"全角10桁以内",null,null,null,null,null,null,null,null,null,null,null,null,null,null,null,null,null,null,null,null,"－","－"]
[null,null,null,null,null,null,"組織名（必須）",null,null,null,null,null,null,null,null,null,null,null,null,null,null,null,null,null,null,null,null,null,null,null,null,null,null,"全角16桁以内",null,null,null,null,null,null,null,null,null,null,null,null,null,null,null,null,null,null,null,null,"－","－"]
[null,null,null,null,null,null,"電話番号（必須）",null,null,null,null,null,null,null,null,null,null,null,null,null,null,null,null,null,null,null,null,null,null,null,null,null,null,"ハイフンを含む半角10桁～13桁\n（数字、ハイフンのみ）",null,null,null,null,null,null,null,null,null,null,null,null,null,null,null,null,null,null,null,null,"－","－"]
[null,null,null,null,null,null,"ＦＡＸ番号 ",null,null,null,null,null,null,null,null,null,null,null,null,null,null,null,null,null,null,null,null,null,null,null,null,null,null,"ハイフンを含む半角10桁～13桁\n（数字、ハイフンのみ）",null,null,null,null,null,null,null,null,null,null,null,null,null,null,null,null,null,null,null,null,"－","－"]
[null,null,null,null,null,null,"ｅ-mail（必須）",null,null,null,null,null,null,null,null,null,null,null,null,null,null,null,null,null,null,null,null,null,null,null,null,null,null,"半角英数64桁以内",null,null,null,null,null,null,null,null,null,null,null,null,null,null,null,null,null,null,null,null,"－","－"]

{"sheet":"基本情報2","index":1,"n_rows":36,"n_cols":59,"rows_kept":36,"cut":false,"hidden":false,"merged":[[1,0,2,51],[33,13,33,32],[34,13,34,32],[23,13,23,32],[23,33,23,51],[24,13,24,32],[24,33,24,51],[25,13,25,32],[25,33,25,51],[20,13,20,32],[20,33,20,51],[21,13,21,32],[21,33,21,51],[22,13,22,32],[27,0,31,5],[29,6,29,12],[32,0,35,5],[32,6,32,12],[33,6,33,12],[34,6,34,12],[35,6,35,12],[30,6,30,12],[31,6,31,12],[15,14,15,28],[16,14,16,28],[27,33,27,51],[28,13,28,32],[28,33,28,51],[29,13,29,32],[29,33,29,51],[27,13,27,32],[27,6,27,12],[28,6,28,12],[18,33,18,51],[19,33,19,51],[22,33,22,51],[17,13,17,32],[17,33,17,51],[26,0,26,51],[22,8,22,12],[23,8,23,12],[14,0,16,12],[17,0,25,5],[17,6,17,12],[18,13,18,32],[25,8,25,12],[21,6,21,12],[19,13,19,32],[19,6,19,12],[20,6,20,12],[18,6,18,12],[24,8,24,12],[22,6,25,7],[35,33,35,51],[30,13,30,32],[30,33,30,51],[31,13,31,32],[31,33,31,51],[32,13,32,32],[32,33,32,51],[33,33,34,51],[35,13,35,32],[8,0,8,12],[12,30,12,32],[9,0,9,12],[12,14,12,28],[11,13,11,32],[11,0,11,12],[12,0,13,12],[10,0,10,12],[4,0,4,51],[7,13,7,22],[7,27,7,32],[6,13,6,32],[5,33,5,51],[6,33,6,51],[7,33,7,51],[7,23,7,26],[5,0,5,12],[5,13,5,32],[6,0,6,12],[7,0,7,12],[11,33,11,51],[8,13,8,22],[8,23,8,26],[8,27,8,32],[12,33,16,51],[16,30,16,32],[9,33,9,51],[9,13,9,32],[8,33,8,51],[14,30,14,32],[13,30,13,32],[13,14,13,28],[14,14,14,28],[15,30,15,32],[10,13,10,32],[10,33,10,51]]}
[null,null,null,null,null,null,null,null,null,null,null,null,null,null,null,null,null,null,null,null,null,null,null,null,null,null,null,null,null,null,null,null,null,null,null,null,null,null,null,null,null,null,null,null,null,null,null,null,null,null,null,{"$f":"基本情報!$AZ$1","v":"Ver.1.11A(2023/12/18)"}]
[{"$f":"基本情報!$A$3","v":"第６種オープンコンピュータ通信網サービス　契約申込書\nOCN モバイル ONE for Business"}]
[]
[]
["付加サービス情報",null,null,null,null,null,null,null,null,null,null,null,null,null,null,null,null,null,null,null,null,null,null,null,null,null,null,null,null,null,null,null,null,null,null,null,null,null,null,null,null,null,null,null,null,null,null,null,null,null,null,null,null,null,null,"リスト","条件付き書式","リスト2","条件付き書式2"]
["ビジネスパック利用有無（必須）",null,null,null,null,null,null,null,null,null,null,null,null,null,null,null,null,null,null,null,null,null,null,null,null,null,null,null,null,null,null,null,null,"選択してください",null,null,null,null,null,null,null,null,null,null,null,null,null,null,null,null,null,null,null,null,null,{"$f":"IF(OR(COUNTIF(基本情報!$N$21,\"*テレワーク・スタートパック*\")>0,基本情報!$N$21=\"まなびポケット\"),\"option_2\",IF(基本情報!$N$20=\"共通ID\",\"option_2\",\"option\"))","v":"option"},"－","ー","－"]
["固定IP利用有無（必須）",null,null,null,null,null,null,null,null,null,null,null,null,null,null,null,null,null,null,null,null,null,null,null,null,null,null,null,null,null,null,null,null,"※固定IPアドレスをご利用される場合には「利用する」を、動的IPアドレスをご利用される場合は「利用しない」を選択してください。",null,null,null,null,null,null,null,null,null,null,null,null,null,null,null,null,null,null,null,null,null,{"$f":"IF(N6=\"利用する\",\"option_2\",\"option\")","v":"option"},{"$f":"AND(基本情報!$N$20<>\"共通ID\",COUNTIF(基本情報!$N$21,\"*テレワーク・スタートパック*\")=0,基本情報!$N$21<>\"まなびポケット\")","v":true},"ー","－"]
["ウイルスバスタービジネスセキュリティ\n利用有無（必須）",null,null,null,null,null,null,null,null,null,null,null,null,null,null,null,null,null,null,null,null,null,null,null,null,null,null,"ライセンス",null,null,null,null,null,"選択してください。\n※「利用する」を選択した場合は、ご利用ライセンス数をご記入下さい。\n※5ライセンス以上、最大99999ライセンスまでお申込みいただけます。\n※ウイルスバスタービジネスセキュリティに関する登録完了通知メールは、ネットワーク技術担当者様のメールアドレス宛に送付致します。",null,null,null,null,null,null,null,null,null,null,null,null,null,null,null,null,null,null,null,null,null,"option",{"$f":"AND(基本情報!$N$17<>\"端末追加\",基本情報!$N$21<>\"まなびポケット\")","v":true},"ー",{"$f":"AND(基本情報!$N$17<>\"端末追加\",基本情報!$N$21<>\"まなびポケット\",基本情報2!$N$8<>\"利用しない\")","v":true}]
["OCN TMWSaaSサービス利用有無（必須）",null,null,null,null,null,null,null,null,null,null,null,null,null,null,null,null,null,null,null,null,null,null,null,null,null,null,"ライセンス",null,null,null,null,null,"選択してください。\n※「利用する」を選択した場合は、ご利用ライセンス数をご記入下さい。\n※1ライセンス以上、最大99999ライセンスまでお申込みいただけます。\n※OCN TMWSaaSサービスに関する登録完了通知メールは、ネットワーク技術担当者様のメールアドレス宛に送付致します。",null,null,null,null,null,null,null,null,null,null,null,null,null,null,null,null,null,null,null,null,null,"option",{"$f":"AND(基本情報!$N$17<>\"端末追加\",COUNTIF(基本情報!$N$21,\"*テレワーク・スタートパック*\")=0,基本情報!$N$21<>\"まなびポケット\")","v":true},"ー",{"$f":"AND(基本情報!$N$17<>\"端末追加\",基本情報!$N$21<>\"テレワーク・スタートパック\",基本情報!$N$21<>\"まなびポケット\",基本情報2!$N$9<>\"利用しない\")","v":true}]
["クラウドプロキシ",null,null,null,null,null,null,null,null,null,null,null,null,null,null,null,null,null,null,null,null,null,null,null,null,null,null,null,null,null,null,null,null,"クラウドプロキシを利用される場合は選択不要です。\n※クラウドプロキシをOFFにしたい場合のみ「利用しない」を選択してください。",null,null,null,null,null,null,null,null,null,null,null,null,null,null,null,null,null,null,null,null,null,"option_2",{"$f":"OR(基本情報!$N$21=\"\",AND(基本情報!$N$17<>\"端末追加\",COUNTIF(基本情報!$N$21,\"*テレワーク・スタートパック*\")>0))","v":true},"ー","－"]
["クラウドプロキシ個別設定利用有無（必須）",null,null,null,null,null,null,null,null,null,null,null,null,null,null,null,null,null,null,null,null,null,null,null,null,null,null,null,null,null,null,null,null,"選択してください。\n※「利用する」を選択した場合はクラウドプロキシ個別設定情報をご記入ください。\n※以下いずれかのサービスメニューを新設される場合のみお申込みいただけます。\n　・テレワーク・スタートパック\n　・テレワーク・スタートパック(マジックコネクトセット)",null,null,null,null,null,null,null,null,null,null,null,null,null,null,null,null,null,null,null,null,null,"option",{"$f":"AND(OR(基本情報!$N$21=\"\",COUNTIF(基本情報!$N$21,\"*テレワーク・スタートパック*\")>0),$N$10<>\"利用しない\")","v":true},"ー","－"]
["料金明細利用有無（必須）",null,null,null,null,null,null,null,null,null,null,null,null,null,null,null,null,null,null,null,null,null,null,null,null,null,null,null,null,null,null,null,null,"※webでの料金明細確認をご希望される場合は「利用する」を、ご希望されない場合は「利用しない」を選択してください。",null,null,null,null,null,null,null,null,null,null,null,null,null,null,null,null,null,null,null,null,null,"option",{"$f":"基本情報!$N$17<>\"端末追加\"","v":true},"ー","－"]
["料金明細サイト閲覧用グローバルＩＰアドレス",null,null,null,null,null,null,null,null,null,null,null,null,1,null,null,null,null,null,null,null,null,null,null,null,null,null,null,null,"/",null,null,null,"※セキュリティ上、お客様が指定されたグローバルIPアドレスのみアクセスを許容するため、必ずご指定願います。\n※固定しない場合（IPアドレスフリーの場合）は、アクセス元グローバルIPアドレスに「0.0.0.0/0」をご記入ください。",null,null,null,null,null,null,null,null,null,null,null,null,null,null,null,null,null,null,null,null,null,"－",{"$f":"AND(基本情報!$N$17<>\"端末追加\",$N$12<>\"利用しない\")","v":true},"ー","－"]
[null,null,null,null,null,null,null,null,null,null,null,null,null,2,null,null,null,null,null,null,null,null,null,null,null,null,null,null,null,"/",null,null,null,null,null,null,null,null,null,null,null,null,null,null,null,null,null,null,null,null,null,null,null,null,null,"－",{"$f":"$BE$13","v":true},"ー","－"]
[null,null,null,null,null,null,null,null,null,null,null,null,null,3,null,null,null,null,null,null,null,null,null,null,null,null,null,null,null,"/",null,null,null,null,null,null,null,null,null,null,null,null,null,null,null,null,null,null,null,null,null,null,null,null,null,"－",{"$f":"$BE$13","v":true},"ー","－"]
[null,null,null,null,null,null,null,null,null,null,null,null,null,4,null,null,null,null,null,null,null,null,null,null,null,null,null,null,null,"/",null,null,null,null,null,null,null,null,null,null,null,null,null,null,null,null,null,null,null,null,null,null,null,null,null,"－",true,"ー","－"]
[null,null,null,null,null,null,null,null,null,null,null,null,null,5,null,null,null,null,null,null,null,null,null,null,null,null,null,null,null,"/",null,null,null,null,null,null,null,null,null,null,null,null,null,null,null,null,null,null,null,null,null,null,null,null,null,"－",true,"ー","－"]
["料金明細サイト閲覧用\nID/パスワード\n通知送付先",null,null,null,null,null,"コピーリスト（必須）",null,null,null,null,null,null,null,null,null,null,null,null,null,null,null,null,null,null,null,null,null,null,null,null,null,null,"選択してください",null,null,null,null,null,null,null,null,null,null,null,null,null,null,null,null,null,null,null,null,null,{"$f":"IF(AND(基本情報!$N$50=\"次のとおり\",基本情報!$N$63=\"次のとおり\"),\"MeisaiAddressCopylist_1\",IF(AND(基本情報!$N$50=\"次のとおり\",基本情報!$N$63<>\"次のとおり\"),\"MeisaiAddressCopylist_2\",IF(AND(基本情報!$N$50<>\"次のとおり\",基本情報!$N$63=\"次のとおり\"),\"MeisaiAddressCopylist_3\",IF(AND(基本情報!$N$50<>\"次のとおり\",基本情報!$N$63<>\"次のとおり\"),\"MeisaiAddressCopylist_4\",\"null\"))))","v":"MeisaiAddressCopylist_4"},{"$f":"AND(基本情報!$N$17<>\"端末追加\",$N$12<>\"利用しない\")","v":true},"ー","－"]
[null,null,null,null,null,null,"郵便番号（必須）",null,null,null,null,null,null,null,null,null,null,null,null,null,null,null,null,null,null,null,null,null,null,null,null,null,null,"半角数字7桁固定",null,null,null,null,null,null,null,null,null,null,null,null,null,null,null,null,null,null,null,null,null,"－",{"$f":"AND($BE$18=TRUE,OR($N$18=\"次のとおり\",$N$18=\"\"))","v":true},"ー","－"]
[null,null,null,null,null,null,"ご住所（必須）",null,null,null,null,null,null,null,null,null,null,null,null,null,null,null,null,null,null,null,null,null,null,null,null,null,null,"全角46桁以内\n※住所を都道府県からご記入ください。",null,null,null,null,null,null,null,null,null,null,null,null,null,null,null,null,null,null,null,null,null,"－",{"$f":"$BE$19","v":true},"ー","－"]
[null,null,null,null,null,null,"番地等（必須）",null,null,null,null,null,null,null,null,null,null,null,null,null,null,null,null,null,null,null,null,null,null,null,null,null,null,"全角20桁以内",null,null,null,null,null,null,null,null,null,null,null,null,null,null,null,null,null,null,null,null,null,"－",{"$f":"$BE$19","v":true},"ー","－"]
[null,null,null,null,null,null,"ビル名等",null,null,null,null,null,null,null,null,null,null,null,null,null,null,null,null,null,null,null,null,null,null,null,null,null,null,"全角20桁以内",null,null,null,null,null,null,null,null,null,null,null,null,null,null,null,null,null,null,null,null,null,"－",true,"ー","－"]
[null,null,null,null,null,null,"宛先",null,"会社名/お名前\n（必須）",null,null,null,null,null,null,null,null,null,null,null,null,null,null,null,null,null,null,null,null,null,null,null,null,"全角20桁以内",null,null,null,null,null,null,null,null,null,null,null,null,null,null,null,null,null,null,null,null,null,"－",{"$f":"AND(基本情報!$N$17<>\"端末追加\",$N$12<>\"利用しない\")","v":true},"ー","－"]
[null,null,null,null,null,null,null,null,"部課名",null,null,null,null,null,null,null,null,null,null,null,null,null,null,null,null,null,null,null,null,null,null,null,null,"全角20桁以内",null,null,null,null,null,null,null,null,null,null,null,null,null,null,null,null,null,null,null,null,null,"－",{"$f":"$BE$23","v":true},"ー","－"]
[null,null,null,null,null,null,null,null,"担当者名\n（必須）",null,null,null,null,null,null,null,null,null,null,null,null,null,null,null,null,null,null,null,null,null,null,null,null,"全角10桁以内",null,null,null,null,null,null,null,null,null,null,null,null,null,null,null,null,null,null,null,null,null,"－",{"$f":"$BE$23","v":true},"ー","－"]
[null,null,null,null,null,null,null,null,"電話番号\n（必須）",null,null,null,null,null,null,null,null,null,null,null,null,null,null,null,null,null,null,null,null,null,null,null,null,"ハイフンを含む半角10桁～13桁\n（数字、ハイフンのみ）",null,null,null,null,null,null,null,null,null,null,null,null,null,null,null,null,null,null,null,null,null,"－",true,"ー","－"]
["端末送付先情報　　※ビジネスパックをご利用の場合は、ビジネスパック申込書に記入された送付先住所へ、端末とレンタルルータを同梱し、送付いたします。",null,null,null,null,null,null,null,null,null,null,null,null,null,null,null,null,null,null,null,null,null,null,null,null,null,null,null,null,null,null,null,null,null,null,null,null,null,null,null,null,null,null,null,null,null,null,null,null,null,null,null,null,null,null,"－","－","ー","－"]
["端末送付先住所",null,null,null,null,null,"コピーリスト（必須）",null,null,null,null,null,null,null,null,null,null,null,null,null,null,null,null,null,null,null,null,null,null,null,null,null,null,"選択してください",null,null,null,null,null,null,null,null,null,null,null,null,null,null,null,null,null,null,null,null,null,{"$f":"IF(AND(基本情報!$N$50=\"次のとおり\",基本情報!$N$63=\"次のとおり\",基本情報2!$N$18=\"次のとおり\"),\"terminalDeliveryCopylist_1\",IF(AND(基本情報!$N$50=\"次のとおり\",基本情報!$N$63=\"次のとおり\",基本情報2!$N$18<>\"次のとおり\"),\"terminalDeliveryCopylist_2\",IF(AND(基本情報!$N$50=\"次のとおり\",基本情報!$N$63<>\"次のとおり\",基本情報2!$N$18=\"次のとおり\"),\"terminalDeliveryCopylist_3\",IF(AND(基本情報!$N$50<>\"次のとおり\",基本情報!$N$63=\"次のとおり\",基本情報2!$N$18=\"次のとおり\"),\"terminalDeliveryCopylist_4\",IF(AND(基本情報!$N$50=\"次のとおり\",基本情報!$N$63<>\"次のとおり\",基本情報2!$N$18<>\"次のとおり\"),\"terminalDeliveryCopylist_5\",IF(AND(基本情報!$N$50<>\"次のとおり\",基本情報!$N$63=\"次のとおり\",基本情報2!$N$18<>\"次のとおり\"),\"terminalDeliveryCopylist_6\",IF(AND(基本情報!$N$50<>\"次のとおり\",基本情報!$N$63<>\"次のとおり\",基本情報2!$N$18=\"次のとおり\"),\"terminalDeliveryCopylist_7\",IF(AND(基本情報!$N$50<>\"次のとおり\",基本情報!$N$63<>\"次のとおり\",基本情報2!$N$18<>\"次のとおり\"),\"terminalDeliveryCopylist_8\",\"null\"))))))))","v":"terminalDeliveryCopylist_8"},{"$f":"$N$6<>\"利用する\"","v":true},"ー","－"]
[null,null,null,null,null,null,"郵便番号（必須）",null,null,null,null,null,null,null,null,null,null,null,null,null,null,null,null,null,null,null,null,null,null,null,null,null,null,"半角数字7桁固定",null,null,null,null,null,null,null,null,null,null,null,null,null,null,null,null,null,null,null,null,null,"－",{"$f":"AND($N$6<>\"利用する\",OR($N$28=\"\",$N$28=\"次のとおり\"))","v":true},"ー","－"]
[null,null,null,null,null,null,"ご住所（必須）",null,null,null,null,null,null,null,null,null,null,null,null,null,null,null,null,null,null,null,null,null,null,null,null,null,null,"全角46桁以内\n※住所を都道府県からご記入ください。",null,null,null,null,null,null,null,null,null,null,null,null,null,null,null,null,null,null,null,null,null,"－",{"$f":"$BE$29","v":true},"ー","－"]
[null,null,null,null,null,null,"番地等（必須）",null,null,null,null,null,null,null,null,null,null,null,null,null,null,null,null,null,null,null,null,null,null,null,null,null,null,"全角20桁以内",null,null,null,null,null,null,null,null,null,null,null,null,null,null,null,null,null,null,null,null,null,"－",{"$f":"$BE$29","v":true},"ー","－"]
[null,null,null,null,null,null,"ビル名等",null,null,null,null,null,null,null,null,null,null,null,null,null,null,null,null,null,null,null,null,null,null,null,null,null,null,"全角20桁以内",null,null,null,null,null,null,null,null,null,null,null,null,null,null,null,null,null,null,null,null,null,"－",true,"ー","－"]
["端末送付先担当者",null,null,null,null,null,"会社名（必須）",null,null,null,null,null,null,null,null,null,null,null,null,null,null,null,null,null,null,null,null,null,null,null,null,null,null,"全角16桁以内",null,null,null,null,null,null,null,null,null,null,null,null,null,null,null,null,null,null,null,null,null,"－",{"$f":"N6<>\"利用する\"","v":true},"ー","－"]
[null,null,null,null,null,null,"部課名",null,null,null,null,null,null,null,null,null,null,null,null,null,null,null,null,null,null,null,null,null,null,null,null,null,null,"全角16桁以内\n※部課名と担当者名は合計16桁以内でご記入ください",null,null,null,null,null,null,null,null,null,null,null,null,null,null,null,null,null,null,null,null,null,"－",{"$f":"$BE$33","v":true},"ー","－"]
[null,null,null,null,null,null,"担当者名（必須）",null,null,null,null,null,null,null,null,null,null,null,null,null,null,null,null,null,null,null,null,null,null,null,null,null,null,null,null,null,null,null,null,null,null,null,null,null,null,null,null,null,null,null,null,null,null,null,null,"－",{"$f":"$BE$33","v":true},"ー","－"]
[null,null,null,null,null,null,"電話番号（必須）",null,null,null,null,null,null,null,null,null,null,null,null,null,null,null,null,null,null,null,null,null,null,null,null,null,null,"ハイフンを含む半角10桁～13桁\n（数字、ハイフンのみ）",null,null,null,null,null,null,null,null,null,null,null,null,null,null,null,null,null,null,null,null,null,"－",true,"ー","－"]

{"sheet":"端末SIM情報","index":2,"n_rows":20,"n_cols":103,"rows_kept":20,"cut":false,"hidden":false,"merged":[[8,93,8,96],[7,15,7,17],[6,1,6,75],[5,1,5,75],[7,8,7,14],[7,1,7,7],[19,64,19,75],[4,0,4,75],[17,32,17,35],[17,36,17,38],[17,39,17,42],[17,43,17,47],[17,48,17,57],[17,58,17,63],[15,64,15,75],[16,64,16,75],[16,1,16,4],[16,5,16,17],[16,18,16,31],[16,32,16,35],[16,36,16,38],[16,39,16,42],[16,43,16,47],[17,64,17,75],[18,64,18,75],[17,1,17,4],[17,5,17,17],[17,18,17,31],[19,1,19,4],[19,5,19,17],[19,18,19,31],[19,32,19,35],[19,36,19,38],[19,39,19,42],[19,43,19,47],[19,48,19,57],[19,58,19,63],[18,1,18,4],[18,5,18,17],[18,18,18,31],[18,32,18,35],[18,36,18,38],[18,39,18,42],[18,43,18,47],[18,48,18,57],[18,58,18,63],[16,48,16,57],[16,58,16,63],[15,1,15,4],[15,5,15,17],[15,18,15,31],[15,32,15,35],[15,36,15,38],[15,39,15,42],[15,43,15,47],[15,48,15,57],[15,58,15,63],[13,64,13,75],[14,1,14,4],[14,5,14,17],[14,18,14,31],[14,32,14,35],[14,36,14,38],[14,39,14,42],[14,43,14,47],[14,48,14,57],[14,58,14,63],[14,64,14,75],[13,1,13,4],[13,5,13,17],[13,18,13,31],[13,32,13,35],[13,36,13,38],[13,39,13,42],[13,43,13,47],[13,48,13,57],[13,58,13,63],[11,58,11,63],[11,64,11,75],[12,1,12,4],[12,5,12,17],[12,18,12,31],[12,32,12,35],[12,36,12,38],[12,39,12,42],[12,43,12,47],[12,48,12,57],[12,58,12,63],[12,64,12,75],[10,1,10,4],[11,1,11,4],[11,5,11,17],[11,18,11,31],[11,32,11,35],[11,36,11,38],[11,39,11,42],[11,43,11,47],[11,48,11,57],[10,64,10,75],[10,58,10,63],[10,48,10,57],[10,43,10,47],[10,39,10,42],[10,36,10,38],[10,32,10,35],[10,18,10,31],[10,5,10,17],[8,85,8,91],[0,78,0,81],[8,48,8,75],[9,64,9,75],[9,58,9,63],[9,48,9,57],[8,0,9,0],[8,1,9,4],[8,5,9,17],[8,18,9,31],[8,32,9,35],[9,43,9,47],[9,39,9,42],[9,36,9,38],[8,36,8,47],[1,0,2,75],[8,78,8,84]]}
[null,null,null,null,null,null,null,null,null,null,null,null,null,null,null,null,null,null,null,null,null,null,null,null,null,null,null,null,null,null,null,null,null,null,null,null,null,null,null,null,null,null,null,null,null,null,null,null,null,null,null,null,null,null,null,null,null,null,null,null,null,null,null,null,null,null,null,null,null,null,null,null,null,null,null,{"$f":"基本情報!$AZ$1","v":"Ver.1.11A(2023/12/18)"},null,null,"＜個別対応用フラグ＞　★初期値は2とする"]
[{"$f":"基本情報!A3","v":"第６種オープンコンピュータ通信網サービス　契約申込書\nOCN モバイル ONE for Business"},null,null,null,null,null,null,null,null,null,null,null,null,null,null,null,null,null,null,null,null,null,null,null,null,null,null,null,null,null,null,null,null,null,null,null,null,null,null,null,null,null,null,null,null,null,null,null,null,null,null,null,null,null,null,null,null,null,null,null,null,null,null,null,null,null,null,null,null,null,null,null,null,null,null,null,null,null,"約款対象外","開案CSV","まなびポケット","端末調達",null,"ビジパク利用有無","固定IP利用有無","認証方式","お申込み種別"]
[null,null,null,null,null,null,null,null,null,null,null,null,null,null,null,null,null,null,null,null,null,null,null,null,null,null,null,null,null,null,null,null,null,null,null,null,null,null,null,null,null,null,null,null,null,null,null,null,null,null,null,null,null,null,null,null,null,null,null,null,null,null,null,null,null,null,null,null,null,null,null,null,null,null,null,null,null,null,22,2,2,2,null,{"$f":"IF(基本情報2!$N$6=\"\",\"\",基本情報2!$N$6)","v":""},{"$f":"IF(基本情報2!$N$7=\"\",\"\",基本情報2!$N$7)","v":""},{"$f":"基本情報!$N$20","v":0},{"$f":"__\\osAppKind","v":0}]
[]
["端末/SIM情報",null,null,null,null,null,null,null,null,null,null,null,null,null,null,null,null,null,null,null,null,null,null,null,null,null,null,null,null,null,null,null,null,null,null,null,null,null,null,null,null,null,null,null,null,null,null,null,null,null,null,null,null,null,null,null,null,null,null,null,null,null,null,null,null,null,null,null,null,null,null,null,null,null,null,null,null,null,"サービスメニュー","コース\n【リスト制御用】","【コース参照用】\n総量規制","【コース参照用】\nテレワーク","【コース参照用】\nテレワーク区分"]
[null,"アクセス方式、ご契約コース、ご購入端末機種名、台数、各種オプションの有無をご記入ください。\n総量規制/従量制プラン・速度制限プランについては同じ申込書ではお申込できませんのでご了承ください。",null,null,null,null,null,null,null,null,null,null,null,null,null,null,null,null,null,null,null,null,null,null,null,null,null,null,null,null,null,null,null,null,null,null,null,null,null,null,null,null,null,null,null,null,null,null,null,null,null,null,null,null,null,null,null,null,null,null,null,null,null,null,null,null,null,null,null,null,null,null,null,null,null,null,null,null,{"$f":"基本情報!$N$21","v":0},{"$f":"IF($CA$6=\"総量規制サービス\",$CC$6,IF($CA$6=\"速度上限サービス\",\"course4\",IF(COUNTIF($CA$6,\"*テレワーク・スタートパック*\")>0,$CD$6,IF($CA$6=\"まなびポケット\",\"course7\",\"null\"))))","v":"null"},{"$f":"IF(AND($CA$6=\"総量規制サービス\",$CF$3=\"利用する\"),\"course1\",IF(AND($CH$3=\"個別ID\",$CA$6=\"総量規制サービス\",$CA$3=22),\"course10\",IF(AND($CI$3=\"新設\",$CH$3=\"共通ID\",$CA$6=\"総量規制サービス\",$CA$3=22),\"course2\",IF(AND($CI$3=\"端末追加\",$CH$3=\"共通ID\",$CA$6=\"総量規制サービス\",$CA$3=22),\"course12\",(IF(AND($CA$6=\"総量規制サービス\",$CA$3=11),\"course3\",\"null\"))))))","v":"null"},{"$f":"IF($CA$6=\"テレワーク・スタートパック(マジックコネクトセット)\",\"course8\",IF($CA$6=\"テレワーク・スタートパック(UNO Virtualセット)\",\"course9\",IF(AND($CA$6=\"テレワーク・スタートパック\",$CA$3=22),\"course5\",IF(AND($CA$6=\"テレワーク・スタートパック\",$CA$3=11,$CE$6=\"通常\"),\"course6\",IF(AND($CA$6=\"テレワーク・スタートパック\",$CA$3=11,$CE$6=\"リースプラン\"),\"course11\",\"null\")))))","v":"null"},"通常"]
[null,"1申込でお申込いただける機種台数は400台までとなります。\n国際ローミングをお申し込みの場合、利用停止目安額は渡航前に余裕を見込んだ金額で設定してください。"]
[null,"合計機種台数：",null,null,null,null,null,null,{"$f":"IF(SUM($AG$11:$AJ$20)=0,\"\",SUM($AG$11:$AJ$20))","v":""},null,null,null,null,null,null,"台"]
["No.","アクセス\n方式",null,null,null,"コース",null,null,null,null,null,null,null,null,null,null,null,null,"機種",null,null,null,null,null,null,null,null,null,null,null,null,null,"機種台数",null,null,null,"オプション",null,null,null,null,null,null,null,null,null,null,null,"NTTコミュニケーションズ使用欄",null,null,null,null,null,null,null,null,null,null,null,null,null,null,null,null,null,null,null,null,null,null,null,null,null,null,null,null,null,"リスト",null,null,null,null,null,null,"条件付き書式",null,null,null,null,null,null,null,"「品名(OCN)」用　　　　※結合してAV列に表示※",null,null,null,null,"SIM種別用",null,"「料金プラン(MVMO)」用　"]
[null,null,null,null,null,null,null,null,null,null,null,null,null,null,null,null,null,null,null,null,null,null,null,null,null,null,null,null,null,null,null,null,null,null,null,null,"SMS",null,null,"国際\nローミング",null,null,null,"国際ローミング\n限度額",null,null,null,null,"品名(OCN)",null,null,null,null,null,null,null,null,null,"SIM種別",null,null,null,null,null,"料金プラン(MVMO)",null,null,null,null,null,null,null,null,null,null,null,null,null,"アクセス方式","コース","機種","機種台数","SMS","国際ローミング","国際ローミング限度額","アクセス方式","コース","機種","機種台数","SMS","国際ローミング","国際ローミング限度額",null,"共通ID","IP種別","コース\n（200k表示）","アクセス方式",null,"【検索用文字列】",null,"【検索用文字列】"]
[1,null,null,null,null,null,null,null,null,null,null,null,null,null,null,null,null,null,null,null,null,null,null,null,null,null,null,null,null,null,null,null,null,null,null,null,null,null,null,null,null,null,null,null,null,null,null,null,{"$f":"IF($AG11=\"\",\"\",CONCATENATE($CP11,$CQ11,$CR11,$CS11))","v":""},null,null,null,null,null,null,null,null,null,{"$f":"IF(AND($CF$3=\"利用する\",S11=\"micro SIMのみ\"),\"[LTE]microSIM\",IF(ISERROR(VLOOKUP($CU11,変換!$J:$K,2,FALSE)=\"\"),\"\",VLOOKUP($CU11,変換!$J:$K,2,FALSE)))","v":""},null,null,null,null,null,{"$f":"IF(ISERROR(VLOOKUP(端末SIM情報!$CW11,料金プランMVNO!H:I,2,FALSE)),\"\",VLOOKUP(端末SIM情報!$CW11,料金プランMVNO!H:I,2,FALSE))","v":""},null,null,null,null,null,null,null,null,null,null,null,null,null,{"$f":"IF(OR($CH$3=\"個別ID\",$CF$3=\"利用する\",$CA$6=\"まなびポケット\",COUNTIF($CA$6,\"*テレワーク・スタートパック*\")>0),\"standard2\",\"standard1\")","v":"standard1"},{"$f":"$CB$6","v":"null"},{"$f":"IF($CF$3=\"利用する\",\"Model1\",IF($CA$6=\"まなびポケット\",\"Model5\",IF($B11=\"5G-NSA\",\"Model6\",IF($B11=\"LTE限定\",\"Model4\",IF(OR($CA$6=\"テレワーク・スタートパック\",$CA$6=\"テレワーク・スタートパック(マジックコネクトセット)\",$CA$6=\"テレワーク・スタートパック(UNO Virtualセット)\"),VLOOKUP(CONCATENATE($CD$3,$F11),変換!$A:$B,2,FALSE),IF($CA$3=11,\"Model3\",IF($CA$3=22,\"Model2\",\"null\")))))))","v":"Model2"},"－",{"$f":"IF(AND($B11=\"5G-NSA\",OR($S11=\"SIMのみ\",$S11=\"micro SIMのみ\",$S11=\"nano SIMのみ\")),\"terminalOption3\",IF($CF$3=\"利用する\",\"null\",IF($CA$6=\"まなびポケット\",\"null\",IF(ISERROR(VLOOKUP($S11,変換!$D:$E,2,FALSE)=\"\"),\"null\",IF(AND($F11=\"Unlimited\",VLOOKUP($S11,変換!$D:$E,2,FALSE)=\"terminalOption1\"),\"terminalOption3\",VLOOKUP($S11,変換!$D:$E,2,FALSE))))))","v":"null"},{"$f":"IF($CF$3=\"利用する\",\"null\",IF(ISERROR(VLOOKUP($S11,変換!$G:$H,2,FALSE)=\"\"),\"null\",VLOOKUP($S11,変換!$G:$H,2,FALSE)))","v":"null"},{"$f":"IF($AN11=\"有\",\"list_AppInterRoaLimit\",\"null\")","v":"null"},"－","－","－","－",{"$f":"$CE11<>\"null\"","v":false},{"$f":"$CF11<>\"null\"","v":false},{"$f":"$AN11=\"有\"","v":false},null,{"$f":"IF($CH$3=\"共通ID\",\"モバイルONE共通ID\",IF($CH$3=\"個別ID\",\"モバイルONE\",\"\"))","v":""},{"$f":"IF($CG$3=\"利用する\",\"IP1\",\"\")","v":""},{"$f":"IF($F11=\"200kbps\",\"200k\",\"\")","v":""},{"$f":"IF(AND($CH$3=\"個別ID\",COUNTIF($B11,\"*LTE*\")>0),\"(LTE)\",\"\")","v":""},null,{"$f":"CONCATENATE($B11,$AK11,$S11)","v":""},null,{"$f":"CONCATENATE($CH$3,$CF$3,$CG$3,$B11,$F11,$AK11)","v":"0"}]
[2,null,null,null,null,null,null,null,null,null,null,null,null,null,null,null,null,null,null,null,null,null,null,null,null,null,null,null,null,null,null,null,null,null,null,null,null,null,null,null,null,null,null,null,null,null,null,null,"",null,null,null,null,null,null,null,null,null,{"$f":"IF(ISERROR(VLOOKUP($CU12,変換!$J:$K,2,FALSE)=\"\"),\"\",VLOOKUP($CU12,変換!$J:$K,2,FALSE))","v":""},null,null,null,null,null,{"$f":"IF(ISERROR(VLOOKUP(端末SIM情報!$CW12,料金プランMVNO!H:I,2,FALSE)),\"\",VLOOKUP(端末SIM情報!$CW12,料金プランMVNO!H:I,2,FALSE))","v":""},null,null,null,null,null,null,null,null,null,null,null,null,null,"standard1",{"$f":"$CB$6","v":"null"},{"$f":"IF($CF$3=\"利用する\",\"null\",IF($CA$6=\"まなびポケット\",\"Model5\",IF($B12=\"5G-NSA\",\"Model6\",IF($B12=\"LTE限定\",\"Model4\",IF(OR($CA$6=\"テレワーク・スタートパック\",$CA$6=\"テレワーク・スタートパック(マジックコネクトセット)\",$CA$6=\"テレワーク・スタートパック(UNO Virtualセット)\"),VLOOKUP(CONCATENATE($CD$3,$F12),変換!$A:$B,2,FALSE),IF($CA$3=11,\"Model3\",IF($CA$3=22,\"Model2\",\"null\")))))))","v":"Model2"},"－",{"$f":"IF(AND($B12=\"5G-NSA\",OR($S12=\"SIMのみ\",$S12=\"micro SIMのみ\",$S12=\"nano SIMのみ\")),\"terminalOption3\",IF($CF$3=\"利用する\",\"null\",IF($CA$6=\"まなびポケット\",\"null\",IF(ISERROR(VLOOKUP($S12,変換!$D:$E,2,FALSE)=\"\"),\"null\",IF(AND($F12=\"Unlimited\",VLOOKUP($S12,変換!$D:$E,2,FALSE)=\"terminalOption1\"),\"terminalOption3\",VLOOKUP($S12,変換!$D:$E,2,FALSE))))))","v":"null"},{"$f":"IF($CF$3=\"利用する\",\"null\",IF(ISERROR(VLOOKUP($S12,変換!$G:$H,2,FALSE)=\"\"),\"null\",VLOOKUP($S12,変換!$G:$H,2,FALSE)))","v":"null"},{"$f":"IF($AN12=\"有\",\"list_AppInterRoaLimit\",\"null\")","v":"null"},{"$f":"$CF$3<>\"利用する\"","v":true},{"$f":"$CF$3<>\"利用する\"","v":true},{"$f":"$CF$3<>\"利用する\"","v":true},{"$f":"$CF$3<>\"利用する\"","v":true},{"$f":"AND($CF$3<>\"利用する\",$CE12<>\"null\")","v":false},{"$f":"AND($CF$3<>\"利用する\",$CF12<>\"null\")","v":false},{"$f":"AND($CF$3<>\"利用する\",$AN12=\"有\")","v":false},null,"","",{"$f":"IF($F12=\"200kbps\",\"200k\",\"\")","v":""},"",null,{"$f":"CONCATENATE($B12,$AK12,$S12)","v":""},null,"0",null,{"$f":"IF(ISERROR(VLOOKUP(端末SIM情報!$CW12,料金プランMVNO!H:I,2,FALSE)),\"\",VLOOKUP(端末SIM情報!$CW12,料金プランMVNO!H:I,2,FALSE))","v":""}]
[3,null,null,null,null,null,null,null,null,null,null,null,null,null,null,null,null,null,null,null,null,null,null,null,null,null,null,null,null,null,null,null,null,null,null,null,null,null,null,null,null,null,null,null,null,null,null,null,"",null,null,null,null,null,null,null,null,null,{"$f":"IF(ISERROR(VLOOKUP($CU13,変換!$J:$K,2,FALSE)=\"\"),\"\",VLOOKUP($CU13,変換!$J:$K,2,FALSE))","v":""},null,null,null,null,null,{"$f":"IF(ISERROR(VLOOKUP(端末SIM情報!$CW13,料金プランMVNO!H:I,2,FALSE)),\"\",VLOOKUP(端末SIM情報!$CW13,料金プランMVNO!H:I,2,FALSE))","v":""},null,null,null,null,null,null,null,null,null,null,null,null,null,"standard1","null",{"$f":"IF($CF$3=\"利用する\",\"null\",IF($CA$6=\"まなびポケット\",\"Model5\",IF($B13=\"5G-NSA\",\"Model6\",IF($B13=\"LTE限定\",\"Model4\",IF(OR($CA$6=\"テレワーク・スタートパック\",$CA$6=\"テレワーク・スタートパック(マジックコネクトセット)\",$CA$6=\"テレワーク・スタートパック(UNO Virtualセット)\"),VLOOKUP(CONCATENATE($CD$3,$F13),変換!$A:$B,2,FALSE),IF($CA$3=11,\"Model3\",IF($CA$3=22,\"Model2\",\"null\")))))))","v":"Model2"},"－",{"$f":"IF(AND($B13=\"5G-NSA\",OR($S13=\"SIMのみ\",$S13=\"micro SIMのみ\",$S13=\"nano SIMのみ\")),\"terminalOption3\",IF($CF$3=\"利用する\",\"null\",IF($CA$6=\"まなびポケット\",\"null\",IF(ISERROR(VLOOKUP($S13,変換!$D:$E,2,FALSE)=\"\"),\"null\",IF(AND($F13=\"Unlimited\",VLOOKUP($S13,変換!$D:$E,2,FALSE)=\"terminalOption1\"),\"terminalOption3\",VLOOKUP($S13,変換!$D:$E,2,FALSE))))))","v":"null"},{"$f":"IF($CF$3=\"利用する\",\"null\",IF(ISERROR(VLOOKUP($S13,変換!$G:$H,2,FALSE)=\"\"),\"null\",VLOOKUP($S13,変換!$G:$H,2,FALSE)))","v":"null"},"null",{"$f":"$CH$12","v":true},{"$f":"$CI$12","v":true},{"$f":"$CJ$12","v":true},{"$f":"$CK$12","v":true},{"$f":"AND($CF$3<>\"利用する\",$CE13<>\"null\")","v":false},{"$f":"AND($CF$3<>\"利用する\",$CF13<>\"null\")","v":false},{"$f":"AND($CF$3<>\"利用する\",$AN13=\"有\")","v":false},null,"","","","",null,"",null,"0",null,{"$f":"IF(ISERROR(VLOOKUP(端末SIM情報!$CW13,料金プランMVNO!H:I,2,FALSE)),\"\",VLOOKUP(端末SIM情報!$CW13,料金プランMVNO!H:I,2,FALSE))","v":""}]
[4,null,null,null,null,null,null,null,null,null,null,null,null,null,null,null,null,null,null,null,null,null,null,null,null,null,null,null,null,null,null,null,null,null,null,null,null,null,null,null,null,null,null,null,null,null,null,null,"",null,null,null,null,null,null,null,null,null,{"$f":"IF(ISERROR(VLOOKUP($CU14,変換!$J:$K,2,FALSE)=\"\"),\"\",VLOOKUP($CU14,変換!$J:$K,2,FALSE))","v":""},null,null,null,null,null,{"$f":"IF(ISERROR(VLOOKUP(端末SIM情報!$CW14,料金プランMVNO!H:I,2,FALSE)),\"\",VLOOKUP(端末SIM情報!$CW14,料金プランMVNO!H:I,2,FALSE))","v":""},null,null,null,null,null,null,null,null,null,null,null,null,null,"standard1","null",{"$f":"IF($CF$3=\"利用する\",\"null\",IF($CA$6=\"まなびポケット\",\"Model5\",IF($B14=\"5G-NSA\",\"Model6\",IF($B14=\"LTE限定\",\"Model4\",IF(OR($CA$6=\"テレワーク・スタートパック\",$CA$6=\"テレワーク・スタートパック(マジックコネクトセット)\",$CA$6=\"テレワーク・スタートパック(UNO Virtualセット)\"),VLOOKUP(CONCATENATE($CD$3,$F14),変換!$A:$B,2,FALSE),IF($CA$3=11,\"Model3\",IF($CA$3=22,\"Model2\",\"null\")))))))","v":"Model2"},"－",{"$f":"IF(AND($B14=\"5G-NSA\",OR($S14=\"SIMのみ\",$S14=\"micro SIMのみ\",$S14=\"nano SIMのみ\")),\"terminalOption3\",IF($CF$3=\"利用する\",\"null\",IF($CA$6=\"まなびポケット\",\"null\",IF(ISERROR(VLOOKUP($S14,変換!$D:$E,2,FALSE)=\"\"),\"null\",IF(AND($F14=\"Unlimited\",VLOOKUP($S14,変換!$D:$E,2,FALSE)=\"terminalOption1\"),\"terminalOption3\",VLOOKUP($S14,変換!$D:$E,2,FALSE))))))","v":"null"},{"$f":"IF($CF$3=\"利用する\",\"null\",IF(ISERROR(VLOOKUP($S14,変換!$G:$H,2,FALSE)=\"\"),\"null\",VLOOKUP($S14,変換!$G:$H,2,FALSE)))","v":"null"},"null",{"$f":"$CH$12","v":true},{"$f":"$CI$12","v":true},{"$f":"$CJ$12","v":true},{"$f":"$CK$12","v":true},false,false,false,null,"","","","",null,"",null,"0",null,{"$f":"IF(ISERROR(VLOOKUP(端末SIM情報!$CW14,料金プランMVNO!H:I,2,FALSE)),\"\",VLOOKUP(端末SIM情報!$CW14,料金プランMVNO!H:I,2,FALSE))","v":""}]
[5,null,null,null,null,null,null,null,null,null,null,null,null,null,null,null,null,null,null,null,null,null,null,null,null,null,null,null,null,null,null,null,null,null,null,null,null,null,null,null,null,null,null,null,null,null,null,null,"",null,null,null,null,null,null,null,null,null,{"$f":"IF(ISERROR(VLOOKUP($CU15,変換!$J:$K,2,FALSE)=\"\"),\"\",VLOOKUP($CU15,変換!$J:$K,2,FALSE))","v":""},null,null,null,null,null,{"$f":"IF(ISERROR(VLOOKUP(端末SIM情報!$CW15,料金プランMVNO!H:I,2,FALSE)),\"\",VLOOKUP(端末SIM情報!$CW15,料金プランMVNO!H:I,2,FALSE))","v":""},null,null,null,null,null,null,null,null,null,null,null,null,null,"standard1","null",{"$f":"IF($CF$3=\"利用する\",\"null\",IF($CA$6=\"まなびポケット\",\"Model5\",IF($B15=\"5G-NSA\",\"Model6\",IF($B15=\"LTE限定\",\"Model4\",IF(OR($CA$6=\"テレワーク・スタートパック\",$CA$6=\"テレワーク・スタートパック(マジックコネクトセット)\",$CA$6=\"テレワーク・スタートパック(UNO Virtualセット)\"),VLOOKUP(CONCATENATE($CD$3,$F15),変換!$A:$B,2,FALSE),IF($CA$3=11,\"Model3\",IF($CA$3=22,\"Model2\",\"null\")))))))","v":"Model2"},"－",{"$f":"IF(AND($B15=\"5G-NSA\",OR($S15=\"SIMのみ\",$S15=\"micro SIMのみ\",$S15=\"nano SIMのみ\")),\"terminalOption3\",IF($CF$3=\"利用する\",\"null\",IF($CA$6=\"まなびポケット\",\"null\",IF(ISERROR(VLOOKUP($S15,変換!$D:$E,2,FALSE)=\"\"),\"null\",IF(AND($F15=\"Unlimited\",VLOOKUP($S15,変換!$D:$E,2,FALSE)=\"terminalOption1\"),\"terminalOption3\",VLOOKUP($S15,変換!$D:$E,2,FALSE))))))","v":"null"},{"$f":"IF($CF$3=\"利用する\",\"null\",IF(ISERROR(VLOOKUP($S15,変換!$G:$H,2,FALSE)=\"\"),\"null\",VLOOKUP($S15,変換!$G:$H,2,FALSE)))","v":"null"},"null",true,true,true,true,false,false,false,null,"","","","",null,"",null,"0",null,{"$f":"IF(ISERROR(VLOOKUP(端末SIM情報!$CW15,料金プランMVNO!H:I,2,FALSE)),\"\",VLOOKUP(端末SIM情報!$CW15,料金プランMVNO!H:I,2,FALSE))","v":""}]
[6,null,null,null,null,null,null,null,null,null,null,null,null,null,null,null,null,null,null,null,null,null,null,null,null,null,null,null,null,null,null,null,null,null,null,null,null,null,null,null,null,null,null,null,null,null,null,null,"",null,null,null,null,null,null,null,null,null,{"$f":"IF(ISERROR(VLOOKUP($CU16,変換!$J:$K,2,FALSE)=\"\"),\"\",VLOOKUP($CU16,変換!$J:$K,2,FALSE))","v":""},null,null,null,null,null,{"$f":"IF(ISERROR(VLOOKUP(端末SIM情報!$CW16,料金プランMVNO!H:I,2,FALSE)),\"\",VLOOKUP(端末SIM情報!$CW16,料金プランMVNO!H:I,2,FALSE))","v":""},null,null,null,null,null,null,null,null,null,null,null,null,null,"standard1","null",{"$f":"IF($CF$3=\"利用する\",\"null\",IF($CA$6=\"まなびポケット\",\"Model5\",IF($B16=\"5G-NSA\",\"Model6\",IF($B16=\"LTE限定\",\"Model4\",IF(OR($CA$6=\"テレワーク・スタートパック\",$CA$6=\"テレワーク・スタートパック(マジックコネクトセット)\",$CA$6=\"テレワーク・スタートパック(UNO Virtualセット)\"),VLOOKUP(CONCATENATE($CD$3,$F16),変換!$A:$B,2,FALSE),IF($CA$3=11,\"Model3\",IF($CA$3=22,\"Model2\",\"null\")))))))","v":"Model2"},"－",{"$f":"IF(AND($B16=\"5G-NSA\",OR($S16=\"SIMのみ\",$S16=\"micro SIMのみ\",$S16=\"nano SIMのみ\")),\"terminalOption3\",IF($CF$3=\"利用する\",\"null\",IF($CA$6=\"まなびポケット\",\"null\",IF(ISERROR(VLOOKUP($S16,変換!$D:$E,2,FALSE)=\"\"),\"null\",IF(AND($F16=\"Unlimited\",VLOOKUP($S16,変換!$D:$E,2,FALSE)=\"terminalOption1\"),\"terminalOption3\",VLOOKUP($S16,変換!$D:$E,2,FALSE))))))","v":"null"},{"$f":"IF($CF$3=\"利用する\",\"null\",IF(ISERROR(VLOOKUP($S16,変換!$G:$H,2,FALSE)=\"\"),\"null\",VLOOKUP($S16,変換!$G:$H,2,FALSE)))","v":"null"},"null",true,true,true,true,false,false,false,null,"","","","",null,"",null,"0",null,{"$f":"IF(ISERROR(VLOOKUP(端末SIM情報!$CW16,料金プランMVNO!H:I,2,FALSE)),\"\",VLOOKUP(端末SIM情報!$CW16,料金プランMVNO!H:I,2,FALSE))","v":""}]
[7,null,null,null,null,null,null,null,null,null,null,null,null,null,null,null,null,null,null,null,null,null,null,null,null,null,null,null,null,null,null,null,null,null,null,null,null,null,null,null,null,null,null,null,null,null,null,null,"",null,null,null,null,null,null,null,null,null,{"$f":"IF(ISERROR(VLOOKUP($CU17,変換!$J:$K,2,FALSE)=\"\"),\"\",VLOOKUP($CU17,変換!$J:$K,2,FALSE))","v":""},null,null,null,null,null,{"$f":"IF(ISERROR(VLOOKUP(端末SIM情報!$CW17,料金プランMVNO!H:I,2,FALSE)),\"\",VLOOKUP(端末SIM情報!$CW17,料金プランMVNO!H:I,2,FALSE))","v":""},null,null,null,null,null,null,null,null,null,null,null,null,null,"standard1","null",{"$f":"IF($CF$3=\"利用する\",\"null\",IF($CA$6=\"まなびポケット\",\"Model5\",IF($B17=\"5G-NSA\",\"Model6\",IF($B17=\"LTE限定\",\"Model4\",IF(OR($CA$6=\"テレワーク・スタートパック\",$CA$6=\"テレワーク・スタートパック(マジックコネクトセット)\",$CA$6=\"テレワーク・スタートパック(UNO Virtualセット)\"),VLOOKUP(CONCATENATE($CD$3,$F17),変換!$A:$B,2,FALSE),IF($CA$3=11,\"Model3\",IF($CA$3=22,\"Model2\",\"null\")))))))","v":"Model2"},"－",{"$f":"IF(AND($B17=\"5G-NSA\",OR($S17=\"SIMのみ\",$S17=\"micro SIMのみ\",$S17=\"nano SIMのみ\")),\"terminalOption3\",IF($CF$3=\"利用する\",\"null\",IF($CA$6=\"まなびポケット\",\"null\",IF(ISERROR(VLOOKUP($S17,変換!$D:$E,2,FALSE)=\"\"),\"null\",IF(AND($F17=\"Unlimited\",VLOOKUP($S17,変換!$D:$E,2,FALSE)=\"terminalOption1\"),\"terminalOption3\",VLOOKUP($S17,変換!$D:$E,2,FALSE))))))","v":"null"},{"$f":"IF($CF$3=\"利用する\",\"null\",IF(ISERROR(VLOOKUP($S17,変換!$G:$H,2,FALSE)=\"\"),\"null\",VLOOKUP($S17,変換!$G:$H,2,FALSE)))","v":"null"},"null",true,true,true,true,false,false,false,null,"","","","",null,"",null,"0",null,{"$f":"IF(ISERROR(VLOOKUP(端末SIM情報!$CW17,料金プランMVNO!H:I,2,FALSE)),\"\",VLOOKUP(端末SIM情報!$CW17,料金プランMVNO!H:I,2,FALSE))","v":""}]
[8,null,null,null,null,null,null,null,null,null,null,null,null,null,null,null,null,null,null,null,null,null,null,null,null,null,null,null,null,null,null,null,null,null,null,null,null,null,null,null,null,null,null,null,null,null,null,null,"",null,null,null,null,null,null,null,null,null,{"$f":"IF(ISERROR(VLOOKUP($CU18,変換!$J:$K,2,FALSE)=\"\"),\"\",VLOOKUP($CU18,変換!$J:$K,2,FALSE))","v":""},null,null,null,null,null,{"$f":"IF(ISERROR(VLOOKUP(端末SIM情報!$CW18,料金プランMVNO!H:I,2,FALSE)),\"\",VLOOKUP(端末SIM情報!$CW18,料金プランMVNO!H:I,2,FALSE))","v":""},null,null,null,null,null,null,null,null,null,null,null,null,null,"standard1","null",{"$f":"IF($CF$3=\"利用する\",\"null\",IF($CA$6=\"まなびポケット\",\"Model5\",IF($B18=\"5G-NSA\",\"Model6\",IF($B18=\"LTE限定\",\"Model4\",IF(OR($CA$6=\"テレワーク・スタートパック\",$CA$6=\"テレワーク・スタートパック(マジックコネクトセット)\",$CA$6=\"テレワーク・スタートパック(UNO Virtualセット)\"),VLOOKUP(CONCATENATE($CD$3,$F18),変換!$A:$B,2,FALSE),IF($CA$3=11,\"Model3\",IF($CA$3=22,\"Model2\",\"null\")))))))","v":"Model2"},"－",{"$f":"IF(AND($B18=\"5G-NSA\",OR($S18=\"SIMのみ\",$S18=\"micro SIMのみ\",$S18=\"nano SIMのみ\")),\"terminalOption3\",IF($CF$3=\"利用する\",\"null\",IF($CA$6=\"まなびポケット\",\"null\",IF(ISERROR(VLOOKUP($S18,変換!$D:$E,2,FALSE)=\"\"),\"null\",IF(AND($F18=\"Unlimited\",VLOOKUP($S18,変換!$D:$E,2,FALSE)=\"terminalOption1\"),\"terminalOption3\",VLOOKUP($S18,変換!$D:$E,2,FALSE))))))","v":"null"},{"$f":"IF($CF$3=\"利用する\",\"null\",IF(ISERROR(VLOOKUP($S18,変換!$G:$H,2,FALSE)=\"\"),\"null\",VLOOKUP($S18,変換!$G:$H,2,FALSE)))","v":"null"},"null",true,true,true,true,false,false,false,null,"","","","",null,"",null,"0",null,{"$f":"IF(ISERROR(VLOOKUP(端末SIM情報!$CW18,料金プランMVNO!H:I,2,FALSE)),\"\",VLOOKUP(端末SIM情報!$CW18,料金プランMVNO!H:I,2,FALSE))","v":""}]
[9,null,null,null,null,null,null,null,null,null,null,null,null,null,null,null,null,null,null,null,null,null,null,null,null,null,null,null,null,null,null,null,null,null,null,null,null,null,null,null,null,null,null,null,null,null,null,null,"",null,null,null,null,null,null,null,null,null,{"$f":"IF(ISERROR(VLOOKUP($CU19,変換!$J:$K,2,FALSE)=\"\"),\"\",VLOOKUP($CU19,変換!$J:$K,2,FALSE))","v":""},null,null,null,null,null,{"$f":"IF(ISERROR(VLOOKUP(端末SIM情報!$CW19,料金プランMVNO!H:I,2,FALSE)),\"\",VLOOKUP(端末SIM情報!$CW19,料金プランMVNO!H:I,2,FALSE))","v":""},null,null,null,null,null,null,null,null,null,null,null,null,null,"standard1","null",{"$f":"IF($CF$3=\"利用する\",\"null\",IF($CA$6=\"まなびポケット\",\"Model5\",IF($B19=\"5G-NSA\",\"Model6\",IF($B19=\"LTE限定\",\"Model4\",IF(OR($CA$6=\"テレワーク・スタートパック\",$CA$6=\"テレワーク・スタートパック(マジックコネクトセット)\",$CA$6=\"テレワーク・スタートパック(UNO Virtualセット)\"),VLOOKUP(CONCATENATE($CD$3,$F19),変換!$A:$B,2,FALSE),IF($CA$3=11,\"Model3\",IF($CA$3=22,\"Model2\",\"null\")))))))","v":"Model2"},"－",{"$f":"IF(AND($B19=\"5G-NSA\",OR($S19=\"SIMのみ\",$S19=\"micro SIMのみ\",$S19=\"nano SIMのみ\")),\"terminalOption3\",IF($CF$3=\"利用する\",\"null\",IF($CA$6=\"まなびポケット\",\"null\",IF(ISERROR(VLOOKUP($S19,変換!$D:$E,2,FALSE)=\"\"),\"null\",IF(AND($F19=\"Unlimited\",VLOOKUP($S19,変換!$D:$E,2,FALSE)=\"terminalOption1\"),\"terminalOption3\",VLOOKUP($S19,変換!$D:$E,2,FALSE))))))","v":"null"},{"$f":"IF($CF$3=\"利用する\",\"null\",IF(ISERROR(VLOOKUP($S19,変換!$G:$H,2,FALSE)=\"\"),\"null\",VLOOKUP($S19,変換!$G:$H,2,FALSE)))","v":"null"},"null",true,true,true,true,false,false,false,null,"","","","",null,"",null,"0",null,{"$f":"IF(ISERROR(VLOOKUP(端末SIM情報!$CW19,料金プランMVNO!H:I,2,FALSE)),\"\",VLOOKUP(端末SIM情報!$CW19,料金プランMVNO!H:I,2,FALSE))","v":""}]
[10,null,null,null,null,null,null,null,null,null,null,null,null,null,null,null,null,null,null,null,null,null,null,null,null,null,null,null,null,null,null,null,null,null,null,null,null,null,null,null,null,null,null,null,null,null,null,null,"",null,null,null,null,null,null,null,null,null,{"$f":"IF(ISERROR(VLOOKUP($CU20,変換!$J:$K,2,FALSE)=\"\"),\"\",VLOOKUP($CU20,変換!$J:$K,2,FALSE))","v":""},null,null,null,null,null,{"$f":"IF(ISERROR(VLOOKUP(端末SIM情報!$CW20,料金プランMVNO!H:I,2,FALSE)),\"\",VLOOKUP(端末SIM情報!$CW20,料金プランMVNO!H:I,2,FALSE))","v":""},null,null,null,null,null,null,null,null,null,null,null,null,null,"standard1","null",{"$f":"IF($CF$3=\"利用する\",\"null\",IF($CA$6=\"まなびポケット\",\"Model5\",IF($B20=\"5G-NSA\",\"Model6\",IF($B20=\"LTE限定\",\"Model4\",IF(OR($CA$6=\"テレワーク・スタートパック\",$CA$6=\"テレワーク・スタートパック(マジックコネクトセット)\",$CA$6=\"テレワーク・スタートパック(UNO Virtualセット)\"),VLOOKUP(CONCATENATE($CD$3,$F20),変換!$A:$B,2,FALSE),IF($CA$3=11,\"Model3\",IF($CA$3=22,\"Model2\",\"null\")))))))","v":"Model2"},"－",{"$f":"IF(AND($B20=\"5G-NSA\",OR($S20=\"SIMのみ\",$S20=\"micro SIMのみ\",$S20=\"nano SIMのみ\")),\"terminalOption3\",IF($CF$3=\"利用する\",\"null\",IF($CA$6=\"まなびポケット\",\"null\",IF(ISERROR(VLOOKUP($S20,変換!$D:$E,2,FALSE)=\"\"),\"null\",IF(AND($F20=\"Unlimited\",VLOOKUP($S20,変換!$D:$E,2,FALSE)=\"terminalOption1\"),\"terminalOption3\",VLOOKUP($S20,変換!$D:$E,2,FALSE))))))","v":"null"},{"$f":"IF($CF$3=\"利用する\",\"null\",IF(ISERROR(VLOOKUP($S20,変換!$G:$H,2,FALSE)=\"\"),\"null\",VLOOKUP($S20,変換!$G:$H,2,FALSE)))","v":"null"},"null",true,true,true,true,false,false,false,null,"","","","",null,"",null,"0",null,{"$f":"IF(ISERROR(VLOOKUP(端末SIM情報!$CW20,料金プランMVNO!H:I,2,FALSE)),\"\",VLOOKUP(端末SIM情報!$CW20,料金プランMVNO!H:I,2,FALSE))","v":""}]

{"sheet":"クラウドプロキシ個別設定情報","index":3,"n_rows":44,"n_cols":59,"rows_kept":44,"cut":false,"hidden":false,"merged":[[8,0,8,1],[8,2,8,7],[8,8,8,51],[9,0,9,1],[9,2,9,7],[9,8,9,51],[1,0,2,51],[4,0,4,51],[5,0,5,51],[6,0,7,1],[6,2,6,7],[6,8,6,51],[7,2,7,7],[7,8,7,51],[12,0,12,1],[12,2,12,7],[12,8,12,51],[13,0,13,1],[13,2,13,7],[13,8,13,51],[10,0,10,1],[10,2,10,7],[10,8,10,51],[11,0,11,1],[11,2,11,7],[11,8,11,51],[16,0,16,1],[16,2,16,7],[16,8,16,51],[17,0,17,1],[17,2,17,7],[17,8,17,51],[14,0,14,1],[14,2,14,7],[14,8,14,51],[15,0,15,1],[15,2,15,7],[15,8,15,51],[21,0,21,1],[21,2,21,7],[21,8,21,51],[22,0,22,1],[22,2,22,7],[22,8,22,51],[18,0,18,51],[19,0,20,1],[19,2,19,7],[19,8,19,51],[20,2,20,7],[20,8,20,51],[25,0,25,1],[25,2,25,7],[25,8,25,51],[26,0,26,1],[26,2,26,7],[26,8,26,51],[23,0,23,1],[23,2,23,7],[23,8,23,51],[24,0,24,1],[24,2,24,7],[24,8,24,51],[29,0,29,1],[29,2,29,7],[29,8,29,51],[30,0,30,1],[30,2,30,7],[30,8,30,51],[27,0,27,1],[27,2,27,7],[27,8,27,51],[28,0,28,1],[28,2,28,7],[28,8,28,51],[34,0,34,1],[34,2,34,7],[34,8,34,51],[35,0,35,1],[35,2,35,7],[35,8,35,51],[31,0,31,51],[32,0,33,1],[32,2,32,7],[32,8,32,51],[33,2,33,7],[33,8,33,51],[38,0,38,1],[38,2,38,7],[38,8,38,51],[39,0,39,1],[39,2,39,7],[39,8,39,51],[36,0,36,1],[36,2,36,7],[36,8,36,51],[37,0,37,1],[37,2,37,7],[37,8,37,51],[42,0,42,1],[42,2,42,7],[42,8,42,51],[43,0,43,1],[43,2,43,7],[43,8,43,51],[40,0,40,1],[40,2,40,7],[40,8,40,51],[41,0,41,1],[41,2,41,7],[41,8,41,51]]}
[null,null,null,null,null,null,null,null,null,null,null,null,null,null,null,null,null,null,null,null,null,null,null,null,null,null,null,null,null,null,null,null,null,null,null,null,null,null,null,null,null,null,null,null,null,null,null,null,null,null,null,{"$f":"基本情報!$AZ$1","v":"Ver.1.11A(2023/12/18)"}]
[{"$f":"基本情報!$A$3","v":"第６種オープンコンピュータ通信網サービス　契約申込書\nOCN モバイル ONE for Business"}]
[]
[]
["クラウドプロキシ個別設定情報",null,null,null,null,null,null,null,null,null,null,null,null,null,null,null,null,null,null,null,null,null,null,null,null,null,null,null,null,null,null,null,null,null,null,null,null,null,null,null,null,null,null,null,null,null,null,null,null,null,null,null,null,null,null,"リスト","条件付き書式","リスト2","条件付き書式2"]
["URLフィルタリング",null,null,null,null,null,null,null,null,null,null,null,null,null,null,null,null,null,null,null,null,null,null,null,null,null,null,null,null,null,null,null,null,null,null,null,null,null,null,null,null,null,null,null,null,null,null,null,null,null,null,null,null,null,null,"－","－","－","－"]
["No",null,"制御",null,null,null,null,null,"URLフィルタリング",null,null,null,null,null,null,null,null,null,null,null,null,null,null,null,null,null,null,null,null,null,null,null,null,null,null,null,null,null,null,null,null,null,null,null,null,null,null,null,null,null,null,null,null,null,null,"－","－","－","－"]
[null,null,"選択してください",null,null,null,null,null,"URLまたはFQDN形式でご記入ください。",null,null,null,null,null,null,null,null,null,null,null,null,null,null,null,null,null,null,null,null,null,null,null,null,null,null,null,null,null,null,null,null,null,null,null,null,null,null,null,null,null,null,null,null,null,null,"－","－","－","－"]
["1",null,null,null,null,null,null,null,null,null,null,null,null,null,null,null,null,null,null,null,null,null,null,null,null,null,null,null,null,null,null,null,null,null,null,null,null,null,null,null,null,null,null,null,null,null,null,null,null,null,null,null,null,null,null,"list_setting",{"$f":"AND(基本情報2!$BE$11=TRUE,基本情報2!$N$11<>\"利用しない\")","v":true},"－","－"]
["2",null,null,null,null,null,null,null,null,null,null,null,null,null,null,null,null,null,null,null,null,null,null,null,null,null,null,null,null,null,null,null,null,null,null,null,null,null,null,null,null,null,null,null,null,null,null,null,null,null,null,null,null,null,null,"list_setting",{"$f":"$BE$9","v":true},"－","－"]
["3",null,null,null,null,null,null,null,null,null,null,null,null,null,null,null,null,null,null,null,null,null,null,null,null,null,null,null,null,null,null,null,null,null,null,null,null,null,null,null,null,null,null,null,null,null,null,null,null,null,null,null,null,null,null,"list_setting",{"$f":"$BE$9","v":true},"－","－"]
["4",null,null,null,null,null,null,null,null,null,null,null,null,null,null,null,null,null,null,null,null,null,null,null,null,null,null,null,null,null,null,null,null,null,null,null,null,null,null,null,null,null,null,null,null,null,null,null,null,null,null,null,null,null,null,"list_setting",true,"－","－"]
["5",null,null,null,null,null,null,null,null,null,null,null,null,null,null,null,null,null,null,null,null,null,null,null,null,null,null,null,null,null,null,null,null,null,null,null,null,null,null,null,null,null,null,null,null,null,null,null,null,null,null,null,null,null,null,"list_setting",true,"－","－"]
["6",null,null,null,null,null,null,null,null,null,null,null,null,null,null,null,null,null,null,null,null,null,null,null,null,null,null,null,null,null,null,null,null,null,null,null,null,null,null,null,null,null,null,null,null,null,null,null,null,null,null,null,null,null,null,"list_setting",true,"－","－"]
["7",null,null,null,null,null,null,null,null,null,null,null,null,null,null,null,null,null,null,null,null,null,null,null,null,null,null,null,null,null,null,null,null,null,null,null,null,null,null,null,null,null,null,null,null,null,null,null,null,null,null,null,null,null,null,"list_setting",true,"－","－"]
["8",null,null,null,null,null,null,null,null,null,null,null,null,null,null,null,null,null,null,null,null,null,null,null,null,null,null,null,null,null,null,null,null,null,null,null,null,null,null,null,null,null,null,null,null,null,null,null,null,null,null,null,null,null,null,"list_setting",true,"－","－"]
["9",null,null,null,null,null,null,null,null,null,null,null,null,null,null,null,null,null,null,null,null,null,null,null,null,null,null,null,null,null,null,null,null,null,null,null,null,null,null,null,null,null,null,null,null,null,null,null,null,null,null,null,null,null,null,"list_setting",true,"－","－"]
["10",null,null,null,null,null,null,null,null,null,null,null,null,null,null,null,null,null,null,null,null,null,null,null,null,null,null,null,null,null,null,null,null,null,null,null,null,null,null,null,null,null,null,null,null,null,null,null,null,null,null,null,null,null,null,"list_setting",true,"－","－"]
["SSLインスペクション",null,null,null,null,null,null,null,null,null,null,null,null,null,null,null,null,null,null,null,null,null,null,null,null,null,null,null,null,null,null,null,null,null,null,null,null,null,null,null,null,null,null,null,null,null,null,null,null,null,null,null,null,null,null,"－","－","－","－"]
["No",null,"制御",null,null,null,null,null,"SSLインスペクション",null,null,null,null,null,null,null,null,null,null,null,null,null,null,null,null,null,null,null,null,null,null,null,null,null,null,null,null,null,null,null,null,null,null,null,null,null,null,null,null,null,null,null,null,null,null,"－","－","－","－"]
[null,null,"選択してください",null,null,null,null,null,"URLまたはFQDN形式でご記入ください。",null,null,null,null,null,null,null,null,null,null,null,null,null,null,null,null,null,null,null,null,null,null,null,null,null,null,null,null,null,null,null,null,null,null,null,null,null,null,null,null,null,null,null,null,null,null,"－","－","－","－"]
["1",null,null,null,null,null,null,null,null,null,null,null,null,null,null,null,null,null,null,null,null,null,null,null,null,null,null,null,null,null,null,null,null,null,null,null,null,null,null,null,null,null,null,null,null,null,null,null,null,null,null,null,null,null,null,"list_setting",true,"－","－"]
["2",null,null,null,null,null,null,null,null,null,null,null,null,null,null,null,null,null,null,null,null,null,null,null,null,null,null,null,null,null,null,null,null,null,null,null,null,null,null,null,null,null,null,null,null,null,null,null,null,null,null,null,null,null,null,"list_setting",true,"－","－"]
["3",null,null,null,null,null,null,null,null,null,null,null,null,null,null,null,null,null,null,null,null,null,null,null,null,null,null,null,null,null,null,null,null,null,null,null,null,null,null,null,null,null,null,null,null,null,null,null,null,null,null,null,null,null,null,"list_setting",true,"－","－"]
["4",null,null,null,null,null,null,null,null,null,null,null,null,null,null,null,null,null,null,null,null,null,null,null,null,null,null,null,null,null,null,null,null,null,null,null,null,null,null,null,null,null,null,null,null,null,null,null,null,null,null,null,null,null,null,"list_setting",true,"－","－"]
["5",null,null,null,null,null,null,null,null,null,null,null,null,null,null,null,null,null,null,null,null,null,null,null,null,null,null,null,null,null,null,null,null,null,null,null,null,null,null,null,null,null,null,null,null,null,null,null,null,null,null,null,null,null,null,"list_setting",true,"－","－"]
["6",null,null,null,null,null,null,null,null,null,null,null,null,null,null,null,null,null,null,null,null,null,null,null,null,null,null,null,null,null,null,null,null,null,null,null,null,null,null,null,null,null,null,null,null,null,null,null,null,null,null,null,null,null,null,"list_setting",true,"－","－"]
["7",null,null,null,null,null,null,null,null,null,null,null,null,null,null,null,null,null,null,null,null,null,null,null,null,null,null,null,null,null,null,null,null,null,null,null,null,null,null,null,null,null,null,null,null,null,null,null,null,null,null,null,null,null,null,"list_setting",true,"－","－"]
["8",null,null,null,null,null,null,null,null,null,null,null,null,null,null,null,null,null,null,null,null,null,null,null,null,null,null,null,null,null,null,null,null,null,null,null,null,null,null,null,null,null,null,null,null,null,null,null,null,null,null,null,null,null,null,"list_setting",true,"－","－"]
["9",null,null,null,null,null,null,null,null,null,null,null,null,null,null,null,null,null,null,null,null,null,null,null,null,null,null,null,null,null,null,null,null,null,null,null,null,null,null,null,null,null,null,null,null,null,null,null,null,null,null,null,null,null,null,"list_setting",true,"－","－"]
["10",null,null,null,null,null,null,null,null,null,null,null,null,null,null,null,null,null,null,null,null,null,null,null,null,null,null,null,null,null,null,null,null,null,null,null,null,null,null,null,null,null,null,null,null,null,null,null,null,null,null,null,null,null,null,"list_setting",true,"－","－"]
["DNSフィルタリング",null,null,null,null,null,null,null,null,null,null,null,null,null,null,null,null,null,null,null,null,null,null,null,null,null,null,null,null,null,null,null,null,null,null,null,null,null,null,null,null,null,null,null,null,null,null,null,null,null,null,null,null,null,null,"－","－","－","－"]
["No",null,"制御",null,null,null,null,null,"DNSフィルタリング",null,null,null,null,null,null,null,null,null,null,null,null,null,null,null,null,null,null,null,null,null,null,null,null,null,null,null,null,null,null,null,null,null,null,null,null,null,null,null,null,null,null,null,null,null,null,"－","－","－","－"]
[null,null,"選択してください",null,null,null,null,null,"FQDN形式でご記入ください。",null,null,null,null,null,null,null,null,null,null,null,null,null,null,null,null,null,null,null,null,null,null,null,null,null,null,null,null,null,null,null,null,null,null,null,null,null,null,null,null,null,null,null,null,null,null,"－","－","－","－"]
["1",null,null,null,null,null,null,null,null,null,null,null,null,null,null,null,null,null,null,null,null,null,null,null,null,null,null,null,null,null,null,null,null,null,null,null,null,null,null,null,null,null,null,null,null,null,null,null,null,null,null,null,null,null,null,"list_setting",true,"－","－"]
["2",null,null,null,null,null,null,null,null,null,null,null,null,null,null,null,null,null,null,null,null,null,null,null,null,null,null,null,null,null,null,null,null,null,null,null,null,null,null,null,null,null,null,null,null,null,null,null,null,null,null,null,null,null,null,"list_setting",true,"－","－"]
["3",null,null,null,null,null,null,null,null,null,null,null,null,null,null,null,null,null,null,null,null,null,null,null,null,null,null,null,null,null,null,null,null,null,null,null,null,null,null,null,null,null,null,null,null,null,null,null,null,null,null,null,null,null,null,"list_setting",true,"－","－"]
["4",null,null,null,null,null,null,null,null,null,null,null,null,null,null,null,null,null,null,null,null,null,null,null,null,null,null,null,null,null,null,null,null,null,null,null,null,null,null,null,null,null,null,null,null,null,null,null,null,null,null,null,null,null,null,"list_setting",true,"－","－"]
["5",null,null,null,null,null,null,null,null,null,null,null,null,null,null,null,null,null,null,null,null,null,null,null,null,null,null,null,null,null,null,null,null,null,null,null,null,null,null,null,null,null,null,null,null,null,null,null,null,null,null,null,null,null,null,"list_setting",true,"－","－"]
["6",null,null,null,null,null,null,null,null,null,null,null,null,null,null,null,null,null,null,null,null,null,null,null,null,null,null,null,null,null,null,null,null,null,null,null,null,null,null,null,null,null,null,null,null,null,null,null,null,null,null,null,null,null,null,"list_setting",true,"－","－"]
["7",null,null,null,null,null,null,null,null,null,null,null,null,null,null,null,null,null,null,null,null,null,null,null,null,null,null,null,null,null,null,null,null,null,null,null,null,null,null,null,null,null,null,null,null,null,null,null,null,null,null,null,null,null,null,"list_setting",true,"－","－"]
["8",null,null,null,null,null,null,null,null,null,null,null,null,null,null,null,null,null,null,null,null,null,null,null,null,null,null,null,null,null,null,null,null,null,null,null,null,null,null,null,null,null,null,null,null,null,null,null,null,null,null,null,null,null,null,"list_setting",true,"－","－"]
["9",null,null,null,null,null,null,null,null,null,null,null,null,null,null,null,null,null,null,null,null,null,null,null,null,null,null,null,null,null,null,null,null,null,null,null,null,null,null,null,null,null,null,null,null,null,null,null,null,null,null,null,null,null,null,"list_setting",true,"－","－"]
["10",null,null,null,null,null,null,null,null,null,null,null,null,null,null,null,null,null,null,null,null,null,null,null,null,null,null,null,null,null,null,null,null,null,null,null,null,null,null,null,null,null,null,null,null,null,null,null,null,null,null,null,null,null,null,"list_setting",true,"－","－"]

{"sheet":"list","index":4,"n_rows":362,"n_cols":6,"rows_kept":362,"cut":false,"hidden":true,"merged":[]}
[null,"■リスト値一覧"]
[]
[null,"リスト名","名前定義","リスト値","備考","メモ"]
[null,"お申込み種別","ordertype","新設"]
[null,"お申込み種別","ordertype","端末追加"]
[null,"認証方式","authenticMethod","個別ID","-"]
[null,"認証方式","authenticMethod","共通ID","-"]
[null,"サービスメニュー","serviceMenu_1","総量規制サービス"]
[null,"サービスメニュー","serviceMenu_1","テレワーク・スタートパック"]
[null,"サービスメニュー","serviceMenu_1","テレワーク・スタートパック(マジックコネクトセット)"]
[null,"サービスメニュー","serviceMenu_1","速度上限サービス"]
[null,"サービスメニュー","serviceMenu_1","まなびポケット"]
[null,"サービスメニュー","serviceMenu_1","テレワーク・スタートパック(UNO Virtualセット)",null,"2023年2Q改版で削除（サービス終了のため）"]
[null,"サービスメニュー","serviceMenu_2","総量規制サービス"]
[null,"サービスメニュー","serviceMenu_2","テレワーク・スタートパック"]
[null,"サービスメニュー","serviceMenu_2","テレワーク・スタートパック(マジックコネクトセット)"]
[null,"サービスメニュー","serviceMenu_2","速度上限サービス"]
[null,"サービスメニュー","serviceMenu_2","テレワーク・スタートパック(UNO Virtualセット)",null,"2023年2Q改版で削除（サービス終了のため）"]
[null,null,"serviceMenu_3","総量規制サービス"]
[null,null,"serviceMenu_3","速度上限サービス"]
[null,"技術担当者連絡先コピーリスト","nwTechnologyCopylist","お申込みに関する連絡先と同じ"]
[null,"技術担当者連絡先コピーリスト","nwTechnologyCopylist","次のとおり"]
[null,"支払方法","paymentOption","請求書によるお支払"]
[null,"支払方法","paymentOption","既契約のお支払情報と同一にする"]
[null,"毎月の利用料の請求先コピーリスト","billMailingCopylist","ご契約者住所と同じ"]
[null,"毎月の利用料の請求先コピーリスト","billMailingCopylist","次のとおり"]
[null,"ご利用案内の送付先コピーリスト","kaianMailingAddressCopylist_1","ご契約者住所と同じ"]
[null,"ご利用案内の送付先コピーリスト","kaianMailingAddressCopylist_1","毎月の利用料の請求先と同じ"]
[null,"ご利用案内の送付先コピーリスト","kaianMailingAddressCopylist_1","次のとおり"]
[null,null,"kaianMailingAddressCopylist_2","ご契約者住所と同じ"]
[null,null,"kaianMailingAddressCopylist_2","次のとおり"]
[null,"ＩＤ/パスワード通知送付先コピーリスト","MeisaiAddressCopylist_1","ご契約者住所と同じ"]
[null,"ＩＤ/パスワード通知送付先コピーリスト","MeisaiAddressCopylist_1","毎月の利用料の請求先と同じ"]
[null,"ＩＤ/パスワード通知送付先コピーリスト","MeisaiAddressCopylist_1","ご利用案内の送付先住所と同じ"]
[null,"ＩＤ/パスワード通知送付先コピーリスト","MeisaiAddressCopylist_1","次のとおり"]
[null,"ＩＤ/パスワード通知送付先コピーリスト","MeisaiAddressCopylist_2","ご契約者住所と同じ"]
[null,"ＩＤ/パスワード通知送付先コピーリスト","MeisaiAddressCopylist_2","毎月の利用料の請求先と同じ"]
[null,"ＩＤ/パスワード通知送付先コピーリスト","MeisaiAddressCopylist_2","次のとおり"]
[null,"ＩＤ/パスワード通知送付先コピーリスト","MeisaiAddressCopylist_3","ご契約者住所と同じ"]
[null,"ＩＤ/パスワード通知送付先コピーリスト","MeisaiAddressCopylist_3","ご利用案内の送付先住所と同じ"]
[null,"ＩＤ/パスワード通知送付先コピーリスト","MeisaiAddressCopylist_3","次のとおり"]
[null,"ＩＤ/パスワード通知送付先コピーリスト","MeisaiAddressCopylist_4","ご契約者住所と同じ"]
[null,"ＩＤ/パスワード通知送付先コピーリスト","MeisaiAddressCopylist_4","次のとおり"]
[null,"付加サービス","option","利用する"]
[null,"付加サービス","option","利用しない"]
[null,"付加サービス","option_2","利用しない"]
[null,"端末送付先コピーリスト","terminalDeliveryCopylist_1","ご契約者住所と同じ"]
[null,"端末送付先コピーリスト","terminalDeliveryCopylist_1","毎月の利用料の請求先と同じ"]
[null,"端末送付先コピーリスト","terminalDeliveryCopylist_1","ご利用案内の送付先住所と同じ"]
[null,"端末送付先コピーリスト","terminalDeliveryCopylist_1","料金明細サイト閲覧用ID/パスワード通知先と同じ"]
[null,"端末送付先コピーリスト","terminalDeliveryCopylist_1","次のとおり"]
[null,"端末送付先コピーリスト","terminalDeliveryCopylist_2","ご契約者住所と同じ"]
[null,"端末送付先コピーリスト","terminalDeliveryCopylist_2","毎月の利用料の請求先と同じ"]
[null,"端末送付先コピーリスト","terminalDeliveryCopylist_2","ご利用案内の送付先住所と同じ"]
[null,"端末送付先コピーリスト","terminalDeliveryCopylist_2","次のとおり"]
[null,"端末送付先コピーリスト","terminalDeliveryCopylist_3","ご契約者住所と同じ"]
[null,"端末送付先コピーリスト","terminalDeliveryCopylist_3","毎月の利用料の請求先と同じ"]
[null,"端末送付先コピーリスト","terminalDeliveryCopylist_3","料金明細サイト閲覧用ID/パスワード通知先と同じ"]
[null,"端末送付先コピーリスト","terminalDeliveryCopylist_3","次のとおり"]
[null,"端末送付先コピーリスト","terminalDeliveryCopylist_4","ご契約者住所と同じ"]
[null,"端末送付先コピーリスト","terminalDeliveryCopylist_4","ご利用案内の送付先住所と同じ"]
[null,"端末送付先コピーリスト","terminalDeliveryCopylist_4","料金明細サイト閲覧用ID/パスワード通知先と同じ"]
[null,"端末送付先コピーリスト","terminalDeliveryCopylist_4","次のとおり"]
[null,"端末送付先コピーリスト","terminalDeliveryCopylist_5","ご契約者住所と同じ"]
[null,"端末送付先コピーリスト","terminalDeliveryCopylist_5","毎月の利用料の請求先と同じ"]
[null,"端末送付先コピーリスト","terminalDeliveryCopylist_5","次のとおり"]
[null,"端末送付先コピーリスト","terminalDeliveryCopylist_6","ご契約者住所と同じ"]
[null,"端末送付先コピーリスト","terminalDeliveryCopylist_6","ご利用案内の送付先住所と同じ"]
[null,"端末送付先コピーリスト","terminalDeliveryCopylist_6","次のとおり"]
[null,"端末送付先コピーリスト","terminalDeliveryCopylist_7","ご契約者住所と同じ"]
[null,"端末送付先コピーリスト","terminalDeliveryCopylist_7","料金明細サイト閲覧用ID/パスワード通知先と同じ"]
[null,"端末送付先コピーリスト","terminalDeliveryCopylist_7","次のとおり"]
[null,"端末送付先コピーリスト","terminalDeliveryCopylist_8","ご契約者住所と同じ"]
[null,"端末送付先コピーリスト","terminalDeliveryCopylist_8","次のとおり"]
[null,"回線種別","customerDivision","法人"]
[null,"回線種別","customerDivision","個人"]
[null,"回線種別","customerDivision","外国公館等"]
[null,"回線種別","customerDivision","国・地方自治体"]
[null,"回線種別","customerDivision","業務用"]
[null,"料金に関する留意事項","individuallyChargeType","相対申込有"]
[null,"料金に関する留意事項","individuallyChargeType","型紙申込有"]
[null,"料金に関する留意事項","individuallyChargeType","無"]
[null,"アクセス方式","standard1","5G-NSA",null,"2022年3Q：追加"]
[null,null,null,"LTE",null,"2022年3Q：3G/LTE ⇒ LTE へ変更"]
[null,"規格","standard","LTE限定",null,"2022年3Q：削除"]
[null,null,"standard2","LTE",null,"2022年3Q：3G/LTE ⇒ LTE へ変更"]
[null,"SMS/国際ローミング","terminalOption1","有"]
[null,"SMS/国際ローミング","terminalOption1","無"]
[null,"SMS/国際ローミング","terminalOption2","有"]
[null,"SMS/国際ローミング","terminalOption3","無",null,"2022年3Q：追加"]
[null,"コース","-(全量のため。設定用のリスト値はcourse1~参照)","1GBバリュー",null,"2023年2Q：追加"]
[null,"コース","-(全量のため。設定用のリスト値はcourse1~参照)","3GBバリュー",null,"2023年2Q：追加"]
[null,"コース","-(全量のため。設定用のリスト値はcourse1~参照)","7GBバリュー",null,"2023年2Q：追加"]
[null,"コース","-(全量のため。設定用のリスト値はcourse1~参照)","10GBバリュー",null,"2022年3Q：追加、2022年4Q：末尾に「バリュー」の文言を追加"]
[null,"コース","-(全量のため。設定用のリスト値はcourse1~参照)","15GBバリュー",null,"2022年3Q：追加、2022年4Q：末尾に「バリュー」の文言を追加"]
[null,"コース","-(全量のため。設定用のリスト値はcourse1~参照)","20GBバリュー",null,"2022年3Q：追加、2022年4Q：末尾に「バリュー」の文言を追加"]
[null,"コース","-(全量のため。設定用のリスト値はcourse1~参照)","30GBバリュー",null,"2022年3Q：追加、2022年4Q：末尾に「バリュー」の文言を追加"]
[null,"コース","-(全量のため。設定用のリスト値はcourse1~参照)","50GBバリュー",null,"2022年3Q：追加、2022年4Q：末尾に「バリュー」の文言を追加"]
[null,"コース","-(全量のため。設定用のリスト値はcourse1~参照)","1GB",null,"2023年2Q：表示位置変更"]
[null,"コース","-(全量のため。設定用のリスト値はcourse1~参照)","3GB",null,"2023年2Q：表示位置変更"]
[null,"コース","-(全量のため。設定用のリスト値はcourse1~参照)","7GB",null,"2023年2Q：表示位置変更"]
[null,"コース","-(全量のため。設定用のリスト値はcourse1~参照)","200kbps"]
[null,"コース","-(全量のため。設定用のリスト値はcourse1~参照)","30MBプラス"]
[null,"コース","-(全量のため。設定用のリスト値はcourse1~参照)","テレワーク1GB_3年リース",null,"2022.4Q追加"]
[null,"コース","-(全量のため。設定用のリスト値はcourse1~参照)","テレワーク3GB_3年リース",null,"2022.4Q追加"]
[null,"コース","-(全量のため。設定用のリスト値はcourse1~参照)","テレワーク7GB_3年リース",null,"2022.4Q追加"]
[null,"コース","-(全量のため。設定用のリスト値はcourse1~参照)","テレワーク10GB_3年リース",null,"2022.4Q追加"]
[null,"コース","-(全量のため。設定用のリスト値はcourse1~参照)","テレワーク20GB_3年リース",null,"2022.4Q追加"]
[null,"コース","-(全量のため。設定用のリスト値はcourse1~参照)","テレワーク30GB_3年リース",null,"2022.4Q追加"]
[null,"コース","-(全量のため。設定用のリスト値はcourse1~参照)","テレワーク50GB_3年リース",null,"2022.4Q追加"]
[null,"コース","-(全量のため。設定用のリスト値はcourse1~参照)","テレワーク1GB_1年"]
[null,"コース","-(全量のため。設定用のリスト値はcourse1~参照)","テレワーク3GB_1年"]
[null,"コース","-(全量のため。設定用のリスト値はcourse1~参照)","テレワーク7GB_1年"]
[null,"コース","-(全量のため。設定用のリスト値はcourse1~参照)","テレワーク10GB_1年"]
[null,"コース","-(全量のため。設定用のリスト値はcourse1~参照)","テレワーク20GB_1年"]
[null,"コース","-(全量のため。設定用のリスト値はcourse1~参照)","テレワーク30GB_1年"]
[null,"コース","-(全量のため。設定用のリスト値はcourse1~参照)","テレワーク50GB_1年"]
[null,"コース","-(全量のため。設定用のリスト値はcourse1~参照)","テレワーク2in1_1GB_1年"]
[null,"コース","-(全量のため。設定用のリスト値はcourse1~参照)","テレワーク2in1_3GB_1年"]
[null,"コース","-(全量のため。設定用のリスト値はcourse1~参照)","テレワーク2in1_7GB_1年"]
[null,"コース","-(全量のため。設定用のリスト値はcourse1~参照)","テレワーク2in1_10GB_1年"]
[null,"コース","-(全量のため。設定用のリスト値はcourse1~参照)","テレワーク2in1_20GB_1年"]
[null,"コース","-(全量のため。設定用のリスト値はcourse1~参照)","テレワーク2in1_30GB_1年"]
[null,"コース","-(全量のため。設定用のリスト値はcourse1~参照)","テレワーク2in1_50GB_1年"]
[null,"コース","-(全量のため。設定用のリスト値はcourse1~参照)","テレワーク3GB+1GB_3年"]
[null,"コース","-(全量のため。設定用のリスト値はcourse1~参照)","テレワーク7GB+1GB_3年"]
[null,"コース","-(全量のため。設定用のリスト値はcourse1~参照)","テレワーク2in1_3GB+1GB_3年"]
[null,"コース","-(全量のため。設定用のリスト値はcourse1~参照)","テレワーク2in1_7GB+1GB_3年"]
[null,"コース","-(全量のため。設定用のリスト値はcourse1~参照)","テレワーク1GB_1年(UNO Virtual)",null,"2023年2Q改版で削除（サービス終了のため）"]
[null,"コース","-(全量のため。設定用のリスト値はcourse1~参照)","テレワーク3GB_1年(UNO Virtual)",null,"2023年2Q改版で削除（サービス終了のため）"]
[null,"コース","-(全量のため。設定用のリスト値はcourse1~参照)","テレワーク7GB_1年(UNO Virtual)",null,"2023年2Q改版で削除（サービス終了のため）"]
[null,"コース","-(全量のため。設定用のリスト値はcourse1~参照)","テレワーク10GB_1年(UNO Virtual)",null,"2023年2Q改版で削除（サービス終了のため）"]
[null,"コース","-(全量のため。設定用のリスト値はcourse1~参照)","テレワーク20GB_1年(UNO Virtual)",null,"2023年2Q改版で削除（サービス終了のため）"]
[null,"コース","-(全量のため。設定用のリスト値はcourse1~参照)","テレワーク30GB_1年(UNO Virtual)",null,"2023年2Q改版で削除（サービス終了のため）"]
[null,"コース","-(全量のため。設定用のリスト値はcourse1~参照)","テレワーク50GB_1年(UNO Virtual)",null,"2023年2Q改版で削除（サービス終了のため）"]
[null,"コース","-(全量のため。設定用のリスト値はcourse1~参照)","テレワーク2in1_1GB_1年(UNO Virtual)",null,"2023年2Q改版で削除（サービス終了のため）"]
[null,"コース","-(全量のため。設定用のリスト値はcourse1~参照)","テレワーク2in1_3GB_1年(UNO Virtual)",null,"2023年2Q改版で削除（サービス終了のため）"]
[null,"コース","-(全量のため。設定用のリスト値はcourse1~参照)","テレワーク2in1_7GB_1年(UNO Virtual)",null,"2023年2Q改版で削除（サービス終了のため）"]
[null,"コース","-(全量のため。設定用のリスト値はcourse1~参照)","テレワーク2in1_10GB_1年(UNO Virtual)",null,"2023年2Q改版で削除（サービス終了のため）"]
[null,"コース","-(全量のため。設定用のリスト値はcourse1~参照)","テレワーク2in1_20GB_1年(UNO Virtual)",null,"2023年2Q改版で削除（サービス終了のため）"]
[null,"コース","-(全量のため。設定用のリスト値はcourse1~参照)","テレワーク2in1_30GB_1年(UNO Virtual)",null,"2023年2Q改版で削除（サービス終了のため）"]
[null,"コース","-(全量のため。設定用のリスト値はcourse1~参照)","テレワーク2in1_50GB_1年(UNO Virtual)",null,"2023年2Q改版で削除（サービス終了のため）"]
[null,"コース","-(全量のため。設定用のリスト値はcourse1~参照)","テレワーク1GB_1年(マジックコネクト)"]
[null,"コース","-(全量のため。設定用のリスト値はcourse1~参照)","テレワーク3GB_1年(マジックコネクト)"]
[null,"コース","-(全量のため。設定用のリスト値はcourse1~参照)","テレワーク7GB_1年(マジックコネクト)"]
[null,"コース","-(全量のため。設定用のリスト値はcourse1~参照)","テレワーク10GB_1年(マジックコネクト)"]
[null,"コース","-(全量のため。設定用のリスト値はcourse1~参照)","テレワーク20GB_1年(マジックコネクト)"]
[null,"コース","-(全量のため。設定用のリスト値はcourse1~参照)","テレワーク30GB_1年(マジックコネクト)"]
[null,"コース","-(全量のため。設定用のリスト値はcourse1~参照)","テレワーク50GB_1年(マジックコネクト)"]
[null,"コース","-(全量のため。設定用のリスト値はcourse1~参照)","テレワーク2in1_1GB_1年(マジックコネクト)"]
[null,"コース","-(全量のため。設定用のリスト値はcourse1~参照)","テレワーク2in1_3GB_1年(マジックコネクト)"]
[null,"コース","-(全量のため。設定用のリスト値はcourse1~参照)","テレワーク2in1_7GB_1年(マジックコネクト)"]
[null,"コース","-(全量のため。設定用のリスト値はcourse1~参照)","テレワーク2in1_10GB_1年(マジックコネクト)"]
[null,"コース","-(全量のため。設定用のリスト値はcourse1~参照)","テレワーク2in1_20GB_1年(マジックコネクト)"]
[null,"コース","-(全量のため。設定用のリスト値はcourse1~参照)","テレワーク2in1_30GB_1年(マジックコネクト)"]
[null,"コース","-(全量のため。設定用のリスト値はcourse1~参照)","テレワーク2in1_50GB_1年(マジックコネクト)"]
[null,"コース","-(全量のため。設定用のリスト値はcourse1~参照)","まなびポケット3GB"]
[null,"コース","-(全量のため。設定用のリスト値はcourse1~参照)","Unlimited"]
[null,"コース","-(全量のため。設定用のリスト値はcourse1~参照)","5GB",null,"2022年3Q：削除"]
[null,"コース","-(全量のため。設定用のリスト値はcourse1~参照)","10GB",null,"2022年3Q：削除（並び順を約款対象の位置へ変更）"]
[null,"コース","-(全量のため。設定用のリスト値はcourse1~参照)","60MBプラス",null,"2022年3Q：削除"]
[null,"コース","course1","1GB","ビジパク利用時"]
[null,"コース","course1","3GB"]
[null,"コース","course1","7GB"]
[null,"コース","course2","1GBバリュー","新設／共通ID／総量規制／約款対象外フラグがOff（22）の時","2023年2Q：追加"]
[null,"コース","course2","3GBバリュー",null,"2023年2Q：追加"]
[null,"コース","course2","7GBバリュー",null,"2023年2Q：追加"]
[null,"コース","course2","10GBバリュー"]
[null,"コース","course2","15GBバリュー"]
[null,"コース","course2","20GBバリュー"]
[null,"コース","course2","30GBバリュー"]
[null,"コース","course2","50GBバリュー"]
[null,"コース","course2","30MBプラス"]
[null,"コース","course2","1GB"]
[null,"コース","course2","3GB"]
[null,"コース","course2","7GB"]
[null,"コース","course3","Unlimited","総量規制：約款対象外フラグがON（11）の時"]
[null,"コース","course3","5GB",null,"2022年3Q：削除"]
[null,"コース","course3","60MBプラス",null,"2022年3Q：削除"]
[null,"コース","course3","10GB",null,"2022年3Q：削除（約款対象へ仕様変更の為）"]
[null,"コース","course4","200kbps","速度上限"]
[null,"コース","course5","テレワーク1GB_1年","テレワーク：約款対象外フラグがOff（22）の時"]
[null,"コース","course5","テレワーク3GB_1年"]
[null,"コース","course5","テレワーク7GB_1年"]
[null,"コース","course5","テレワーク10GB_1年"]
[null,"コース","course5","テレワーク20GB_1年"]
[null,"コース","course5","テレワーク30GB_1年"]
[null,"コース","course5","テレワーク50GB_1年"]
[null,"コース","course5","テレワーク2in1_1GB_1年"]
[null,"コース","course5","テレワーク2in1_3GB_1年"]
[null,"コース","course5","テレワーク2in1_7GB_1年"]
[null,"コース","course5","テレワーク2in1_10GB_1年"]
[null,"コース","course5","テレワーク2in1_20GB_1年"]
[null,"コース","course5","テレワーク2in1_30GB_1年"]
[null,"コース","course5","テレワーク2in1_50GB_1年"]
[null,"コース","course6","テレワーク3GB+1GB_3年","テレワーク：：約款対象外フラグがON（11）の時"]
[null,"コース","course6","テレワーク7GB+1GB_3年","※リース以外"]
[null,"コース","course6","テレワーク2in1_3GB+1GB_3年"]
[null,"コース","course6","テレワーク2in1_7GB+1GB_3年"]
[null,"コース","course7","まなびポケット3GB","まなびの時"]
[null,"コース","course8","テレワーク1GB_1年(マジックコネクト)","テレワーク(マジコネ)の時"]
[null,"コース","course8","テレワーク3GB_1年(マジックコネクト)"]
[null,"コース","course8","テレワーク7GB_1年(マジックコネクト)"]
[null,"コース","course8","テレワーク10GB_1年(マジックコネクト)"]
[null,"コース","course8","テレワーク20GB_1年(マジックコネクト)"]
[null,"コース","course8","テレワーク30GB_1年(マジックコネクト)"]
[null,"コース","course8","テレワーク50GB_1年(マジックコネクト)"]
[null,"コース","course8","テレワーク2in1_1GB_1年(マジックコネクト)"]
[null,"コース","course8","テレワーク2in1_3GB_1年(マジックコネクト)"]
[null,"コース","course8","テレワーク2in1_7GB_1年(マジックコネクト)"]
[null,"コース","course8","テレワーク2in1_10GB_1年(マジックコネクト)"]
[null,"コース","course8","テレワーク2in1_20GB_1年(マジックコネクト)"]
[null,"コース","course8","テレワーク2in1_30GB_1年(マジックコネクト)"]
[null,"コース","course8","テレワーク2in1_50GB_1年(マジックコネクト)"]
[null,"コース","course9","テレワーク1GB_1年(UNO Virtual)","テレワーク(UNOv)の時","2023年2Q改版で削除（サービス終了のため）"]
[null,"コース","course9","テレワーク3GB_1年(UNO Virtual)"]
[null,"コース","course9","テレワーク7GB_1年(UNO Virtual)"]
[null,"コース","course9","テレワーク10GB_1年(UNO Virtual)"]
[null,"コース","course9","テレワーク20GB_1年(UNO Virtual)"]
[null,"コース","course9","テレワーク30GB_1年(UNO Virtual)"]
[null,"コース","course9","テレワーク50GB_1年(UNO Virtual)"]
[null,"コース","course9","テレワーク2in1_1GB_1年(UNO Virtual)"]
[null,"コース","course9","テレワーク2in1_3GB_1年(UNO Virtual)"]
[null,"コース","course9","テレワーク2in1_7GB_1年(UNO Virtual)"]
[null,"コース","course9","テレワーク2in1_10GB_1年(UNO Virtual)"]
[null,"コース","course9","テレワーク2in1_20GB_1年(UNO Virtual)"]
[null,"コース","course9","テレワーク2in1_30GB_1年(UNO Virtual)"]
[null,"コース","course9","テレワーク2in1_50GB_1年(UNO Virtual)"]
[null,"コース","course10","1GB","個別ID／総量規制／約款対象外フラグがOff（22）の時","2022年4Qで追加した表示パターン"]
[null,"コース","course10","3GB"]
[null,"コース","course10","7GB"]
[null,"コース","course10","30MBプラス"]
[null,"コース","course11","テレワーク1GB_3年リース","テレワーク：約款対象外フラグがON（11）かつリースの時","2022年4Qで追加した表示パターン"]
[null,"コース","course11","テレワーク3GB_3年リース"]
[null,"コース","course11","テレワーク7GB_3年リース"]
[null,"コース","course11","テレワーク10GB_3年リース"]
[null,"コース","course11","テレワーク20GB_3年リース"]
[null,"コース","course11","テレワーク30GB_3年リース"]
[null,"コース","course11","テレワーク50GB_3年リース"]
[null,"コース","course12","1GBバリュー","端末追加／共通ID／総量規制／約款対象外フラグがOff（22）の時","2023年度9末対応で追加した表示パターン"]
[null,"コース","course12","3GBバリュー"]
[null,"コース","course12","7GBバリュー"]
[null,"コース","course12","10GBバリュー"]
[null,"コース","course12","15GBバリュー"]
[null,"コース","course12","20GBバリュー"]
[null,"コース","course12","30GBバリュー"]
[null,"コース","course12","50GBバリュー"]
[null,"コース","course12","1GB"]
[null,"コース","course12","3GB"]
[null,"コース","course12","7GB"]
[null,"コース","course12","30MBプラス"]
[null,"機種","-(全量のため。設定用のリスト値はModel1~参照)","SIMのみ"]
[null,"機種","-(全量のため。設定用のリスト値はModel1~参照)","micro SIMのみ"]
[null,"機種","-(全量のため。設定用のリスト値はModel1~参照)","nano SIMのみ"]
[null,"機種","-(全量のため。設定用のリスト値はModel1~参照)","MP02LN(WiFiルータータイプ)"]
[null,"機種","-(全量のため。設定用のリスト値はModel1~参照)","MP02LN(WiFiルータータイプ)あんしん保証付"]
[null,"機種","-(全量のため。設定用のリスト値はModel1~参照)","MR05LN(クレードル有)"]
[null,"機種","-(全量のため。設定用のリスト値はModel1~参照)","MR05LN(クレードル有)あんしん保証付"]
[null,"機種","-(全量のため。設定用のリスト値はModel1~参照)","UX302NC-R(USBタイプ)"]
[null,"機種","-(全量のため。設定用のリスト値はModel1~参照)","UX302NC-R(USBタイプ)あんしん保証付"]
[null,"機種","-(全量のため。設定用のリスト値はModel1~参照)","MR05LN(クレードル無)"]
[null,"機種","-(全量のため。設定用のリスト値はModel1~参照)","MR05LN(クレードル無)あんしん保証付"]
[null,"機種","-(全量のため。設定用のリスト値はModel1~参照)","テレワーク用PC_A(リース用)",null,"2022.4Q追加"]
[null,"機種","-(全量のため。設定用のリスト値はModel1~参照)","テレワーク用PC_A","-"]
[null,"機種","-(全量のため。設定用のリスト値はModel1~参照)","テレワーク用PC_2in1_A","-"]
[null,"機種","-(全量のため。設定用のリスト値はModel1~参照)","テレワーク用PC_B"]
[null,"機種","-(全量のため。設定用のリスト値はModel1~参照)","テレワーク用PC_2in1_B"]
[null,"機種","-(全量のため。設定用のリスト値はModel1~参照)","テレワーク用PC_CSTM_A"]
[null,"機種","-(全量のため。設定用のリスト値はModel1~参照)","テレワーク用PC_CSTM_B"]
[null,"機種","-(全量のため。設定用のリスト値はModel1~参照)","テレワーク用PC_CSTM_C","-"]
[null,"機種","-(全量のため。設定用のリスト値はModel1~参照)","テレワーク用PC_CSTM_D","-"]
[null,"機種","-(全量のため。設定用のリスト値はModel1~参照)","テレワーク用PC_CSTM_E"]
[null,"機種","-(全量のため。設定用のリスト値はModel1~参照)","RX220(M2Mルータータイプ)",null,"2021年4月維持対応にて追加"]
[null,"機種","-(全量のため。設定用のリスト値はModel1~参照)","AX220(M2Mルータータイプ)"]
[null,"機種","-(全量のため。設定用のリスト値はModel1~参照)","RX210(M2Mルータータイプ)",null,"2021年4月維持対応にて削除"]
[null,"機種","-(全量のため。設定用のリスト値はModel1~参照)","MP01LN(WiFiルータータイプ)"]
[null,"機種","-(全量のため。設定用のリスト値はModel1~参照)","MP01LN(WiFiルータータイプ)あんしん保証付"]
[null,"機種","-(全量のため。設定用のリスト値はModel1~参照)","AX110 AC-ADP有(M2Mルータータイプ)","-"]
[null,"機種","-(全量のため。設定用のリスト値はModel1~参照)","AX110 AC-ADP無(M2Mルータータイプ)","-"]
[null,"機種","-(全量のため。設定用のリスト値はModel1~参照)","GX110(M2Mルータータイプ)"]
[null,"機種","-(全量のため。設定用のリスト値はModel1~参照)","MF112A(USBタイプ）"]
[null,"機種","-(全量のため。設定用のリスト値はModel1~参照)","MMLink3G（M2Mルータータイプ）"]
[null,"機種","Model1","micro SIMのみ","ビジパク利用時"]
[null,"機種","Model2","SIMのみ","LTE：約款対象外フラグがOff（2）の時"]
[null,"機種","Model2","micro SIMのみ"]
[null,"機種","Model2","nano SIMのみ"]
[null,"機種","Model2","MP02LN(WiFiルータータイプ)"]
[null,"機種","Model2","MP02LN(WiFiルータータイプ)あんしん保証付"]
[null,"機種","Model2","MR05LN(クレードル有)"]
[null,"機種","Model2","MR05LN(クレードル有)あんしん保証付"]
[null,"機種","Model2","UX302NC-R(USBタイプ)"]
[null,"機種","Model2","UX302NC-R(USBタイプ)あんしん保証付"]
[null,"機種","Model2","RX220(M2Mルータータイプ)"]
[null,"機種","Model2","AX220(M2Mルータータイプ)"]
[null,"機種","Model3","SIMのみ","LTE：約款対象外フラグがON（1）の時"]
[null,"機種","Model3","micro SIMのみ"]
[null,"機種","Model3","nano SIMのみ"]
[null,"機種","Model3","MP02LN(WiFiルータータイプ)"]
[null,"機種","Model3","MP02LN(WiFiルータータイプ)あんしん保証付"]
[null,"機種","Model3","MR05LN(クレードル有)"]
[null,"機種","Model3","MR05LN(クレードル有)あんしん保証付"]
[null,"機種","Model3","UX302NC-R(USBタイプ)"]
[null,"機種","Model3","UX302NC-R(USBタイプ)あんしん保証付"]
[null,"機種","Model3","MR05LN(クレードル無)"]
[null,"機種","Model3","MR05LN(クレードル無)あんしん保証付"]
[null,"機種","Model3","RX220(M2Mルータータイプ)"]
[null,"機種","Model3","AX220(M2Mルータータイプ)"]
[null,"機種","Model4","RX220(M2Mルータータイプ)","LTE限定","2022年3Q：削除"]
[null,"機種","Model4","AX220(M2Mルータータイプ)"]
[null,"機種","Model5","SIMのみ","まなび"]
[null,"機種","Model5","micro SIMのみ"]
[null,"機種","Model5","nano SIMのみ"]
[null,"機種","Model6","SIMのみ","5G-NSA"]
[null,"機種","Model6","micro SIMのみ"]
[null,"機種","Model6","nano SIMのみ"]
[null,"機種","Model6","MR51FN",null,"2023/11/19より表示"]
[null,"機種","Model6","MR51FNあんしん保証付",null,"2023/11/19より表示"]
[null,"機種","Model7","テレワーク用PC_A","テレワーク_1年：端末調達フラグがOff（2）の時"]
[null,"機種","Model8","テレワーク用PC_A","テレワーク_1年：端末調達フラグがON（1）の時"]
[null,"機種","Model8","テレワーク用PC_CSTM_A"]
[null,"機種","Model8","テレワーク用PC_CSTM_B"]
[null,"機種","Model8","テレワーク用PC_CSTM_C"]
[null,"機種","Model8","テレワーク用PC_CSTM_D"]
[null,"機種","Model8","テレワーク用PC_CSTM_E"]
[null,"機種","Model9","テレワーク用PC_B","テレワーク_3年：端末調達フラグがOff（2）の時"]
[null,"機種","Model10","テレワーク用PC_B","テレワーク_3年：端末調達フラグがON（1）の時"]
[null,"機種","Model10","テレワーク用PC_CSTM_A"]
[null,"機種","Model10","テレワーク用PC_CSTM_B"]
[null,"機種","Model10","テレワーク用PC_CSTM_C"]
[null,"機種","Model10","テレワーク用PC_CSTM_D"]
[null,"機種","Model10","テレワーク用PC_CSTM_E"]
[null,"機種","Model11","テレワーク用PC_2in1_A","テレワーク2in1_1年の時"]
[null,"機種","Model12","テレワーク用PC_2in1_B","テレワーク2in1_3年の時"]
[null,"機種","Model13","テレワーク用PC_A(リース用)","テレワーク●GB_3年リース:端末調達フラグがON（1）の時"]
[null,"機種","Model13","テレワーク用PC_CSTM_A"]
[null,"機種","Model13","テレワーク用PC_CSTM_B"]
[null,"機種","Model13","テレワーク用PC_CSTM_C"]
[null,"機種","Model13","テレワーク用PC_CSTM_D"]
[null,"機種","Model13","テレワーク用PC_CSTM_E"]
[null,"機種","Model14","テレワーク用PC_A(リース用)","テレワーク●GB_3年リース:端末調達フラグがOff（2）の時"]
[null,"国際ローミング限度額","list_AppInterRoaLimit","5万円"]
[null,"国際ローミング限度額","list_AppInterRoaLimit","10万円"]
[null,"国際ローミング限度額","list_AppInterRoaLimit","20万円(推奨)"]
[null,"国際ローミング限度額","list_AppInterRoaLimit","30万円"]
[null,"国際ローミング限度額","list_AppInterRoaLimit","40万円"]
[null,"国際ローミング限度額","list_AppInterRoaLimit","50万円"]
[null,"国際ローミング限度額","list_AppInterRoaLimit","60万円"]
[null,"国際ローミング限度額","list_AppInterRoaLimit","70万円"]
[null,"国際ローミング限度額","list_AppInterRoaLimit","80万円"]
[null,"国際ローミング限度額","list_AppInterRoaLimit","90万円"]
[null,"国際ローミング限度額","list_AppInterRoaLimit","100万円"]
[null,"国際ローミング限度額","list_AppInterRoaLimit","制限なし"]
[null,"クラウドプロキシ個別設定","list_setting","規制"]
[null,"クラウドプロキシ個別設定","list_setting","許可"]
[]
[]
[]
[]
[]
[]
[]
[null,"null","null"]

{"sheet":"変換","index":5,"n_rows":108,"n_cols":12,"rows_kept":108,"cut":false,"hidden":true,"merged":[]}
["■テレワークコース",null,null,"■SMS",null,null,"■国際ローミング",null,null,"■SIM種別"]
["テレワーク\n端末調達フラグ＋コース（検索用）","機種\n表示パターン",null,"SMS有無","terminalOption1：選択可\nterminalOption2：有のみ\nterminalOption3：無のみ\nnull：不可",null,"国際ローミング利用可否","terminalOption1：利用可\nnull：不可",null,"SIM種別検索用文字列\n（アクセスタイプ+SIMS+機種）","SIM種別"]
["1テレワーク1GB_1年","Model8",null,"RX210(M2Mルータータイプ)","terminalOption1",null,"RX210(M2Mルータータイプ)","null",null,"LTE無SIMのみ","[LTE]SIM"]
["1テレワーク3GB_1年","Model8",null,"SIMのみ","terminalOption1",null,"SIMのみ","terminalOption1",null,"LTE無micro SIMのみ","[LTE]microSIM"]
["1テレワーク7GB_1年","Model8",null,"micro SIMのみ","terminalOption1",null,"micro SIMのみ","terminalOption1",null,"LTE無nano SIMのみ","[LTE]nanoSIM"]
["1テレワーク10GB_1年","Model8",null,"nano SIMのみ","terminalOption1",null,"nano SIMのみ","terminalOption1",null,"LTE有SIMのみ","[LTE]SIM(SMS)"]
["1テレワーク20GB_1年","Model8",null,"MR51FN","null",null,"MR51FN","terminalOption1",null,"LTE有micro SIMのみ","[LTE]microSIM(SMS)"]
["1テレワーク30GB_1年","Model8",null,"MR51FNあんしん保証付","null",null,"MR51FNあんしん保証付","terminalOption1",null,"LTE有nano SIMのみ","[LTE]nanoSIM(SMS)"]
["1テレワーク50GB_1年","Model8",null,"MR05LN(クレードル有)","null",null,"MR05LN(クレードル有)","terminalOption1",null,"LTESIMのみ","[LTE]SIM"]
["1テレワーク2in1_1GB_1年","Model11",null,"MR05LN(クレードル有)あんしん保証付","null",null,"MR05LN(クレードル有)あんしん保証付","terminalOption1",null,"LTEmicro SIMのみ","[LTE]microSIM"]
["1テレワーク2in1_3GB_1年","Model11",null,"MR05LN(クレードル無)","null",null,"MR05LN(クレードル無)","terminalOption1",null,"LTEnano SIMのみ","[LTE]nanoSIM"]
["1テレワーク2in1_7GB_1年","Model11",null,"MR05LN(クレードル無)あんしん保証付","null",null,"MR05LN(クレードル無)あんしん保証付","terminalOption1",null,"LTEMR05LN(クレードル有)","[LTE]nanoSIM"]
["1テレワーク2in1_10GB_1年","Model11",null,"UX302NC-R(USBタイプ)","null",null,"UX302NC-R(USBタイプ)","terminalOption1",null,"LTEMR05LN(クレードル有)あんしん保証付","[LTE]nanoSIM"]
["1テレワーク2in1_20GB_1年","Model11",null,"UX302NC-R(USBタイプ)あんしん保証付","null",null,"UX302NC-R(USBタイプ)あんしん保証付","terminalOption1",null,"LTEMR05LN(クレードル無)","[LTE]nanoSIM"]
["1テレワーク2in1_30GB_1年","Model11",null,"MP01LN(WiFiルータータイプ)","null",null,"MP01LN(WiFiルータータイプ)","null",null,"LTEMR05LN(クレードル無)あんしん保証付","[LTE]nanoSIM"]
["1テレワーク2in1_50GB_1年","Model11",null,"MP01LN(WiFiルータータイプ)あんしん保証付","null",null,"MP01LN(WiFiルータータイプ)あんしん保証付","null",null,"LTEUX302NC-R(USBタイプ)","[LTE]microSIM"]
["1テレワーク3GB+1GB_3年","Model10",null,"MP02LN(WiFiルータータイプ)","null",null,"MP02LN(WiFiルータータイプ)","terminalOption1",null,"LTEUX302NC-R(USBタイプ)あんしん保証付","[LTE]microSIM"]
["1テレワーク7GB+1GB_3年","Model10",null,"MP02LN(WiFiルータータイプ)あんしん保証付","null",null,"MP02LN(WiFiルータータイプ)あんしん保証付","terminalOption1",null,"LTEMP02LN(WiFiルータータイプ)","[LTE]nanoSIM"]
["1テレワーク2in1_3GB+1GB_3年","Model12",null,"AX220(M2Mルータータイプ)","terminalOption1",null,"AX220(M2Mルータータイプ)","null",null,"LTEMP02LN(WiFiルータータイプ)あんしん保証付","[LTE]nanoSIM"]
["1テレワーク2in1_7GB+1GB_3年","Model12",null,"RX220(M2Mルータータイプ)","terminalOption1",null,"RX220(M2Mルータータイプ)","null",null,"LTE有テレワーク用PC_A(リース用)","[LTE]nanoSIM(SMS)"]
["2テレワーク1GB_1年","Model7",null,"テレワーク用PC_A(リース用)","terminalOption2",null,"テレワーク用PC_A(リース用)","terminalOption1",null,"LTE有テレワーク用PC_A","[LTE]nanoSIM(SMS)"]
["2テレワーク3GB_1年","Model7",null,"テレワーク用PC_A","terminalOption2",null,"テレワーク用PC_A","terminalOption1",null,"LTE有テレワーク用PC_B","[LTE]nanoSIM(SMS)"]
["2テレワーク7GB_1年","Model7",null,"テレワーク用PC_B","terminalOption2",null,"テレワーク用PC_B","terminalOption1",null,"LTE有テレワーク用PC_2in1_A","[LTE]microSIM(SMS)"]
["2テレワーク10GB_1年","Model7",null,"テレワーク用PC_2in1_A","terminalOption2",null,"テレワーク用PC_2in1_A","terminalOption1",null,"LTE有テレワーク用PC_2in1_B","[LTE]microSIM(SMS)"]
["2テレワーク20GB_1年","Model7",null,"テレワーク用PC_2in1_B","terminalOption2",null,"テレワーク用PC_2in1_B","terminalOption1",null,"LTE有テレワーク用PC_CSTM_A","[LTE]nanoSIM(SMS)"]
["2テレワーク30GB_1年","Model7",null,"テレワーク用PC_CSTM_A","terminalOption2",null,"テレワーク用PC_CSTM_A","terminalOption1",null,"LTE有テレワーク用PC_CSTM_B","[LTE]nanoSIM(SMS)"]
["2テレワーク50GB_1年","Model7",null,"テレワーク用PC_CSTM_B","terminalOption2",null,"テレワーク用PC_CSTM_B","terminalOption1",null,"LTE有テレワーク用PC_CSTM_C","[LTE]microSIM(SMS)"]
["2テレワーク2in1_1GB_1年","Model11",null,"テレワーク用PC_CSTM_C","terminalOption2",null,"テレワーク用PC_CSTM_C","terminalOption1",null,"LTE有テレワーク用PC_CSTM_D","[LTE]microSIM(SMS)"]
["2テレワーク2in1_3GB_1年","Model11",null,"テレワーク用PC_CSTM_D","terminalOption2",null,"テレワーク用PC_CSTM_D","terminalOption1",null,"LTE有テレワーク用PC_CSTM_E","[LTE]microSIM(SMS)"]
["2テレワーク2in1_7GB_1年","Model11",null,"テレワーク用PC_CSTM_E","terminalOption2",null,"テレワーク用PC_CSTM_E","terminalOption1",null,"LTE無AX220(M2Mルータータイプ)","[LTE]SIM"]
["2テレワーク2in1_10GB_1年","Model11",null,null,null,null,null,null,null,"LTE有AX220(M2Mルータータイプ)","[LTE]SIM(SMS)"]
["2テレワーク2in1_20GB_1年","Model11",null,null,null,null,null,null,null,"LTE無RX220(M2Mルータータイプ)","[LTE]SIM"]
["2テレワーク2in1_30GB_1年","Model11",null,null,null,null,null,null,null,"LTE有RX220(M2Mルータータイプ)","[LTE]SIM(SMS)"]
["2テレワーク2in1_50GB_1年","Model11",null,null,null,null,null,null,null,"5G-NSA無SIMのみ","[5G-NSA]SIM"]
["2テレワーク3GB+1GB_3年","Model9",null,null,null,null,null,null,null,"5G-NSA無micro SIMのみ","[5G-NSA]microSIM"]
["2テレワーク7GB+1GB_3年","Model9",null,null,null,null,null,null,null,"5G-NSA無nano SIMのみ","[5G-NSA]nanoSIM"]
["2テレワーク2in1_3GB+1GB_3年","Model12",null,null,null,null,null,null,null,"5G-NSAMR51FN","[5G-NSA]nanoSIM"]
["2テレワーク2in1_7GB+1GB_3年","Model12",null,null,null,null,null,null,null,"5G-NSAMR51FNあんしん保証付","[5G-NSA]nanoSIM"]
["1テレワーク1GB_1年(マジックコネクト)","Model8",null,null,null,null,null,null,null,"5G-NSA無MR51FN","[5G-NSA]nanoSIM"]
["1テレワーク3GB_1年(マジックコネクト)","Model8",null,null,null,null,null,null,null,"5G-NSA無MR51FNあんしん保証付","[5G-NSA]nanoSIM"]
["1テレワーク7GB_1年(マジックコネクト)","Model8",null,null,null,null,null,null,null,"3G/LTE無SIMのみ","[LTE]SIM","2022年3Qリリース以降は申込みなし（過去申請分の表示用）"]
["1テレワーク10GB_1年(マジックコネクト)","Model8",null,null,null,null,null,null,null,"3G/LTE無micro SIMのみ","[LTE]microSIM","2022年3Qリリース以降は申込みなし（過去申請分の表示用）"]
["1テレワーク20GB_1年(マジックコネクト)","Model8",null,null,null,null,null,null,null,"3G/LTE無nano SIMのみ","[LTE]nanoSIM","2022年3Qリリース以降は申込みなし（過去申請分の表示用）"]
["1テレワーク30GB_1年(マジックコネクト)","Model8",null,null,null,null,null,null,null,"3G/LTE有SIMのみ","[LTE]SIM(SMS)","2022年3Qリリース以降は申込みなし（過去申請分の表示用）"]
["1テレワーク50GB_1年(マジックコネクト)","Model8",null,null,null,null,null,null,null,"3G/LTE有micro SIMのみ","[LTE]microSIM(SMS)","2022年3Qリリース以降は申込みなし（過去申請分の表示用）"]
["1テレワーク2in1_1GB_1年(マジックコネクト)","Model11",null,null,null,null,null,null,null,"3G/LTE有nano SIMのみ","[LTE]nanoSIM(SMS)","2022年3Qリリース以降は申込みなし（過去申請分の表示用）"]
["1テレワーク2in1_3GB_1年(マジックコネクト)","Model11",null,null,null,null,null,null,null,"3G/LTESIMのみ","[LTE]SIM","2022年3Qリリース以降は申込みなし（過去申請分の表示用）"]
["1テレワーク2in1_7GB_1年(マジックコネクト)","Model11",null,null,null,null,null,null,null,"3G/LTEmicro SIMのみ","[LTE]microSIM","2022年3Qリリース以降は申込みなし（過去申請分の表示用）"]
["1テレワーク2in1_10GB_1年(マジックコネクト)","Model11",null,null,null,null,null,null,null,"3G/LTEnano SIMのみ","[LTE]nanoSIM","2022年3Qリリース以降は申込みなし（過去申請分の表示用）"]
["1テレワーク2in1_20GB_1年(マジックコネクト)","Model11",null,null,null,null,null,null,null,"3G/LTEMR05LN(クレードル有)","[LTE]nanoSIM","2022年3Qリリース以降は申込みなし（過去申請分の表示用）"]
["1テレワーク2in1_30GB_1年(マジックコネクト)","Model11",null,null,null,null,null,null,null,"3G/LTEMR05LN(クレードル有)あんしん保証付","[LTE]nanoSIM","2022年3Qリリース以降は申込みなし（過去申請分の表示用）"]
["1テレワーク2in1_50GB_1年(マジックコネクト)","Model11",null,null,null,null,null,null,null,"3G/LTEMR05LN(クレードル無)","[LTE]nanoSIM","2022年3Qリリース以降は申込みなし（過去申請分の表示用）"]
["2テレワーク1GB_1年(マジックコネクト)","Model7",null,null,null,null,null,null,null,"3G/LTEMR05LN(クレードル無)あんしん保証付","[LTE]nanoSIM","2022年3Qリリース以降は申込みなし（過去申請分の表示用）"]
["2テレワーク3GB_1年(マジックコネクト)","Model7",null,null,null,null,null,null,null,"3G/LTEUX302NC-R(USBタイプ)","[LTE]microSIM","2022年3Qリリース以降は申込みなし（過去申請分の表示用）"]
["2テレワーク7GB_1年(マジックコネクト)","Model7",null,null,null,null,null,null,null,"3G/LTEUX302NC-R(USBタイプ)あんしん保証付","[LTE]microSIM","2022年3Qリリース以降は申込みなし（過去申請分の表示用）"]
["2テレワーク10GB_1年(マジックコネクト)","Model7",null,null,null,null,null,null,null,"3G/LTEMP02LN(WiFiルータータイプ)","[LTE]nanoSIM","2022年3Qリリース以降は申込みなし（過去申請分の表示用）"]
["2テレワーク20GB_1年(マジックコネクト)","Model7",null,null,null,null,null,null,null,"3G/LTEMP02LN(WiFiルータータイプ)あんしん保証付","[LTE]nanoSIM","2022年3Qリリース以降は申込みなし（過去申請分の表示用）"]
["2テレワーク30GB_1年(マジックコネクト)","Model7",null,null,null,null,null,null,null,"3G/LTE無RX210(M2Mルータータイプ)","[LTE]SIM","端末削除済み"]
["2テレワーク50GB_1年(マジックコネクト)","Model7",null,null,null,null,null,null,null,"3G/LTE有RX210(M2Mルータータイプ)","[LTE]SIM(SMS)","端末削除済み"]
["2テレワーク2in1_1GB_1年(マジックコネクト)","Model11",null,null,null,null,null,null,null,"3G/LTE有テレワーク用PC_A","[LTE]nanoSIM(SMS)","2022年3Qリリース以降は申込みなし（過去申請分の表示用）"]
["2テレワーク2in1_3GB_1年(マジックコネクト)","Model11",null,null,null,null,null,null,null,"3G/LTE有テレワーク用PC_B","[LTE]nanoSIM(SMS)","2022年3Qリリース以降は申込みなし（過去申請分の表示用）"]
["2テレワーク2in1_7GB_1年(マジックコネクト)","Model11",null,null,null,null,null,null,null,"3G/LTE有テレワーク用PC_2in1_A","[LTE]microSIM(SMS)","2022年3Qリリース以降は申込みなし（過去申請分の表示用）"]
["2テレワーク2in1_10GB_1年(マジックコネクト)","Model11",null,null,null,null,null,null,null,"3G/LTE有テレワーク用PC_2in1_B","[LTE]microSIM(SMS)","2022年3Qリリース以降は申込みなし（過去申請分の表示用）"]
["2テレワーク2in1_20GB_1年(マジックコネクト)","Model11",null,null,null,null,null,null,null,"3G/LTE有テレワーク用PC_CSTM_A","[LTE]nanoSIM(SMS)","2022年3Qリリース以降は申込みなし（過去申請分の表示用）"]
["2テレワーク2in1_30GB_1年(マジックコネクト)","Model11",null,null,null,null,null,null,null,"3G/LTE有テレワーク用PC_CSTM_B","[LTE]nanoSIM(SMS)","2022年3Qリリース以降は申込みなし（過去申請分の表示用）"]
["2テレワーク2in1_50GB_1年(マジックコネクト)","Model11",null,null,null,null,null,null,null,"3G/LTE有テレワーク用PC_CSTM_C","[LTE]microSIM(SMS)","2022年3Qリリース以降は申込みなし（過去申請分の表示用）"]
["1テレワーク1GB_1年(UNO Virtual)","Model8",null,null,null,null,null,null,null,"3G/LTE有テレワーク用PC_CSTM_D","[LTE]microSIM(SMS)","2022年3Qリリース以降は申込みなし（過去申請分の表示用）"]
["1テレワーク3GB_1年(UNO Virtual)","Model8",null,null,null,null,null,null,null,"3G/LTE有テレワーク用PC_CSTM_E","[LTE]microSIM(SMS)","2022年3Qリリース以降は申込みなし（過去申請分の表示用）"]
["1テレワーク7GB_1年(UNO Virtual)","Model8",null,null,null,null,null,null,null,"LTE限定MP01LN(WiFiルータータイプ)","[LTE]nanoSIM","端末削除済み"]
["1テレワーク10GB_1年(UNO Virtual)","Model8",null,null,null,null,null,null,null,"LTE限定MP01LN(WiFiルータータイプ)あんしん保証付","[LTE]nanoSIM","端末削除済み"]
["1テレワーク20GB_1年(UNO Virtual)","Model8",null,null,null,null,null,null,null,"LTE限定無AX220(M2Mルータータイプ)","[LTE]SIM","2022年3Qリリース以降は申込みなし（過去申請分の表示用）"]
["1テレワーク30GB_1年(UNO Virtual)","Model8",null,null,null,null,null,null,null,"LTE限定有AX220(M2Mルータータイプ)","[LTE]SIM(SMS)","2022年3Qリリース以降は申込みなし（過去申請分の表示用）"]
["1テレワーク50GB_1年(UNO Virtual)","Model8",null,null,null,null,null,null,null,"LTE限定無RX220(M2Mルータータイプ)","[LTE]SIM","2022年3Qリリース以降は申込みなし（過去申請分の表示用）"]
["1テレワーク2in1_1GB_1年(UNO Virtual)","Model11",null,null,null,null,null,null,null,"LTE限定有RX220(M2Mルータータイプ)","[LTE]SIM(SMS)","2022年3Qリリース以降は申込みなし（過去申請分の表示用）"]
["1テレワーク2in1_3GB_1年(UNO Virtual)","Model11"]
["1テレワーク2in1_7GB_1年(UNO Virtual)","Model11"]
["1テレワーク2in1_10GB_1年(UNO Virtual)","Model11"]
["1テレワーク2in1_20GB_1年(UNO Virtual)","Model11"]
["1テレワーク2in1_30GB_1年(UNO Virtual)","Model11"]
["1テレワーク2in1_50GB_1年(UNO Virtual)","Model11"]
["2テレワーク1GB_1年(UNO Virtual)","Model7"]
["2テレワーク3GB_1年(UNO Virtual)","Model7"]
["2テレワーク7GB_1年(UNO Virtual)","Model7"]
["2テレワーク10GB_1年(UNO Virtual)","Model7"]
["2テレワーク20GB_1年(UNO Virtual)","Model7"]
["2テレワーク30GB_1年(UNO Virtual)","Model7"]
["2テレワーク50GB_1年(UNO Virtual)","Model7"]
["2テレワーク2in1_1GB_1年(UNO Virtual)","Model11"]
["2テレワーク2in1_3GB_1年(UNO Virtual)","Model11"]
["2テレワーク2in1_7GB_1年(UNO Virtual)","Model11"]
["2テレワーク2in1_10GB_1年(UNO Virtual)","Model11"]
["2テレワーク2in1_20GB_1年(UNO Virtual)","Model11"]
["2テレワーク2in1_30GB_1年(UNO Virtual)","Model11"]
["2テレワーク2in1_50GB_1年(UNO Virtual)","Model11"]
["1テレワーク1GB_3年リース","Model13"]
["1テレワーク3GB_3年リース","Model13"]
["1テレワーク7GB_3年リース","Model13"]
["1テレワーク10GB_3年リース","Model13"]
["1テレワーク20GB_3年リース","Model13"]
["1テレワーク30GB_3年リース","Model13"]
["1テレワーク50GB_3年リース","Model13"]
["2テレワーク1GB_3年リース","Model14"]
["2テレワーク3GB_3年リース","Model14"]
["2テレワーク7GB_3年リース","Model14"]
["2テレワーク10GB_3年リース","Model14"]
["2テレワーク20GB_3年リース","Model14"]
["2テレワーク30GB_3年リース","Model14"]
["2テレワーク50GB_3年リース","Model14"]

{"sheet":"料金プランMVNO","index":6,"n_rows":407,"n_cols":10,"rows_kept":407,"cut":false,"hidden":true,"merged":[]}
["■料金プラン(MVMO)"]
[]
[null,"認証方式","ビジネスパック利用有無","固定IP有無","アクセス方式","コース","SMS有無","【検索値】\n認証方式+ビジネスパック利用有無+固定IP有無+アクセス方式+コース+SMS有無の結合","【表示用】\n料金プラン(MVNO)","メモ"]
[1,"共通ID","利用しない",null,"5G-NSA","1GB","無",{"$f":"CONCATENATE(B4,C4,D4,E4,F4,G4)","v":"共通ID利用しない5G-NSA1GB無"},"OCN モバイル ONE for Business 1GB"]
[{"$f":"A4+1","v":2},"共通ID","利用しない",null,"5G-NSA","3GB","無",{"$f":"CONCATENATE(B5,C5,D5,E5,F5,G5)","v":"共通ID利用しない5G-NSA3GB無"},"OCN モバイル ONE for Business 3GB"]
[{"$f":"A5+1","v":3},"共通ID","利用しない",null,"5G-NSA","7GB","無","共通ID利用しない5G-NSA7GB無","OCN モバイル ONE for Business 7GB"]
[4,"共通ID","利用しない",null,"5G-NSA","1GBバリュー","無","共通ID利用しない5G-NSA1GBバリュー無","OCN モバイル ONE for Business バリュー 1GB"]
[5,"共通ID","利用しない",null,"5G-NSA","3GBバリュー","無","共通ID利用しない5G-NSA3GBバリュー無","OCN モバイル ONE for Business バリュー 3GB"]
[6,"共通ID","利用しない",null,"5G-NSA","7GBバリュー","無","共通ID利用しない5G-NSA7GBバリュー無","OCN モバイル ONE for Business バリュー 7GB"]
[7,"共通ID","利用しない",null,"5G-NSA","10GBバリュー","無","共通ID利用しない5G-NSA10GBバリュー無","OCN モバイル ONE for Business バリュー 10GB"]
[8,"共通ID","利用しない",null,"5G-NSA","15GBバリュー","無","共通ID利用しない5G-NSA15GBバリュー無","OCN モバイル ONE for Business バリュー 15GB"]
[9,"共通ID","利用しない",null,"5G-NSA","20GBバリュー","無","共通ID利用しない5G-NSA20GBバリュー無","OCN モバイル ONE for Business バリュー 20GB"]
[10,"共通ID","利用しない",null,"5G-NSA","30GBバリュー","無","共通ID利用しない5G-NSA30GBバリュー無","OCN モバイル ONE for Business バリュー 30GB"]
[11,"共通ID","利用しない",null,"5G-NSA","50GBバリュー","無","共通ID利用しない5G-NSA50GBバリュー無","OCN モバイル ONE for Business バリュー 50GB"]
[12,"共通ID","利用しない",null,"5G-NSA","200kbps","無","共通ID利用しない5G-NSA200kbps無","OCN モバイル ONE for Business 200Kbps"]
[13,"共通ID","利用しない",null,"5G-NSA","30MBプラス","無","共通ID利用しない5G-NSA30MBプラス無","OCN モバイル ONE for Business 30MBプラス"]
[14,"共通ID","利用しない",null,"5G-NSA","Unlimited","無","共通ID利用しない5G-NSAUnlimited無","OCN モバイル ONE for Business Unlimited"]
[15,"共通ID","利用しない",null,"5G-NSA","1GB",null,"共通ID利用しない5G-NSA1GB","OCN モバイル ONE for Business 1GB","MR51FN追加に伴うパターン追加"]
[16,"共通ID","利用しない",null,"5G-NSA","3GB",null,"共通ID利用しない5G-NSA3GB","OCN モバイル ONE for Business 3GB","MR51FN追加に伴うパターン追加"]
[17,"共通ID","利用しない",null,"5G-NSA","7GB",null,"共通ID利用しない5G-NSA7GB","OCN モバイル ONE for Business 7GB","MR51FN追加に伴うパターン追加"]
[18,"共通ID","利用しない",null,"5G-NSA","1GBバリュー",null,"共通ID利用しない5G-NSA1GBバリュー","OCN モバイル ONE for Business バリュー 1GB","MR51FN追加に伴うパターン追加"]
[19,"共通ID","利用しない",null,"5G-NSA","3GBバリュー",null,"共通ID利用しない5G-NSA3GBバリュー","OCN モバイル ONE for Business バリュー 3GB","MR51FN追加に伴うパターン追加"]
[20,"共通ID","利用しない",null,"5G-NSA","7GBバリュー",null,"共通ID利用しない5G-NSA7GBバリュー","OCN モバイル ONE for Business バリュー 7GB","MR51FN追加に伴うパターン追加"]
[21,"共通ID","利用しない",null,"5G-NSA","10GBバリュー",null,"共通ID利用しない5G-NSA10GBバリュー","OCN モバイル ONE for Business バリュー 10GB","MR51FN追加に伴うパターン追加"]
[22,"共通ID","利用しない",null,"5G-NSA","15GBバリュー",null,"共通ID利用しない5G-NSA15GBバリュー","OCN モバイル ONE for Business バリュー 15GB","MR51FN追加に伴うパターン追加"]
[23,"共通ID","利用しない",null,"5G-NSA","20GBバリュー",null,"共通ID利用しない5G-NSA20GBバリュー","OCN モバイル ONE for Business バリュー 20GB","MR51FN追加に伴うパターン追加"]
[24,"共通ID","利用しない",null,"5G-NSA","30GBバリュー",null,"共通ID利用しない5G-NSA30GBバリュー","OCN モバイル ONE for Business バリュー 30GB","MR51FN追加に伴うパターン追加"]
[25,"共通ID","利用しない",null,"5G-NSA","50GBバリュー",null,"共通ID利用しない5G-NSA50GBバリュー","OCN モバイル ONE for Business バリュー 50GB","MR51FN追加に伴うパターン追加"]
[26,"共通ID","利用しない",null,"5G-NSA","200kbps",null,"共通ID利用しない5G-NSA200kbps","OCN モバイル ONE for Business 200Kbps","MR51FN追加に伴うパターン追加"]
[27,"共通ID","利用しない",null,"5G-NSA","30MBプラス",null,"共通ID利用しない5G-NSA30MBプラス","OCN モバイル ONE for Business 30MBプラス","MR51FN追加に伴うパターン追加"]
[28,"共通ID","利用しない",null,"5G-NSA","Unlimited",null,"共通ID利用しない5G-NSAUnlimited","OCN モバイル ONE for Business Unlimited","MR51FN追加に伴うパターン追加"]
[29,"共通ID","利用しない",null,"LTE","1GB",null,"共通ID利用しないLTE1GB","OCN モバイル ONE for Business 1GB"]
[30,"共通ID","利用しない",null,"LTE","1GB","無","共通ID利用しないLTE1GB無","OCN モバイル ONE for Business 1GB"]
[31,"共通ID","利用しない",null,"LTE","1GB","有","共通ID利用しないLTE1GB有","OCN モバイル ONE for Business 1GB (SMS)"]
[32,"共通ID","利用しない",null,"LTE","3GB",null,"共通ID利用しないLTE3GB","OCN モバイル ONE for Business 3GB"]
[33,"共通ID","利用しない",null,"LTE","3GB","無","共通ID利用しないLTE3GB無","OCN モバイル ONE for Business 3GB"]
[34,"共通ID","利用しない",null,"LTE","3GB","有","共通ID利用しないLTE3GB有","OCN モバイル ONE for Business 3GB (SMS)"]
[35,"共通ID","利用しない",null,"LTE","7GB",null,"共通ID利用しないLTE7GB","OCN モバイル ONE for Business 7GB"]
[36,"共通ID","利用しない",null,"LTE","7GB","無","共通ID利用しないLTE7GB無","OCN モバイル ONE for Business 7GB"]
[37,"共通ID","利用しない",null,"LTE","7GB","有","共通ID利用しないLTE7GB有","OCN モバイル ONE for Business 7GB (SMS)"]
[38,"共通ID","利用しない",null,"LTE","1GBバリュー",null,"共通ID利用しないLTE1GBバリュー","OCN モバイル ONE for Business バリュー 1GB"]
[39,"共通ID","利用しない",null,"LTE","1GBバリュー","無","共通ID利用しないLTE1GBバリュー無","OCN モバイル ONE for Business バリュー 1GB"]
[40,"共通ID","利用しない",null,"LTE","1GBバリュー","有","共通ID利用しないLTE1GBバリュー有","OCN モバイル ONE for Business バリュー 1GB (SMS)"]
[41,"共通ID","利用しない",null,"LTE","3GBバリュー",null,"共通ID利用しないLTE3GBバリュー","OCN モバイル ONE for Business バリュー 3GB"]
[42,"共通ID","利用しない",null,"LTE","3GBバリュー","無","共通ID利用しないLTE3GBバリュー無","OCN モバイル ONE for Business バリュー 3GB"]
[43,"共通ID","利用しない",null,"LTE","3GBバリュー","有","共通ID利用しないLTE3GBバリュー有","OCN モバイル ONE for Business バリュー 3GB (SMS)"]
[44,"共通ID","利用しない",null,"LTE","7GBバリュー",null,"共通ID利用しないLTE7GBバリュー","OCN モバイル ONE for Business バリュー 7GB"]
[45,"共通ID","利用しない",null,"LTE","7GBバリュー","無","共通ID利用しないLTE7GBバリュー無","OCN モバイル ONE for Business バリュー 7GB"]
[46,"共通ID","利用しない",null,"LTE","7GBバリュー","有","共通ID利用しないLTE7GBバリュー有","OCN モバイル ONE for Business バリュー 7GB (SMS)"]
[47,"共通ID","利用しない",null,"LTE","10GBバリュー",null,"共通ID利用しないLTE10GBバリュー","OCN モバイル ONE for Business バリュー 10GB"]
[48,"共通ID","利用しない",null,"LTE","10GBバリュー","無","共通ID利用しないLTE10GBバリュー無","OCN モバイル ONE for Business バリュー 10GB"]
[49,"共通ID","利用しない",null,"LTE","10GBバリュー","有","共通ID利用しないLTE10GBバリュー有","OCN モバイル ONE for Business バリュー 10GB (SMS)"]
[50,"共通ID","利用しない",null,"LTE","15GBバリュー",null,"共通ID利用しないLTE15GBバリュー","OCN モバイル ONE for Business バリュー 15GB"]
[51,"共通ID","利用しない",null,"LTE","15GBバリュー","無","共通ID利用しないLTE15GBバリュー無","OCN モバイル ONE for Business バリュー 15GB"]
[52,"共通ID","利用しない",null,"LTE","15GBバリュー","有","共通ID利用しないLTE15GBバリュー有","OCN モバイル ONE for Business バリュー 15GB (SMS)"]
[53,"共通ID","利用しない",null,"LTE","20GBバリュー",null,"共通ID利用しないLTE20GBバリュー","OCN モバイル ONE for Business バリュー 20GB"]
[54,"共通ID","利用しない",null,"LTE","20GBバリュー","無","共通ID利用しないLTE20GBバリュー無","OCN モバイル ONE for Business バリュー 20GB"]
[55,"共通ID","利用しない",null,"LTE","20GBバリュー","有","共通ID利用しないLTE20GBバリュー有","OCN モバイル ONE for Business バリュー 20GB (SMS)"]
[56,"共通ID","利用しない",null,"LTE","30GBバリュー",null,"共通ID利用しないLTE30GBバリュー","OCN モバイル ONE for Business バリュー 30GB"]
[57,"共通ID","利用しない",null,"LTE","30GBバリュー","無","共通ID利用しないLTE30GBバリュー無","OCN モバイル ONE for Business バリュー 30GB"]
[58,"共通ID","利用しない",null,"LTE","30GBバリュー","有","共通ID利用しないLTE30GBバリュー有","OCN モバイル ONE for Business バリュー 30GB (SMS)"]
[59,"共通ID","利用しない",null,"LTE","50GBバリュー",null,"共通ID利用しないLTE50GBバリュー","OCN モバイル ONE for Business バリュー 50GB"]
[60,"共通ID","利用しない",null,"LTE","50GBバリュー","無","共通ID利用しないLTE50GBバリュー無","OCN モバイル ONE for Business バリュー 50GB"]
[61,"共通ID","利用しない",null,"LTE","50GBバリュー","有","共通ID利用しないLTE50GBバリュー有","OCN モバイル ONE for Business バリュー 50GB (SMS)"]
[62,"共通ID","利用しない",null,"LTE","Unlimited",null,"共通ID利用しないLTEUnlimited","OCN モバイル ONE for Business Unlimited"]
[63,"共通ID","利用しない",null,"LTE","Unlimited","無","共通ID利用しないLTEUnlimited無","OCN モバイル ONE for Business Unlimited"]
[64,"共通ID","利用しない",null,"LTE","200kbps",null,"共通ID利用しないLTE200kbps","OCN モバイル ONE for Business 200Kbps"]
[65,"共通ID","利用しない",null,"LTE","200kbps","無","共通ID利用しないLTE200kbps無","OCN モバイル ONE for Business 200Kbps"]
[66,"共通ID","利用しない",null,"LTE","200kbps","有","共通ID利用しないLTE200kbps有","OCN モバイル ONE for Business 200Kbps (SMS)"]
[67,"共通ID","利用しない",null,"LTE","30MBプラス",null,"共通ID利用しないLTE30MBプラス","OCN モバイル ONE for Business 30MBプラス"]
[68,"共通ID","利用しない",null,"LTE","30MBプラス","無","共通ID利用しないLTE30MBプラス無","OCN モバイル ONE for Business 30MBプラス"]
[69,"共通ID","利用しない",null,"LTE","30MBプラス","有","共通ID利用しないLTE30MBプラス有","OCN モバイル ONE for Business 30MBプラス (SMS)"]
[70,"個別ID","利用しない","利用しない","LTE","1GB",null,"個別ID利用しない利用しないLTE1GB","[docomo]OCNモバイルONEforBusiness1GB(LTE)"]
[71,"個別ID","利用しない","利用しない","LTE","1GB","無","個別ID利用しない利用しないLTE1GB無","[docomo]OCNモバイルONEforBusiness1GB(LTE)"]
[72,"個別ID","利用しない","利用しない","LTE","1GB","有","個別ID利用しない利用しないLTE1GB有","[docomo]OCNモバイルONEforBusiness1GB(LTE,SMS)"]
[73,"個別ID","利用しない","利用しない","LTE","3GB",null,"個別ID利用しない利用しないLTE3GB","[docomo]OCNモバイルONEforBusiness3GB(LTE)"]
[74,"個別ID","利用しない","利用しない","LTE","3GB","無","個別ID利用しない利用しないLTE3GB無","[docomo]OCNモバイルONEforBusiness3GB(LTE)"]
[75,"個別ID","利用しない","利用しない","LTE","3GB","有","個別ID利用しない利用しないLTE3GB有","[docomo]OCNモバイルONEforBusiness3GB(LTE,SMS)"]
[76,"個別ID","利用しない","利用しない","LTE","7GB",null,"個別ID利用しない利用しないLTE7GB","[docomo]OCNモバイルONEforBusiness7GB(LTE)"]
[77,"個別ID","利用しない","利用しない","LTE","7GB","無","個別ID利用しない利用しないLTE7GB無","[docomo]OCNモバイルONEforBusiness7GB(LTE)"]
[78,"個別ID","利用しない","利用しない","LTE","7GB","有","個別ID利用しない利用しないLTE7GB有","[docomo]OCNモバイルONEforBusiness7GB(LTE,SMS)"]
[79,"個別ID","利用しない","利用しない","LTE","Unlimited",null,"個別ID利用しない利用しないLTEUnlimited","[docomo]OCNモバイルONEforBusinessUnlimited(LTE)"]
[80,"個別ID","利用しない","利用しない","LTE","Unlimited","無","個別ID利用しない利用しないLTEUnlimited無","[docomo]OCNモバイルONEforBusinessUnlimited(LTE)"]
[81,"個別ID","利用しない","利用しない","LTE","200kbps",null,"個別ID利用しない利用しないLTE200kbps","[docomo]OCNモバイルONEforBusiness200kbps(LTE)"]
[82,"個別ID","利用しない","利用しない","LTE","200kbps","無","個別ID利用しない利用しないLTE200kbps無","[docomo]OCNモバイルONEforBusiness200kbps(LTE)"]
[83,"個別ID","利用しない","利用しない","LTE","200kbps","有","個別ID利用しない利用しないLTE200kbps有","[docomo]OCNモバイルONEforBusiness200kbps(LTE,SMS)"]
[84,"個別ID","利用しない","利用しない","LTE","30MBプラス",null,"個別ID利用しない利用しないLTE30MBプラス","[docomo]OCNモバイルONEforBusiness30MBプラス(LTE)"]
[85,"個別ID","利用しない","利用しない","LTE","30MBプラス","無","個別ID利用しない利用しないLTE30MBプラス無","[docomo]OCNモバイルONEforBusiness30MBプラス(LTE)"]
[86,"個別ID","利用しない","利用しない","LTE","30MBプラス","有","個別ID利用しない利用しないLTE30MBプラス有","[docomo]OCNモバイルONEforBusiness30MBプラス(LTE,SMS)"]
[87,"個別ID","利用しない","利用する","LTE","1GB",null,"個別ID利用しない利用するLTE1GB","[docomo]OCNモバイルONEforBusiness1GBIP1(LTE)"]
[88,"個別ID","利用しない","利用する","LTE","1GB","無","個別ID利用しない利用するLTE1GB無","[docomo]OCNモバイルONEforBusiness1GBIP1(LTE)"]
[89,"個別ID","利用しない","利用する","LTE","1GB","有","個別ID利用しない利用するLTE1GB有","[docomo]OCNモバイルONEforBusiness1GBIP1(LTE,SMS)"]
[90,"個別ID","利用しない","利用する","LTE","3GB",null,"個別ID利用しない利用するLTE3GB","[docomo]OCNモバイルONEforBusiness3GBIP1(LTE)"]
[91,"個別ID","利用しない","利用する","LTE","3GB","無","個別ID利用しない利用するLTE3GB無","[docomo]OCNモバイルONEforBusiness3GBIP1(LTE)"]
[92,"個別ID","利用しない","利用する","LTE","3GB","有","個別ID利用しない利用するLTE3GB有","[docomo]OCNモバイルONEforBusiness3GBIP1(LTE,SMS)"]
[{"$f":"A95+1","v":93},"個別ID","利用しない","利用する","LTE","7GB",null,"個別ID利用しない利用するLTE7GB","[docomo]OCNモバイルONEforBusiness7GBIP1(LTE)"]
[94,"個別ID","利用しない","利用する","LTE","7GB","無","個別ID利用しない利用するLTE7GB無","[docomo]OCNモバイルONEforBusiness7GBIP1(LTE)"]
[95,"個別ID","利用しない","利用する","LTE","7GB","有","個別ID利用しない利用するLTE7GB有","[docomo]OCNモバイルONEforBusiness7GBIP1(LTE,SMS)"]
[96,"個別ID","利用しない","利用する","LTE","Unlimited",null,{"$f":"CONCATENATE(B99,C99,D99,E99,F99,G99)","v":"個別ID利用しない利用するLTEUnlimited"},"[docomo]OCNモバイルONEforBusinessUnlimitedIP1(LTE)"]
[97,"個別ID","利用しない","利用する","LTE","Unlimited","無","個別ID利用しない利用するLTEUnlimited無","[docomo]OCNモバイルONEforBusinessUnlimitedIP1(LTE)"]
[98,"個別ID","利用しない","利用する","LTE","200kbps",null,"個別ID利用しない利用するLTE200kbps","[docomo]OCNモバイルONEforBusiness200kbpsIP1(LTE)"]
[99,"個別ID","利用しない","利用する","LTE","200kbps","無","個別ID利用しない利用するLTE200kbps無","[docomo]OCNモバイルONEforBusiness200kbpsIP1(LTE)"]
[100,"個別ID","利用しない","利用する","LTE","200kbps","有","個別ID利用しない利用するLTE200kbps有","[docomo]OCNモバイルONEforBusiness200kbpsIP1(LTE,SMS)"]
[101,"個別ID","利用しない","利用する","LTE","30MBプラス",null,"個別ID利用しない利用するLTE30MBプラス","[docomo]OCNモバイルONEforBusiness30MBプラスIP1(LTE)"]
[102,"個別ID","利用しない","利用する","LTE","30MBプラス","無","個別ID利用しない利用するLTE30MBプラス無","[docomo]OCNモバイルONEforBusiness30MBプラスIP1(LTE)"]
[103,"個別ID","利用しない","利用する","LTE","30MBプラス","有","個別ID利用しない利用するLTE30MBプラス有","[docomo]OCNモバイルONEforBusiness30MBプラスIP1(LTE,SMS)"]
[104,"共通ID","利用しない",null,"LTE","まなびポケット3GB",null,"共通ID利用しないLTEまなびポケット3GB","OCNモバイルONEforBusiness3GBまなびポケット（LTE）"]
[105,"個別ID","利用する","利用しない","LTE","1GB",null,"個別ID利用する利用しないLTE1GB","[docomo]OCNモバイルONEforBusiness1GB(LTE)(ビジネスパックVPN)"]
[106,"個別ID","利用する","利用しない","LTE","3GB",null,"個別ID利用する利用しないLTE3GB","[docomo]OCNモバイルONEforBusiness3GB(LTE)(ビジネスパックVPN)"]
[107,"個別ID","利用する","利用しない","LTE","7GB",null,"個別ID利用する利用しないLTE7GB","[docomo]OCNモバイルONEforBusiness7GB(LTE)(ビジネスパックVPN)"]
[108,"個別ID","利用する","利用しない","LTE","200kbps",null,"個別ID利用する利用しないLTE200kbps","[docomo]OCNモバイルONEforBusiness200kbps(LTE)(ビジネスパックVPN)"]
[109,"共通ID","利用しない",null,"LTE","テレワーク1GB_1年","有","共通ID利用しないLTEテレワーク1GB_1年有","OCNモバイルONEforBusinessテレワーク1GB_1年（LTE)(SMS）"]
[110,"共通ID","利用しない",null,"LTE","テレワーク3GB_1年","有",{"$f":"CONCATENATE(B113,C113,D113,E113,F113,G113)","v":"共通ID利用しないLTEテレワーク3GB_1年有"},"OCNモバイルONEforBusinessテレワーク3GB_1年（LTE)(SMS）"]
[111,"共通ID","利用しない",null,"LTE","テレワーク7GB_1年","有",{"$f":"CONCATENATE(B114,C114,D114,E114,F114,G114)","v":"共通ID利用しないLTEテレワーク7GB_1年有"},"OCNモバイルONEforBusinessテレワーク7GB_1年（LTE)(SMS）"]
[112,"共通ID","利用しない",null,"LTE","テレワーク10GB_1年","有","共通ID利用しないLTEテレワーク10GB_1年有","OCNモバイルONEforBusinessテレワーク10GB_1年（LTE)(SMS）"]
[113,"共通ID","利用しない",null,"LTE","テレワーク20GB_1年","有","共通ID利用しないLTEテレワーク20GB_1年有","OCNモバイルONEforBusinessテレワーク20GB_1年（LTE)(SMS）"]
[114,"共通ID","利用しない",null,"LTE","テレワーク30GB_1年","有","共通ID利用しないLTEテレワーク30GB_1年有","OCNモバイルONEforBusinessテレワーク30GB_1年（LTE)(SMS）"]
[115,"共通ID","利用しない",null,"LTE","テレワーク50GB_1年","有","共通ID利用しないLTEテレワーク50GB_1年有","OCNモバイルONEforBusinessテレワーク50GB_1年（LTE)(SMS）"]
[116,"共通ID","利用しない",null,"LTE","テレワーク3GB+1GB_3年","有",{"$f":"CONCATENATE(B119,C119,D119,E119,F119,G119)","v":"共通ID利用しないLTEテレワーク3GB+1GB_3年有"},"OCNモバイルONEforBusinessテレワーク3GB＋1GB_3年（LTE)(SMS）"]
[117,"共通ID","利用しない",null,"LTE","テレワーク7GB+1GB_3年","有",{"$f":"CONCATENATE(B120,C120,D120,E120,F120,G120)","v":"共通ID利用しないLTEテレワーク7GB+1GB_3年有"},"OCNモバイルONEforBusinessテレワーク7GB＋1GB_3年（LTE)(SMS）"]
[118,"共通ID","利用しない",null,"LTE","テレワーク2in1_1GB_1年","有","共通ID利用しないLTEテレワーク2in1_1GB_1年有","OCNモバイルONEforBusinessテレワーク1GB_1年（LTE,SMS）2in1"]
[119,"共通ID","利用しない",null,"LTE","テレワーク2in1_3GB_1年","有","共通ID利用しないLTEテレワーク2in1_3GB_1年有","OCNモバイルONEforBusinessテレワーク3GB_1年（LTE,SMS）2in1"]
[120,"共通ID","利用しない",null,"LTE","テレワーク2in1_7GB_1年","有","共通ID利用しないLTEテレワーク2in1_7GB_1年有","OCNモバイルONEforBusinessテレワーク7GB_1年（LTE,SMS）2in1"]
[121,"共通ID","利用しない",null,"LTE","テレワーク2in1_10GB_1年","有","共通ID利用しないLTEテレワーク2in1_10GB_1年有","OCNモバイルONEforBusinessテレワーク10GB_1年（LTE,SMS）2in1"]
[122,"共通ID","利用しない",null,"LTE","テレワーク2in1_20GB_1年","有","共通ID利用しないLTEテレワーク2in1_20GB_1年有","OCNモバイルONEforBusinessテレワーク20GB_1年（LTE,SMS）2in1"]
[123,"共通ID","利用しない",null,"LTE","テレワーク2in1_30GB_1年","有","共通ID利用しないLTEテレワーク2in1_30GB_1年有","OCNモバイルONEforBusinessテレワーク30GB_1年（LTE,SMS）2in1"]
[124,"共通ID","利用しない",null,"LTE","テレワーク2in1_50GB_1年","有","共通ID利用しないLTEテレワーク2in1_50GB_1年有","OCNモバイルONEforBusinessテレワーク50GB_1年（LTE,SMS）2in1"]
[125,"共通ID","利用しない",null,"LTE","テレワーク2in1_3GB+1GB_3年","有","共通ID利用しないLTEテレワーク2in1_3GB+1GB_3年有","OCNモバイルONEforBusinessテレワーク3GB＋1GB_3年（LTE,SMS）2in1"]
[126,"共通ID","利用しない",null,"LTE","テレワーク2in1_7GB+1GB_3年","有","共通ID利用しないLTEテレワーク2in1_7GB+1GB_3年有","OCNモバイルONEforBusinessテレワーク7GB＋1GB_3年（LTE,SMS）2in1"]
[127,"共通ID","利用しない",null,"LTE","テレワーク1GB_1年(UNO Virtual)","有","共通ID利用しないLTEテレワーク1GB_1年(UNO Virtual)有","OCNモバONEforBizテレワーク1GB_1年（UNOv)(LTE)(SMS）"]
[128,"共通ID","利用しない",null,"LTE","テレワーク3GB_1年(UNO Virtual)","有","共通ID利用しないLTEテレワーク3GB_1年(UNO Virtual)有","OCNモバONEforBizテレワーク3GB_1年（UNOv)(LTE)(SMS）"]
[129,"共通ID","利用しない",null,"LTE","テレワーク7GB_1年(UNO Virtual)","有","共通ID利用しないLTEテレワーク7GB_1年(UNO Virtual)有","OCNモバONEforBizテレワーク7GB_1年（UNOv)(LTE)(SMS）"]
[130,"共通ID","利用しない",null,"LTE","テレワーク10GB_1年(UNO Virtual)","有","共通ID利用しないLTEテレワーク10GB_1年(UNO Virtual)有","OCNモバONEforBizテレワーク10GB_1年（UNOv)(LTE)(SMS）"]
[131,"共通ID","利用しない",null,"LTE","テレワーク20GB_1年(UNO Virtual)","有","共通ID利用しないLTEテレワーク20GB_1年(UNO Virtual)有","OCNモバONEforBizテレワーク20GB_1年（UNOv)(LTE)(SMS）"]
[132,"共通ID","利用しない",null,"LTE","テレワーク30GB_1年(UNO Virtual)","有","共通ID利用しないLTEテレワーク30GB_1年(UNO Virtual)有","OCNモバONEforBizテレワーク30GB_1年（UNOv)(LTE)(SMS）"]
[133,"共通ID","利用しない",null,"LTE","テレワーク50GB_1年(UNO Virtual)","有","共通ID利用しないLTEテレワーク50GB_1年(UNO Virtual)有","OCNモバONEforBizテレワーク50GB_1年（UNOv)(LTE)(SMS）"]
[134,"共通ID","利用しない",null,"LTE","テレワーク2in1_1GB_1年(UNO Virtual)","有","共通ID利用しないLTEテレワーク2in1_1GB_1年(UNO Virtual)有","OCNモバONE for Biz テレワーク 1GB_1年（UNOv)(LTE,SMS）2in1"]
[135,"共通ID","利用しない",null,"LTE","テレワーク2in1_3GB_1年(UNO Virtual)","有","共通ID利用しないLTEテレワーク2in1_3GB_1年(UNO Virtual)有","OCNモバONE for Biz テレワーク 3GB_1年（UNOv)(LTE,SMS）2in1"]
[136,"共通ID","利用しない",null,"LTE","テレワーク2in1_7GB_1年(UNO Virtual)","有","共通ID利用しないLTEテレワーク2in1_7GB_1年(UNO Virtual)有","OCNモバONE for Biz テレワーク 7GB_1年（UNOv)(LTE,SMS）2in1"]
[137,"共通ID","利用しない",null,"LTE","テレワーク2in1_10GB_1年(UNO Virtual)","有","共通ID利用しないLTEテレワーク2in1_10GB_1年(UNO Virtual)有","OCNモバONE for Biz テレワーク 10GB_1年（UNOv)(LTE,SMS）2in1"]
[138,"共通ID","利用しない",null,"LTE","テレワーク2in1_20GB_1年(UNO Virtual)","有","共通ID利用しないLTEテレワーク2in1_20GB_1年(UNO Virtual)有","OCNモバONE for Biz テレワーク 20GB_1年（UNOv)(LTE,SMS）2in1"]
[139,"共通ID","利用しない",null,"LTE","テレワーク2in1_30GB_1年(UNO Virtual)","有","共通ID利用しないLTEテレワーク2in1_30GB_1年(UNO Virtual)有","OCNモバONE for Biz テレワーク 30GB_1年（UNOv)(LTE,SMS）2in1"]
[140,"共通ID","利用しない",null,"LTE","テレワーク2in1_50GB_1年(UNO Virtual)","有","共通ID利用しないLTEテレワーク2in1_50GB_1年(UNO Virtual)有","OCNモバONE for Biz テレワーク 50GB_1年（UNOv)(LTE,SMS）2in1"]
[141,"共通ID","利用しない",null,"LTE","テレワーク1GB_1年(マジックコネクト)","有","共通ID利用しないLTEテレワーク1GB_1年(マジックコネクト)有","OCNモバONEforBizテレワーク1GB_1年（マジコネ)(LTE)(SMS）"]
[142,"共通ID","利用しない",null,"LTE","テレワーク3GB_1年(マジックコネクト)","有","共通ID利用しないLTEテレワーク3GB_1年(マジックコネクト)有","OCNモバONEforBizテレワーク3GB_1年（マジコネ)(LTE)(SMS）"]
[143,"共通ID","利用しない",null,"LTE","テレワーク7GB_1年(マジックコネクト)","有","共通ID利用しないLTEテレワーク7GB_1年(マジックコネクト)有","OCNモバONEforBizテレワーク7GB_1年（マジコネ)(LTE)(SMS）"]
[144,"共通ID","利用しない",null,"LTE","テレワーク10GB_1年(マジックコネクト)","有","共通ID利用しないLTEテレワーク10GB_1年(マジックコネクト)有","OCNモバONEforBizテレワーク10GB_1年（マジコネ)(LTE)(SMS）"]
[145,"共通ID","利用しない",null,"LTE","テレワーク20GB_1年(マジックコネクト)","有","共通ID利用しないLTEテレワーク20GB_1年(マジックコネクト)有","OCNモバONEforBizテレワーク20GB_1年（マジコネ)(LTE)(SMS）"]
[146,"共通ID","利用しない",null,"LTE","テレワーク30GB_1年(マジックコネクト)","有","共通ID利用しないLTEテレワーク30GB_1年(マジックコネクト)有","OCNモバONEforBizテレワーク30GB_1年（マジコネ)(LTE)(SMS）"]
[147,"共通ID","利用しない",null,"LTE","テレワーク50GB_1年(マジックコネクト)","有","共通ID利用しないLTEテレワーク50GB_1年(マジックコネクト)有","OCNモバONEforBizテレワーク50GB_1年（マジコネ)(LTE)(SMS）"]
[148,"共通ID","利用しない",null,"LTE","テレワーク2in1_1GB_1年(マジックコネクト)","有","共通ID利用しないLTEテレワーク2in1_1GB_1年(マジックコネクト)有","OCNモバONE for Biz テレワーク 1GB_1年（マジコネ)(LTE,SMS）2in1"]
[149,"共通ID","利用しない",null,"LTE","テレワーク2in1_3GB_1年(マジックコネクト)","有","共通ID利用しないLTEテレワーク2in1_3GB_1年(マジックコネクト)有","OCNモバONE for Biz テレワーク 3GB_1年（マジコネ)(LTE,SMS）2in1"]
[150,"共通ID","利用しない",null,"LTE","テレワーク2in1_7GB_1年(マジックコネクト)","有","共通ID利用しないLTEテレワーク2in1_7GB_1年(マジックコネクト)有","OCNモバONE for Biz テレワーク 7GB_1年（マジコネ)(LTE,SMS）2in1"]
[151,"共通ID","利用しない",null,"LTE","テレワーク2in1_10GB_1年(マジックコネクト)","有","共通ID利用しないLTEテレワーク2in1_10GB_1年(マジックコネクト)有","OCNモバONE for Biz テレワーク 10GB_1年（マジコネ)(LTE,SMS）2in1"]
[152,"共通ID","利用しない",null,"LTE","テレワーク2in1_20GB_1年(マジックコネクト)","有","共通ID利用しないLTEテレワーク2in1_20GB_1年(マジックコネクト)有","OCNモバONE for Biz テレワーク 20GB_1年（マジコネ)(LTE,SMS）2in1"]
[153,"共通ID","利用しない",null,"LTE","テレワーク2in1_30GB_1年(マジックコネクト)","有","共通ID利用しないLTEテレワーク2in1_30GB_1年(マジックコネクト)有","OCNモバONE for Biz テレワーク 30GB_1年（マジコネ)(LTE,SMS）2in1"]
[154,"共通ID","利用しない",null,"LTE","テレワーク2in1_50GB_1年(マジックコネクト)","有",{"$f":"CONCATENATE(B157,C157,D157,E157,F157,G157)","v":"共通ID利用しないLTEテレワーク2in1_50GB_1年(マジックコネクト)有"},"OCNモバONE for Biz テレワーク 50GB_1年（マジコネ)(LTE,SMS）2in1"]
[155,"共通ID","利用しない",null,"LTE","テレワーク1GB_3年リース","有","共通ID利用しないLTEテレワーク1GB_3年リース有","OCNモバイルONEforBusinessテレワーク1GB_3年リース(LTE，SMS)","2023年度1Q追加"]
[156,"共通ID","利用しない",null,"LTE","テレワーク3GB_3年リース","有","共通ID利用しないLTEテレワーク3GB_3年リース有","OCNモバイルONEforBusinessテレワーク3GB_3年リース(LTE，SMS)","2023年度1Q追加"]
[{"$f":"A159+1","v":157},"共通ID","利用しない",null,"LTE","テレワーク7GB_3年リース","有","共通ID利用しないLTEテレワーク7GB_3年リース有","OCNモバイルONEforBusinessテレワーク7GB_3年リース(LTE，SMS)","2023年度1Q追加"]
[158,"共通ID","利用しない",null,"LTE","テレワーク10GB_3年リース","有","共通ID利用しないLTEテレワーク10GB_3年リース有","OCNモバイルONEforBusinessテレワーク10GB_3年リース(LTE，SMS)","2023年度1Q追加"]
[159,"共通ID","利用しない",null,"LTE","テレワーク20GB_3年リース","有","共通ID利用しないLTEテレワーク20GB_3年リース有","OCNモバイルONEforBusinessテレワーク20GB_3年リース(LTE，SMS)","2023年度1Q追加"]
[160,"共通ID","利用しない",null,"LTE","テレワーク30GB_3年リース","有","共通ID利用しないLTEテレワーク30GB_3年リース有","OCNモバイルONEforBusinessテレワーク30GB_3年リース(LTE，SMS)","2023年度1Q追加"]
[161,"共通ID","利用しない",null,"LTE","テレワーク50GB_3年リース","有","共通ID利用しないLTEテレワーク50GB_3年リース有","OCNモバイルONEforBusinessテレワーク50GB_3年リース(LTE，SMS)","2023年度1Q追加"]
[162,"共通ID","利用しない",null,"3G/LTE","1GB",null,"共通ID利用しない3G/LTE1GB","OCN モバイル ONE for Business 1GB","2022年3Qリリース以降は申込みなし（過去申請分の表示用）"]
[163,"共通ID","利用しない",null,"3G/LTE","1GB","無","共通ID利用しない3G/LTE1GB無","OCN モバイル ONE for Business 1GB","2022年3Qリリース以降は申込みなし（過去申請分の表示用）"]
[164,"共通ID","利用しない",null,"3G/LTE","1GB","有","共通ID利用しない3G/LTE1GB有","OCN モバイル ONE for Business 1GB (SMS)","2022年3Qリリース以降は申込みなし（過去申請分の表示用）"]
[165,"共通ID","利用しない",null,"3G/LTE","3GB",null,"共通ID利用しない3G/LTE3GB","OCN モバイル ONE for Business 3GB","2022年3Qリリース以降は申込みなし（過去申請分の表示用）"]
[166,"共通ID","利用しない",null,"3G/LTE","3GB","無","共通ID利用しない3G/LTE3GB無","OCN モバイル ONE for Business 3GB","2022年3Qリリース以降は申込みなし（過去申請分の表示用）"]
[167,"共通ID","利用しない",null,"3G/LTE","3GB","有","共通ID利用しない3G/LTE3GB有","OCN モバイル ONE for Business 3GB (SMS)","2022年3Qリリース以降は申込みなし（過去申請分の表示用）"]
[168,"共通ID","利用しない",null,"3G/LTE","5GB",null,"共通ID利用しない3G/LTE5GB","[docomo]OCNモバイルONEforBusiness5GB(LTE)","2022年3Qリリース以降は申込みなし（過去申請分の表示用）"]
[169,"共通ID","利用しない",null,"3G/LTE","5GB","無","共通ID利用しない3G/LTE5GB無","[docomo]OCNモバイルONEforBusiness5GB(LTE)","2022年3Qリリース以降は申込みなし（過去申請分の表示用）"]
[170,"共通ID","利用しない",null,"3G/LTE","5GB","有","共通ID利用しない3G/LTE5GB有","[docomo]OCNモバイルONEforBusiness5GB(LTE,SMS)","2022年3Qリリース以降は申込みなし（過去申請分の表示用）"]
[171,"共通ID","利用しない",null,"3G/LTE","7GB",null,"共通ID利用しない3G/LTE7GB","OCN モバイル ONE for Business 7GB","2022年3Qリリース以降は申込みなし（過去申請分の表示用）"]
[172,"共通ID","利用しない",null,"3G/LTE","7GB","無","共通ID利用しない3G/LTE7GB無","OCN モバイル ONE for Business 7GB","2022年3Qリリース以降は申込みなし（過去申請分の表示用）"]
[173,"共通ID","利用しない",null,"3G/LTE","7GB","有","共通ID利用しない3G/LTE7GB有","OCN モバイル ONE for Business 7GB (SMS)","2022年3Qリリース以降は申込みなし（過去申請分の表示用）"]
[174,"共通ID","利用しない",null,"3G/LTE","10GB",null,"共通ID利用しない3G/LTE10GB","OCN モバイル ONE for Business 10GB","2022年3Qリリース以降は申込みなし（過去申請分の表示用）"]
[175,"共通ID","利用しない",null,"3G/LTE","10GB","無","共通ID利用しない3G/LTE10GB無","OCN モバイル ONE for Business 10GB","2022年3Qリリース以降は申込みなし（過去申請分の表示用）"]
[176,"共通ID","利用しない",null,"3G/LTE","10GB","有","共通ID利用しない3G/LTE10GB有","OCN モバイル ONE for Business 10GB (SMS)","2022年3Qリリース以降は申込みなし（過去申請分の表示用）"]
[177,"共通ID","利用しない",null,"3G/LTE","Unlimited",null,"共通ID利用しない3G/LTEUnlimited","OCN モバイル ONE for Business Unlimited","2022年3Qリリース以降は申込みなし（過去申請分の表示用）"]
[178,"共通ID","利用しない",null,"3G/LTE","Unlimited","無","共通ID利用しない3G/LTEUnlimited無","OCN モバイル ONE for Business Unlimited","2022年3Qリリース以降は申込みなし（過去申請分の表示用）"]
[179,"共通ID","利用しない",null,"3G/LTE","Unlimited","有","共通ID利用しない3G/LTEUnlimited有","[docomo]OCNモバイルONEforBusinessUnlimited(SMS)","2022年3Qリリース以降は申込みなし（過去申請分の表示用）"]
[180,"共通ID","利用しない",null,"3G/LTE","200kbps",null,"共通ID利用しない3G/LTE200kbps","OCN モバイル ONE for Business 200Kbps","2022年3Qリリース以降は申込みなし（過去申請分の表示用）"]
[181,"共通ID","利用しない",null,"3G/LTE","200kbps","無","共通ID利用しない3G/LTE200kbps無","OCN モバイル ONE for Business 200Kbps","2022年3Qリリース以降は申込みなし（過去申請分の表示用）"]
[182,"共通ID","利用しない",null,"3G/LTE","200kbps","有","共通ID利用しない3G/LTE200kbps有","OCN モバイル ONE for Business 200Kbps (SMS)","2022年3Qリリース以降は申込みなし（過去申請分の表示用）"]
[183,"共通ID","利用しない",null,"3G/LTE","30MBプラス",null,"共通ID利用しない3G/LTE30MBプラス","OCN モバイル ONE for Business 30MBプラス","2022年3Qリリース以降は申込みなし（過去申請分の表示用）"]
[184,"共通ID","利用しない",null,"3G/LTE","30MBプラス","無","共通ID利用しない3G/LTE30MBプラス無","OCN モバイル ONE for Business 30MBプラス","2022年3Qリリース以降は申込みなし（過去申請分の表示用）"]
[185,"共通ID","利用しない",null,"3G/LTE","30MBプラス","有","共通ID利用しない3G/LTE30MBプラス有","OCN モバイル ONE for Business 30MBプラス (SMS)","2022年3Qリリース以降は申込みなし（過去申請分の表示用）"]
[186,"共通ID","利用しない",null,"3G/LTE","60MBプラス",null,"共通ID利用しない3G/LTE60MBプラス","[docomo]OCNモバイルONEforBusiness60MBプラス(LTE)","2022年3Qリリース以降は申込みなし（過去申請分の表示用）"]
[187,"共通ID","利用しない",null,"3G/LTE","60MBプラス","無","共通ID利用しない3G/LTE60MBプラス無","[docomo]OCNモバイルONEforBusiness60MBプラス(LTE)","2022年3Qリリース以降は申込みなし（過去申請分の表示用）"]
[188,"共通ID","利用しない",null,"3G/LTE","60MBプラス","有","共通ID利用しない3G/LTE60MBプラス有","[docomo]OCNモバイルONEforBusiness60MBプラス(LTE,SMS)","2022年3Qリリース以降は申込みなし（過去申請分の表示用）"]
[189,"個別ID","利用しない","利用しない","3G/LTE","1GB",null,"個別ID利用しない利用しない3G/LTE1GB","[docomo]OCNモバイルONEforBusiness1GB(LTE)","2022年3Qリリース以降は申込みなし（過去申請分の表示用）"]
[190,"個別ID","利用しない","利用しない","3G/LTE","1GB","無","個別ID利用しない利用しない3G/LTE1GB無","[docomo]OCNモバイルONEforBusiness1GB(LTE)","2022年3Qリリース以降は申込みなし（過去申請分の表示用）"]
[191,"個別ID","利用しない","利用しない","3G/LTE","1GB","有","個別ID利用しない利用しない3G/LTE1GB有","[docomo]OCNモバイルONEforBusiness1GB(LTE,SMS)","2022年3Qリリース以降は申込みなし（過去申請分の表示用）"]
[192,"個別ID","利用しない","利用しない","3G/LTE","3GB",null,"個別ID利用しない利用しない3G/LTE3GB","[docomo]OCNモバイルONEforBusiness3GB(LTE)","2022年3Qリリース以降は申込みなし（過去申請分の表示用）"]
[193,"個別ID","利用しない","利用しない","3G/LTE","3GB","無","個別ID利用しない利用しない3G/LTE3GB無","[docomo]OCNモバイルONEforBusiness3GB(LTE)","2022年3Qリリース以降は申込みなし（過去申請分の表示用）"]
[194,"個別ID","利用しない","利用しない","3G/LTE","3GB","有","個別ID利用しない利用しない3G/LTE3GB有","[docomo]OCNモバイルONEforBusiness3GB(LTE,SMS)","2022年3Qリリース以降は申込みなし（過去申請分の表示用）"]
[195,"個別ID","利用しない","利用しない","3G/LTE","5GB",null,"個別ID利用しない利用しない3G/LTE5GB","[docomo]OCNモバイルONEforBusiness5GB(LTE)","2022年3Qリリース以降は申込みなし（過去申請分の表示用）"]
[196,"個別ID","利用しない","利用しない","3G/LTE","5GB","無","個別ID利用しない利用しない3G/LTE5GB無","[docomo]OCNモバイルONEforBusiness5GB(LTE)","2022年3Qリリース以降は申込みなし（過去申請分の表示用）"]
[197,"個別ID","利用しない","利用しない","3G/LTE","5GB","有","個別ID利用しない利用しない3G/LTE5GB有","[docomo]OCNモバイルONEforBusiness5GB(LTE,SMS)","2022年3Qリリース以降は申込みなし（過去申請分の表示用）"]
[198,"個別ID","利用しない","利用しない","3G/LTE","7GB",null,"個別ID利用しない利用しない3G/LTE7GB","[docomo]OCNモバイルONEforBusiness7GB(LTE)","2022年3Qリリース以降は申込みなし（過去申請分の表示用）"]
[199,"個別ID","利用しない","利用しない","3G/LTE","7GB","無","個別ID利用しない利用しない3G/LTE7GB無","[docomo]OCNモバイルONEforBusiness7GB(LTE)","2022年3Qリリース以降は申込みなし（過去申請分の表示用）"]
[200,"個別ID","利用しない","利用しない","3G/LTE","7GB","有","個別ID利用しない利用しない3G/LTE7GB有","[docomo]OCNモバイルONEforBusiness7GB(LTE,SMS)","2022年3Qリリース以降は申込みなし（過去申請分の表示用）"]
[201,"個別ID","利用しない","利用しない","3G/LTE","10GB",null,"個別ID利用しない利用しない3G/LTE10GB","[docomo]OCNモバイルONEforBusiness10GB(LTE)","2022年3Qリリース以降は申込みなし（過去申請分の表示用）"]
[202,"個別ID","利用しない","利用しない","3G/LTE","10GB","無","個別ID利用しない利用しない3G/LTE10GB無","[docomo]OCNモバイルONEforBusiness10GB(LTE)","2022年3Qリリース以降は申込みなし（過去申請分の表示用）"]
[203,"個別ID","利用しない","利用しない","3G/LTE","10GB","有","個別ID利用しない利用しない3G/LTE10GB有","[docomo]OCNモバイルONEforBusiness10GB(LTE,SMS)","2022年3Qリリース以降は申込みなし（過去申請分の表示用）"]
[204,"個別ID","利用しない","利用しない","3G/LTE","Unlimited",null,"個別ID利用しない利用しない3G/LTEUnlimited","[docomo]OCNモバイルONEforBusinessUnlimited(LTE)","2022年3Qリリース以降は申込みなし（過去申請分の表示用）"]
[205,"個別ID","利用しない","利用しない","3G/LTE","Unlimited","無","個別ID利用しない利用しない3G/LTEUnlimited無","[docomo]OCNモバイルONEforBusinessUnlimited(LTE)","2022年3Qリリース以降は申込みなし（過去申請分の表示用）"]
[206,"個別ID","利用しない","利用しない","3G/LTE","Unlimited","有","個別ID利用しない利用しない3G/LTEUnlimited有","[docomo]OCNモバイルONEforBusinessUnlimited(LTE,SMS)","2022年3Qリリース以降は申込みなし（過去申請分の表示用）"]
[207,"個別ID","利用しない","利用しない","3G/LTE","200kbps",null,"個別ID利用しない利用しない3G/LTE200kbps","[docomo]OCNモバイルONEforBusiness200kbps(LTE)","2022年3Qリリース以降は申込みなし（過去申請分の表示用）"]
[208,"個別ID","利用しない","利用しない","3G/LTE","200kbps","無","個別ID利用しない利用しない3G/LTE200kbps無","[docomo]OCNモバイルONEforBusiness200kbps(LTE)","2022年3Qリリース以降は申込みなし（過去申請分の表示用）"]
[209,"個別ID","利用しない","利用しない","3G/LTE","200kbps","有","個別ID利用しない利用しない3G/LTE200kbps有","[docomo]OCNモバイルONEforBusiness200kbps(LTE,SMS)","2022年3Qリリース以降は申込みなし（過去申請分の表示用）"]
[210,"個別ID","利用しない","利用しない","3G/LTE","30MBプラス",null,"個別ID利用しない利用しない3G/LTE30MBプラス","[docomo]OCNモバイルONEforBusiness30MBプラス(LTE)","2022年3Qリリース以降は申込みなし（過去申請分の表示用）"]
[211,"個別ID","利用しない","利用しない","3G/LTE","30MBプラス","無","個別ID利用しない利用しない3G/LTE30MBプラス無","[docomo]OCNモバイルONEforBusiness30MBプラス(LTE)","2022年3Qリリース以降は申込みなし（過去申請分の表示用）"]
[212,"個別ID","利用しない","利用しない","3G/LTE","30MBプラス","有","個別ID利用しない利用しない3G/LTE30MBプラス有","[docomo]OCNモバイルONEforBusiness30MBプラス(LTE,SMS)","2022年3Qリリース以降は申込みなし（過去申請分の表示用）"]
[213,"個別ID","利用しない","利用しない","3G/LTE","60MBプラス",null,"個別ID利用しない利用しない3G/LTE60MBプラス","[docomo]OCNモバイルONEforBusiness60MBプラス(LTE)","2022年3Qリリース以降は申込みなし（過去申請分の表示用）"]
[214,"個別ID","利用しない","利用しない","3G/LTE","60MBプラス","無","個別ID利用しない利用しない3G/LTE60MBプラス無","[docomo]OCNモバイルONEforBusiness60MBプラス(LTE)","2022年3Qリリース以降は申込みなし（過去申請分の表示用）"]
[215,"個別ID","利用しない","利用しない","3G/LTE","60MBプラス","有","個別ID利用しない利用しない3G/LTE60MBプラス有","[docomo]OCNモバイルONEforBusiness60MBプラス(LTE,SMS)","2022年3Qリリース以降は申込みなし（過去申請分の表示用）"]
[216,"個別ID","利用しない","利用する","3G/LTE","1GB",null,"個別ID利用しない利用する3G/LTE1GB","[docomo]OCNモバイルONEforBusiness1GBIP1(LTE)","2022年3Qリリース以降は申込みなし（過去申請分の表示用）"]
[217,"個別ID","利用しない","利用する","3G/LTE","1GB","無","個別ID利用しない利用する3G/LTE1GB無","[docomo]OCNモバイルONEforBusiness1GBIP1(LTE)","2022年3Qリリース以降は申込みなし（過去申請分の表示用）"]
[218,"個別ID","利用しない","利用する","3G/LTE","1GB","有","個別ID利用しない利用する3G/LTE1GB有","[docomo]OCNモバイルONEforBusiness1GBIP1(LTE,SMS)","2022年3Qリリース以降は申込みなし（過去申請分の表示用）"]
[219,"個別ID","利用しない","利用する","3G/LTE","3GB",null,"個別ID利用しない利用する3G/LTE3GB","[docomo]OCNモバイルONEforBusiness3GBIP1(LTE)","2022年3Qリリース以降は申込みなし（過去申請分の表示用）"]
[220,"個別ID","利用しない","利用する","3G/LTE","3GB","無","個別ID利用しない利用する3G/LTE3GB無","[docomo]OCNモバイルONEforBusiness3GBIP1(LTE)","2022年3Qリリース以降は申込みなし（過去申請分の表示用）"]
[{"$f":"A223+1","v":221},"個別ID","利用しない","利用する","3G/LTE","3GB","有","個別ID利用しない利用する3G/LTE3GB有","[docomo]OCNモバイルONEforBusiness3GBIP1(LTE,SMS)","2022年3Qリリース以降は申込みなし（過去申請分の表示用）"]
[222,"個別ID","利用しない","利用する","3G/LTE","5GB",null,"個別ID利用しない利用する3G/LTE5GB","[docomo]OCNモバイルONEforBusiness5GBIP1(LTE)","2022年3Qリリース以降は申込みなし（過去申請分の表示用）"]
[223,"個別ID","利用しない","利用する","3G/LTE","5GB","無","個別ID利用しない利用する3G/LTE5GB無","[docomo]OCNモバイルONEforBusiness5GBIP1(LTE)","2022年3Qリリース以降は申込みなし（過去申請分の表示用）"]
[224,"個別ID","利用しない","利用する","3G/LTE","5GB","有","個別ID利用しない利用する3G/LTE5GB有","[docomo]OCNモバイルONEforBusiness5GBIP1(LTE,SMS)","2022年3Qリリース以降は申込みなし（過去申請分の表示用）"]
[225,"個別ID","利用しない","利用する","3G/LTE","7GB",null,{"$f":"CONCATENATE(B228,C228,D228,E228,F228,G228)","v":"個別ID利用しない利用する3G/LTE7GB"},"[docomo]OCNモバイルONEforBusiness7GBIP1(LTE)","2022年3Qリリース以降は申込みなし（過去申請分の表示用）"]
[226,"個別ID","利用しない","利用する","3G/LTE","7GB","無","個別ID利用しない利用する3G/LTE7GB無","[docomo]OCNモバイルONEforBusiness7GBIP1(LTE)","2022年3Qリリース以降は申込みなし（過去申請分の表示用）"]
[227,"個別ID","利用しない","利用する","3G/LTE","7GB","有","個別ID利用しない利用する3G/LTE7GB有","[docomo]OCNモバイルONEforBusiness7GBIP1(LTE,SMS)","2022年3Qリリース以降は申込みなし（過去申請分の表示用）"]
[228,"個別ID","利用しない","利用する","3G/LTE","10GB",null,"個別ID利用しない利用する3G/LTE10GB","[docomo]OCNモバイルONEforBusiness10GBIP1(LTE)","2022年3Qリリース以降は申込みなし（過去申請分の表示用）"]
[229,"個別ID","利用しない","利用する","3G/LTE","10GB","無","個別ID利用しない利用する3G/LTE10GB無","[docomo]OCNモバイルONEforBusiness10GBIP1(LTE)","2022年3Qリリース以降は申込みなし（過去申請分の表示用）"]
[230,"個別ID","利用しない","利用する","3G/LTE","10GB","有","個別ID利用しない利用する3G/LTE10GB有","[docomo]OCNモバイルONEforBusiness10GBIP1(LTE,SMS)","2022年3Qリリース以降は申込みなし（過去申請分の表示用）"]
[231,"個別ID","利用しない","利用する","3G/LTE","Unlimited",null,"個別ID利用しない利用する3G/LTEUnlimited","[docomo]OCNモバイルONEforBusinessUnlimitedIP1(LTE)","2022年3Qリリース以降は申込みなし（過去申請分の表示用）"]
[232,"個別ID","利用しない","利用する","3G/LTE","Unlimited","無","個別ID利用しない利用する3G/LTEUnlimited無","[docomo]OCNモバイルONEforBusinessUnlimitedIP1(LTE)","2022年3Qリリース以降は申込みなし（過去申請分の表示用）"]
[233,"個別ID","利用しない","利用する","3G/LTE","Unlimited","有","個別ID利用しない利用する3G/LTEUnlimited有","[docomo]OCNモバイルONEforBusinessUnlimitedIP1(LTE,SMS)","2022年3Qリリース以降は申込みなし（過去申請分の表示用）"]
[234,"個別ID","利用しない","利用する","3G/LTE","200kbps",null,"個別ID利用しない利用する3G/LTE200kbps","[docomo]OCNモバイルONEforBusiness200kbpsIP1(LTE)","2022年3Qリリース以降は申込みなし（過去申請分の表示用）"]
[235,"個別ID","利用しない","利用する","3G/LTE","200kbps","無","個別ID利用しない利用する3G/LTE200kbps無","[docomo]OCNモバイルONEforBusiness200kbpsIP1(LTE)","2022年3Qリリース以降は申込みなし（過去申請分の表示用）"]
[236,"個別ID","利用しない","利用する","3G/LTE","200kbps","有","個別ID利用しない利用する3G/LTE200kbps有","[docomo]OCNモバイルONEforBusiness200kbpsIP1(LTE,SMS)","2022年3Qリリース以降は申込みなし（過去申請分の表示用）"]
[237,"個別ID","利用しない","利用する","3G/LTE","30MBプラス",null,"個別ID利用しない利用する3G/LTE30MBプラス","[docomo]OCNモバイルONEforBusiness30MBプラスIP1(LTE)","2022年3Qリリース以降は申込みなし（過去申請分の表示用）"]
[238,"個別ID","利用しない","利用する","3G/LTE","30MBプラス","無","個別ID利用しない利用する3G/LTE30MBプラス無","[docomo]OCNモバイルONEforBusiness30MBプラスIP1(LTE)","2022年3Qリリース以降は申込みなし（過去申請分の表示用）"]
[239,"個別ID","利用しない","利用する","3G/LTE","30MBプラス","有","個別ID利用しない利用する3G/LTE30MBプラス有","[docomo]OCNモバイルONEforBusiness30MBプラスIP1(LTE,SMS)","2022年3Qリリース以降は申込みなし（過去申請分の表示用）"]
[240,"個別ID","利用しない","利用する","3G/LTE","60MBプラス",null,"個別ID利用しない利用する3G/LTE60MBプラス","[docomo]OCNモバイルONEforBusiness60MBプラスIP1(LTE)","2022年3Qリリース以降は申込みなし（過去申請分の表示用）"]
[241,"個別ID","利用しない","利用する","3G/LTE","60MBプラス","無","個別ID利用しない利用する3G/LTE60MBプラス無","[docomo]OCNモバイルONEforBusiness60MBプラスIP1(LTE)","2022年3Qリリース以降は申込みなし（過去申請分の表示用）"]
[242,"個別ID","利用しない","利用する","3G/LTE","60MBプラス","有","個別ID利用しない利用する3G/LTE60MBプラス有","[docomo]OCNモバイルONEforBusiness60MBプラスIP1(LTE,SMS)","2022年3Qリリース以降は申込みなし（過去申請分の表示用）"]
[243,"共通ID","利用しない",null,"LTE限定","1GB",null,"共通ID利用しないLTE限定1GB","OCN モバイル ONE for Business 1GB","2022年3Qリリース以降は申込みなし（過去申請分の表示用）"]
[244,"共通ID","利用しない",null,"LTE限定","1GB","無","共通ID利用しないLTE限定1GB無","OCN モバイル ONE for Business 1GB","2022年3Qリリース以降は申込みなし（過去申請分の表示用）"]
[245,"共通ID","利用しない",null,"LTE限定","1GB","有","共通ID利用しないLTE限定1GB有","OCN モバイル ONE for Business 1GB (SMS)","2022年3Qリリース以降は申込みなし（過去申請分の表示用）"]
[246,"共通ID","利用しない",null,"LTE限定","3GB",null,"共通ID利用しないLTE限定3GB","OCN モバイル ONE for Business 3GB","2022年3Qリリース以降は申込みなし（過去申請分の表示用）"]
[247,"共通ID","利用しない",null,"LTE限定","3GB","無","共通ID利用しないLTE限定3GB無","OCN モバイル ONE for Business 3GB","2022年3Qリリース以降は申込みなし（過去申請分の表示用）"]
[248,"共通ID","利用しない",null,"LTE限定","3GB","有","共通ID利用しないLTE限定3GB有","OCN モバイル ONE for Business 3GB (SMS)","2022年3Qリリース以降は申込みなし（過去申請分の表示用）"]
[249,"共通ID","利用しない",null,"LTE限定","5GB",null,"共通ID利用しないLTE限定5GB","[docomo]OCNモバイルONEforBusiness5GB(LTE)","2022年3Qリリース以降は申込みなし（過去申請分の表示用）"]
[250,"共通ID","利用しない",null,"LTE限定","5GB","無","共通ID利用しないLTE限定5GB無","[docomo]OCNモバイルONEforBusiness5GB(LTE)","2022年3Qリリース以降は申込みなし（過去申請分の表示用）"]
[251,"共通ID","利用しない",null,"LTE限定","5GB","有","共通ID利用しないLTE限定5GB有","[docomo]OCNモバイルONEforBusiness5GB(LTE,SMS)","2022年3Qリリース以降は申込みなし（過去申請分の表示用）"]
[252,"共通ID","利用しない",null,"LTE限定","7GB",null,"共通ID利用しないLTE限定7GB","OCN モバイル ONE for Business 7GB","2022年3Qリリース以降は申込みなし（過去申請分の表示用）"]
[253,"共通ID","利用しない",null,"LTE限定","7GB","無","共通ID利用しないLTE限定7GB無","OCN モバイル ONE for Business 7GB","2022年3Qリリース以降は申込みなし（過去申請分の表示用）"]
[254,"共通ID","利用しない",null,"LTE限定","7GB","有","共通ID利用しないLTE限定7GB有","OCN モバイル ONE for Business 7GB (SMS)","2022年3Qリリース以降は申込みなし（過去申請分の表示用）"]
[255,"共通ID","利用しない",null,"LTE限定","10GB",null,"共通ID利用しないLTE限定10GB","OCN モバイル ONE for Business 10GB","2022年3Qリリース以降は申込みなし（過去申請分の表示用）"]
[256,"共通ID","利用しない",null,"LTE限定","10GB","無","共通ID利用しないLTE限定10GB無","OCN モバイル ONE for Business 10GB","2022年3Qリリース以降は申込みなし（過去申請分の表示用）"]
[257,"共通ID","利用しない",null,"LTE限定","10GB","有","共通ID利用しないLTE限定10GB有","OCN モバイル ONE for Business 10GB (SMS)","2022年3Qリリース以降は申込みなし（過去申請分の表示用）"]
[258,"共通ID","利用しない",null,"LTE限定","Unlimited",null,"共通ID利用しないLTE限定Unlimited","OCN モバイル ONE for Business Unlimited","2022年3Qリリース以降は申込みなし（過去申請分の表示用）"]
[259,"共通ID","利用しない",null,"LTE限定","Unlimited","無","共通ID利用しないLTE限定Unlimited無","OCN モバイル ONE for Business Unlimited","2022年3Qリリース以降は申込みなし（過去申請分の表示用）"]
[260,"共通ID","利用しない",null,"LTE限定","Unlimited","有","共通ID利用しないLTE限定Unlimited有","[docomo]OCNモバイルONEforBusinessUnlimited(SMS)","2022年3Qリリース以降は申込みなし（過去申請分の表示用）"]
[261,"共通ID","利用しない",null,"LTE限定","200kbps",null,"共通ID利用しないLTE限定200kbps","OCN モバイル ONE for Business 200Kbps","2022年3Qリリース以降は申込みなし（過去申請分の表示用）"]
[262,"共通ID","利用しない",null,"LTE限定","200kbps","無","共通ID利用しないLTE限定200kbps無","OCN モバイル ONE for Business 200Kbps","2022年3Qリリース以降は申込みなし（過去申請分の表示用）"]
[263,"共通ID","利用しない",null,"LTE限定","200kbps","有","共通ID利用しないLTE限定200kbps有","OCN モバイル ONE for Business 200Kbps (SMS)","2022年3Qリリース以降は申込みなし（過去申請分の表示用）"]
[264,"共通ID","利用しない",null,"LTE限定","30MBプラス",null,"共通ID利用しないLTE限定30MBプラス","OCN モバイル ONE for Business 30MBプラス","2022年3Qリリース以降は申込みなし（過去申請分の表示用）"]
[265,"共通ID","利用しない",null,"LTE限定","30MBプラス","無","共通ID利用しないLTE限定30MBプラス無","OCN モバイル ONE for Business 30MBプラス","2022年3Qリリース以降は申込みなし（過去申請分の表示用）"]
[266,"共通ID","利用しない",null,"LTE限定","30MBプラス","有","共通ID利用しないLTE限定30MBプラス有","OCN モバイル ONE for Business 30MBプラス (SMS)","2022年3Qリリース以降は申込みなし（過去申請分の表示用）"]
[267,"共通ID","利用しない",null,"LTE限定","60MBプラス",null,"共通ID利用しないLTE限定60MBプラス","[docomo]OCNモバイルONEforBusiness60MBプラス(LTE)","2022年3Qリリース以降は申込みなし（過去申請分の表示用）"]
[268,"共通ID","利用しない",null,"LTE限定","60MBプラス","無","共通ID利用しないLTE限定60MBプラス無","[docomo]OCNモバイルONEforBusiness60MBプラス(LTE)","2022年3Qリリース以降は申込みなし（過去申請分の表示用）"]
[269,"共通ID","利用しない",null,"LTE限定","60MBプラス","有","共通ID利用しないLTE限定60MBプラス有","[docomo]OCNモバイルONEforBusiness60MBプラス(LTE,SMS)","2022年3Qリリース以降は申込みなし（過去申請分の表示用）"]
[270,"個別ID","利用しない","利用しない","LTE限定","1GB",null,"個別ID利用しない利用しないLTE限定1GB","[docomo]OCNモバイルONEforBusiness1GB(LTE)","2022年3Qリリース以降は申込みなし（過去申請分の表示用）"]
[271,"個別ID","利用しない","利用しない","LTE限定","1GB","無","個別ID利用しない利用しないLTE限定1GB無","[docomo]OCNモバイルONEforBusiness1GB(LTE)","2022年3Qリリース以降は申込みなし（過去申請分の表示用）"]
[272,"個別ID","利用しない","利用しない","LTE限定","1GB","有","個別ID利用しない利用しないLTE限定1GB有","[docomo]OCNモバイルONEforBusiness1GB(LTE,SMS)","2022年3Qリリース以降は申込みなし（過去申請分の表示用）"]
[273,"個別ID","利用しない","利用しない","LTE限定","3GB",null,"個別ID利用しない利用しないLTE限定3GB","[docomo]OCNモバイルONEforBusiness3GB(LTE)","2022年3Qリリース以降は申込みなし（過去申請分の表示用）"]
[274,"個別ID","利用しない","利用しない","LTE限定","3GB","無","個別ID利用しない利用しないLTE限定3GB無","[docomo]OCNモバイルONEforBusiness3GB(LTE)","2022年3Qリリース以降は申込みなし（過去申請分の表示用）"]
[275,"個別ID","利用しない","利用しない","LTE限定","3GB","有","個別ID利用しない利用しないLTE限定3GB有","[docomo]OCNモバイルONEforBusiness3GB(LTE,SMS)","2022年3Qリリース以降は申込みなし（過去申請分の表示用）"]
[276,"個別ID","利用しない","利用しない","LTE限定","5GB",null,"個別ID利用しない利用しないLTE限定5GB","[docomo]OCNモバイルONEforBusiness5GB(LTE)","2022年3Qリリース以降は申込みなし（過去申請分の表示用）"]
[277,"個別ID","利用しない","利用しない","LTE限定","5GB","無","個別ID利用しない利用しないLTE限定5GB無","[docomo]OCNモバイルONEforBusiness5GB(LTE)","2022年3Qリリース以降は申込みなし（過去申請分の表示用）"]
[278,"個別ID","利用しない","利用しない","LTE限定","5GB","有","個別ID利用しない利用しないLTE限定5GB有","[docomo]OCNモバイルONEforBusiness5GB(LTE,SMS)","2022年3Qリリース以降は申込みなし（過去申請分の表示用）"]
[279,"個別ID","利用しない","利用しない","LTE限定","7GB",null,"個別ID利用しない利用しないLTE限定7GB","[docomo]OCNモバイルONEforBusiness7GB(LTE)","2022年3Qリリース以降は申込みなし（過去申請分の表示用）"]
[280,"個別ID","利用しない","利用しない","LTE限定","7GB","無","個別ID利用しない利用しないLTE限定7GB無","[docomo]OCNモバイルONEforBusiness7GB(LTE)","2022年3Qリリース以降は申込みなし（過去申請分の表示用）"]
[281,"個別ID","利用しない","利用しない","LTE限定","7GB","有","個別ID利用しない利用しないLTE限定7GB有","[docomo]OCNモバイルONEforBusiness7GB(LTE,SMS)","2022年3Qリリース以降は申込みなし（過去申請分の表示用）"]
[282,"個別ID","利用しない","利用しない","LTE限定","10GB",null,"個別ID利用しない利用しないLTE限定10GB","[docomo]OCNモバイルONEforBusiness10GB(LTE)","2022年3Qリリース以降は申込みなし（過去申請分の表示用）"]
[283,"個別ID","利用しない","利用しない","LTE限定","10GB","無","個別ID利用しない利用しないLTE限定10GB無","[docomo]OCNモバイルONEforBusiness10GB(LTE)","2022年3Qリリース以降は申込みなし（過去申請分の表示用）"]
[284,"個別ID","利用しない","利用しない","LTE限定","10GB","有","個別ID利用しない利用しないLTE限定10GB有","[docomo]OCNモバイルONEforBusiness10GB(LTE,SMS)","2022年3Qリリース以降は申込みなし（過去申請分の表示用）"]
[{"$f":"A287+1","v":285},"個別ID","利用しない","利用しない","LTE限定","Unlimited",null,"個別ID利用しない利用しないLTE限定Unlimited","[docomo]OCNモバイルONEforBusinessUnlimited(LTE)","2022年3Qリリース以降は申込みなし（過去申請分の表示用）"]
[286,"個別ID","利用しない","利用しない","LTE限定","Unlimited","無","個別ID利用しない利用しないLTE限定Unlimited無","[docomo]OCNモバイルONEforBusinessUnlimited(LTE)","2022年3Qリリース以降は申込みなし（過去申請分の表示用）"]
[287,"個別ID","利用しない","利用しない","LTE限定","Unlimited","有","個別ID利用しない利用しないLTE限定Unlimited有","[docomo]OCNモバイルONEforBusinessUnlimited(LTE,SMS)","2022年3Qリリース以降は申込みなし（過去申請分の表示用）"]
[288,"個別ID","利用しない","利用しない","LTE限定","200kbps",null,"個別ID利用しない利用しないLTE限定200kbps","[docomo]OCNモバイルONEforBusiness200kbps(LTE)","2022年3Qリリース以降は申込みなし（過去申請分の表示用）"]
[289,"個別ID","利用しない","利用しない","LTE限定","200kbps","無",{"$f":"CONCATENATE(B292,C292,D292,E292,F292,G292)","v":"個別ID利用しない利用しないLTE限定200kbps無"},"[docomo]OCNモバイルONEforBusiness200kbps(LTE)","2022年3Qリリース以降は申込みなし（過去申請分の表示用）"]
[290,"個別ID","利用しない","利用しない","LTE限定","200kbps","有","個別ID利用しない利用しないLTE限定200kbps有","[docomo]OCNモバイルONEforBusiness200kbps(LTE,SMS)","2022年3Qリリース以降は申込みなし（過去申請分の表示用）"]
[291,"個別ID","利用しない","利用しない","LTE限定","30MBプラス",null,"個別ID利用しない利用しないLTE限定30MBプラス","[docomo]OCNモバイルONEforBusiness30MBプラス(LTE)","2022年3Qリリース以降は申込みなし（過去申請分の表示用）"]
[292,"個別ID","利用しない","利用しない","LTE限定","30MBプラス","無","個別ID利用しない利用しないLTE限定30MBプラス無","[docomo]OCNモバイルONEforBusiness30MBプラス(LTE)","2022年3Qリリース以降は申込みなし（過去申請分の表示用）"]
[293,"個別ID","利用しない","利用しない","LTE限定","30MBプラス","有","個別ID利用しない利用しないLTE限定30MBプラス有","[docomo]OCNモバイルONEforBusiness30MBプラス(LTE,SMS)","2022年3Qリリース以降は申込みなし（過去申請分の表示用）"]
[294,"個別ID","利用しない","利用しない","LTE限定","60MBプラス",null,"個別ID利用しない利用しないLTE限定60MBプラス","[docomo]OCNモバイルONEforBusiness60MBプラス(LTE)","2022年3Qリリース以降は申込みなし（過去申請分の表示用）"]
[295,"個別ID","利用しない","利用しない","LTE限定","60MBプラス","無","個別ID利用しない利用しないLTE限定60MBプラス無","[docomo]OCNモバイルONEforBusiness60MBプラス(LTE)","2022年3Qリリース以降は申込みなし（過去申請分の表示用）"]
[296,"個別ID","利用しない","利用しない","LTE限定","60MBプラス","有","個別ID利用しない利用しないLTE限定60MBプラス有","[docomo]OCNモバイルONEforBusiness60MBプラス(LTE,SMS)","2022年3Qリリース以降は申込みなし（過去申請分の表示用）"]
[297,"個別ID","利用しない","利用する","LTE限定","1GB",null,"個別ID利用しない利用するLTE限定1GB","[docomo]OCNモバイルONEforBusiness1GBIP1(LTE)","2022年3Qリリース以降は申込みなし（過去申請分の表示用）"]
[298,"個別ID","利用しない","利用する","LTE限定","1GB","無","個別ID利用しない利用するLTE限定1GB無","[docomo]OCNモバイルONEforBusiness1GBIP1(LTE)","2022年3Qリリース以降は申込みなし（過去申請分の表示用）"]
[299,"個別ID","利用しない","利用する","LTE限定","1GB","有","個別ID利用しない利用するLTE限定1GB有","[docomo]OCNモバイルONEforBusiness1GBIP1(LTE,SMS)","2022年3Qリリース以降は申込みなし（過去申請分の表示用）"]
[300,"個別ID","利用しない","利用する","LTE限定","3GB",null,"個別ID利用しない利用するLTE限定3GB","[docomo]OCNモバイルONEforBusiness3GBIP1(LTE)","2022年3Qリリース以降は申込みなし（過去申請分の表示用）"]
[301,"個別ID","利用しない","利用する","LTE限定","3GB","無","個別ID利用しない利用するLTE限定3GB無","[docomo]OCNモバイルONEforBusiness3GBIP1(LTE)","2022年3Qリリース以降は申込みなし（過去申請分の表示用）"]
[302,"個別ID","利用しない","利用する","LTE限定","3GB","有","個別ID利用しない利用するLTE限定3GB有","[docomo]OCNモバイルONEforBusiness3GBIP1(LTE,SMS)","2022年3Qリリース以降は申込みなし（過去申請分の表示用）"]
[303,"個別ID","利用しない","利用する","LTE限定","5GB",null,"個別ID利用しない利用するLTE限定5GB","[docomo]OCNモバイルONEforBusiness5GBIP1(LTE)","2022年3Qリリース以降は申込みなし（過去申請分の表示用）"]
[304,"個別ID","利用しない","利用する","LTE限定","5GB","無","個別ID利用しない利用するLTE限定5GB無","[docomo]OCNモバイルONEforBusiness5GBIP1(LTE)","2022年3Qリリース以降は申込みなし（過去申請分の表示用）"]
[305,"個別ID","利用しない","利用する","LTE限定","5GB","有","個別ID利用しない利用するLTE限定5GB有","[docomo]OCNモバイルONEforBusiness5GBIP1(LTE,SMS)","2022年3Qリリース以降は申込みなし（過去申請分の表示用）"]
[306,"個別ID","利用しない","利用する","LTE限定","7GB",null,"個別ID利用しない利用するLTE限定7GB","[docomo]OCNモバイルONEforBusiness7GBIP1(LTE)","2022年3Qリリース以降は申込みなし（過去申請分の表示用）"]
[307,"個別ID","利用しない","利用する","LTE限定","7GB","無","個別ID利用しない利用するLTE限定7GB無","[docomo]OCNモバイルONEforBusiness7GBIP1(LTE)","2022年3Qリリース以降は申込みなし（過去申請分の表示用）"]
[308,"個別ID","利用しない","利用する","LTE限定","7GB","有","個別ID利用しない利用するLTE限定7GB有","[docomo]OCNモバイルONEforBusiness7GBIP1(LTE,SMS)","2022年3Qリリース以降は申込みなし（過去申請分の表示用）"]
[309,"個別ID","利用しない","利用する","LTE限定","10GB",null,"個別ID利用しない利用するLTE限定10GB","[docomo]OCNモバイルONEforBusiness10GBIP1(LTE)","2022年3Qリリース以降は申込みなし（過去申請分の表示用）"]
[310,"個別ID","利用しない","利用する","LTE限定","10GB","無","個別ID利用しない利用するLTE限定10GB無","[docomo]OCNモバイルONEforBusiness10GBIP1(LTE)","2022年3Qリリース以降は申込みなし（過去申請分の表示用）"]
[311,"個別ID","利用しない","利用する","LTE限定","10GB","有","個別ID利用しない利用するLTE限定10GB有","[docomo]OCNモバイルONEforBusiness10GBIP1(LTE,SMS)","2022年3Qリリース以降は申込みなし（過去申請分の表示用）"]
[312,"個別ID","利用しない","利用する","LTE限定","Unlimited",null,"個別ID利用しない利用するLTE限定Unlimited","[docomo]OCNモバイルONEforBusinessUnlimitedIP1(LTE)","2022年3Qリリース以降は申込みなし（過去申請分の表示用）"]
[313,"個別ID","利用しない","利用する","LTE限定","Unlimited","無","個別ID利用しない利用するLTE限定Unlimited無","[docomo]OCNモバイルONEforBusinessUnlimitedIP1(LTE)","2022年3Qリリース以降は申込みなし（過去申請分の表示用）"]
[314,"個別ID","利用しない","利用する","LTE限定","Unlimited","有","個別ID利用しない利用するLTE限定Unlimited有","[docomo]OCNモバイルONEforBusinessUnlimitedIP1(LTE,SMS)","2022年3Qリリース以降は申込みなし（過去申請分の表示用）"]
[315,"個別ID","利用しない","利用する","LTE限定","200kbps",null,"個別ID利用しない利用するLTE限定200kbps","[docomo]OCNモバイルONEforBusiness200kbpsIP1(LTE)","2022年3Qリリース以降は申込みなし（過去申請分の表示用）"]
[316,"個別ID","利用しない","利用する","LTE限定","200kbps","無","個別ID利用しない利用するLTE限定200kbps無","[docomo]OCNモバイルONEforBusiness200kbpsIP1(LTE)","2022年3Qリリース以降は申込みなし（過去申請分の表示用）"]
[317,"個別ID","利用しない","利用する","LTE限定","200kbps","有","個別ID利用しない利用するLTE限定200kbps有","[docomo]OCNモバイルONEforBusiness200kbpsIP1(LTE,SMS)","2022年3Qリリース以降は申込みなし（過去申請分の表示用）"]
[318,"個別ID","利用しない","利用する","LTE限定","30MBプラス",null,"個別ID利用しない利用するLTE限定30MBプラス","[docomo]OCNモバイルONEforBusiness30MBプラスIP1(LTE)","2022年3Qリリース以降は申込みなし（過去申請分の表示用）"]
[319,"個別ID","利用しない","利用する","LTE限定","30MBプラス","無","個別ID利用しない利用するLTE限定30MBプラス無","[docomo]OCNモバイルONEforBusiness30MBプラスIP1(LTE)","2022年3Qリリース以降は申込みなし（過去申請分の表示用）"]
[320,"個別ID","利用しない","利用する","LTE限定","30MBプラス","有","個別ID利用しない利用するLTE限定30MBプラス有","[docomo]OCNモバイルONEforBusiness30MBプラスIP1(LTE,SMS)","2022年3Qリリース以降は申込みなし（過去申請分の表示用）"]
[321,"個別ID","利用しない","利用する","LTE限定","60MBプラス",null,"個別ID利用しない利用するLTE限定60MBプラス","[docomo]OCNモバイルONEforBusiness60MBプラスIP1(LTE)","2022年3Qリリース以降は申込みなし（過去申請分の表示用）"]
[322,"個別ID","利用しない","利用する","LTE限定","60MBプラス","無",{"$f":"CONCATENATE(B325,C325,D325,E325,F325,G325)","v":"個別ID利用しない利用するLTE限定60MBプラス無"},"[docomo]OCNモバイルONEforBusiness60MBプラスIP1(LTE)","2022年3Qリリース以降は申込みなし（過去申請分の表示用）"]
[323,"個別ID","利用しない","利用する","LTE限定","60MBプラス","有","個別ID利用しない利用するLTE限定60MBプラス有","[docomo]OCNモバイルONEforBusiness60MBプラスIP1(LTE,SMS)","2022年3Qリリース以降は申込みなし（過去申請分の表示用）"]
[324,"共通ID","利用しない",null,"3G/LTE","まなびポケット3GB",null,"共通ID利用しない3G/LTEまなびポケット3GB","OCNモバイルONEforBusiness3GBまなびポケット（LTE）","2022年3Qリリース以降は申込みなし（過去申請分の表示用）"]
[325,"個別ID","利用する","利用しない","3G/LTE","1GB",null,"個別ID利用する利用しない3G/LTE1GB","[docomo]OCNモバイルONEforBusiness1GB(LTE)(ビジネスパックVPN)","2022年3Qリリース以降は申込みなし（過去申請分の表示用）"]
[326,"個別ID","利用する","利用しない","3G/LTE","3GB",null,"個別ID利用する利用しない3G/LTE3GB","[docomo]OCNモバイルONEforBusiness3GB(LTE)(ビジネスパックVPN)","2022年3Qリリース以降は申込みなし（過去申請分の表示用）"]
[327,"個別ID","利用する","利用しない","3G/LTE","7GB",null,"個別ID利用する利用しない3G/LTE7GB","[docomo]OCNモバイルONEforBusiness7GB(LTE)(ビジネスパックVPN)","2022年3Qリリース以降は申込みなし（過去申請分の表示用）"]
[328,"個別ID","利用する","利用しない","3G/LTE","200kbps",null,"個別ID利用する利用しない3G/LTE200kbps","[docomo]OCNモバイルONEforBusiness200kbps(LTE)(ビジネスパックVPN)","2022年3Qリリース以降は申込みなし（過去申請分の表示用）"]
[329,"共通ID","利用しない",null,"3G/LTE","テレワーク1GB_1年","有","共通ID利用しない3G/LTEテレワーク1GB_1年有","OCNモバイルONEforBusinessテレワーク1GB_1年（LTE)(SMS）","2022年3Qリリース以降は申込みなし（過去申請分の表示用）"]
[330,"共通ID","利用しない",null,"3G/LTE","テレワーク3GB_1年","有",{"$f":"CONCATENATE(B333,C333,D333,E333,F333,G333)","v":"共通ID利用しない3G/LTEテレワーク3GB_1年有"},"OCNモバイルONEforBusinessテレワーク3GB_1年（LTE)(SMS）","2022年3Qリリース以降は申込みなし（過去申請分の表示用）"]
[331,"共通ID","利用しない",null,"3G/LTE","テレワーク7GB_1年","有",{"$f":"CONCATENATE(B334,C334,D334,E334,F334,G334)","v":"共通ID利用しない3G/LTEテレワーク7GB_1年有"},"OCNモバイルONEforBusinessテレワーク7GB_1年（LTE)(SMS）","2022年3Qリリース以降は申込みなし（過去申請分の表示用）"]
[332,"共通ID","利用しない",null,"3G/LTE","テレワーク10GB_1年","有","共通ID利用しない3G/LTEテレワーク10GB_1年有","OCNモバイルONEforBusinessテレワーク10GB_1年（LTE)(SMS）","2022年3Qリリース以降は申込みなし（過去申請分の表示用）"]
[333,"共通ID","利用しない",null,"3G/LTE","テレワーク20GB_1年","有","共通ID利用しない3G/LTEテレワーク20GB_1年有","OCNモバイルONEforBusinessテレワーク20GB_1年（LTE)(SMS）","2022年3Qリリース以降は申込みなし（過去申請分の表示用）"]
[334,"共通ID","利用しない",null,"3G/LTE","テレワーク30GB_1年","有","共通ID利用しない3G/LTEテレワーク30GB_1年有","OCNモバイルONEforBusinessテレワーク30GB_1年（LTE)(SMS）","2022年3Qリリース以降は申込みなし（過去申請分の表示用）"]
[335,"共通ID","利用しない",null,"3G/LTE","テレワーク50GB_1年","有","共通ID利用しない3G/LTEテレワーク50GB_1年有","OCNモバイルONEforBusinessテレワーク50GB_1年（LTE)(SMS）","2022年3Qリリース以降は申込みなし（過去申請分の表示用）"]
[336,"共通ID","利用しない",null,"3G/LTE","テレワーク3GB+1GB_3年","有",{"$f":"CONCATENATE(B339,C339,D339,E339,F339,G339)","v":"共通ID利用しない3G/LTEテレワーク3GB+1GB_3年有"},"OCNモバイルONEforBusinessテレワーク3GB＋1GB_3年（LTE)(SMS）","2022年3Qリリース以降は申込みなし（過去申請分の表示用）"]
[337,"共通ID","利用しない",null,"3G/LTE","テレワーク7GB+1GB_3年","有",{"$f":"CONCATENATE(B340,C340,D340,E340,F340,G340)","v":"共通ID利用しない3G/LTEテレワーク7GB+1GB_3年有"},"OCNモバイルONEforBusinessテレワーク7GB＋1GB_3年（LTE)(SMS）","2022年3Qリリース以降は申込みなし（過去申請分の表示用）"]
[338,"共通ID","利用しない",null,"3G/LTE","テレワーク2in1_1GB_1年","有","共通ID利用しない3G/LTEテレワーク2in1_1GB_1年有","OCNモバイルONEforBusinessテレワーク1GB_1年（LTE,SMS）2in1","2022年3Qリリース以降は申込みなし（過去申請分の表示用）"]
[339,"共通ID","利用しない",null,"3G/LTE","テレワーク2in1_3GB_1年","有","共通ID利用しない3G/LTEテレワーク2in1_3GB_1年有","OCNモバイルONEforBusinessテレワーク3GB_1年（LTE,SMS）2in1","2022年3Qリリース以降は申込みなし（過去申請分の表示用）"]
[340,"共通ID","利用しない",null,"3G/LTE","テレワーク2in1_7GB_1年","有","共通ID利用しない3G/LTEテレワーク2in1_7GB_1年有","OCNモバイルONEforBusinessテレワーク7GB_1年（LTE,SMS）2in1","2022年3Qリリース以降は申込みなし（過去申請分の表示用）"]
[341,"共通ID","利用しない",null,"3G/LTE","テレワーク2in1_10GB_1年","有","共通ID利用しない3G/LTEテレワーク2in1_10GB_1年有","OCNモバイルONEforBusinessテレワーク10GB_1年（LTE,SMS）2in1","2022年3Qリリース以降は申込みなし（過去申請分の表示用）"]
[342,"共通ID","利用しない",null,"3G/LTE","テレワーク2in1_20GB_1年","有","共通ID利用しない3G/LTEテレワーク2in1_20GB_1年有","OCNモバイルONEforBusinessテレワーク20GB_1年（LTE,SMS）2in1","2022年3Qリリース以降は申込みなし（過去申請分の表示用）"]
[343,"共通ID","利用しない",null,"3G/LTE","テレワーク2in1_30GB_1年","有","共通ID利用しない3G/LTEテレワーク2in1_30GB_1年有","OCNモバイルONEforBusinessテレワーク30GB_1年（LTE,SMS）2in1","2022年3Qリリース以降は申込みなし（過去申請分の表示用）"]
[344,"共通ID","利用しない",null,"3G/LTE","テレワーク2in1_50GB_1年","有","共通ID利用しない3G/LTEテレワーク2in1_50GB_1年有","OCNモバイルONEforBusinessテレワーク50GB_1年（LTE,SMS）2in1","2022年3Qリリース以降は申込みなし（過去申請分の表示用）"]
[345,"共通ID","利用しない",null,"3G/LTE","テレワーク2in1_3GB+1GB_3年","有","共通ID利用しない3G/LTEテレワーク2in1_3GB+1GB_3年有","OCNモバイルONEforBusinessテレワーク3GB＋1GB_3年（LTE,SMS）2in1","2022年3Qリリース以降は申込みなし（過去申請分の表示用）"]
[346,"共通ID","利用しない",null,"3G/LTE","テレワーク2in1_7GB+1GB_3年","有","共通ID利用しない3G/LTEテレワーク2in1_7GB+1GB_3年有","OCNモバイルONEforBusinessテレワーク7GB＋1GB_3年（LTE,SMS）2in1","2022年3Qリリース以降は申込みなし（過去申請分の表示用）"]
[347,"共通ID","利用しない",null,"3G/LTE","テレワーク1GB_1年(UNO Virtual)","有","共通ID利用しない3G/LTEテレワーク1GB_1年(UNO Virtual)有","OCNモバONEforBizテレワーク1GB_1年（UNOv)(LTE)(SMS）","2022年3Qリリース以降は申込みなし（過去申請分の表示用）"]
[348,"共通ID","利用しない",null,"3G/LTE","テレワーク3GB_1年(UNO Virtual)","有","共通ID利用しない3G/LTEテレワーク3GB_1年(UNO Virtual)有","OCNモバONEforBizテレワーク3GB_1年（UNOv)(LTE)(SMS）","2022年3Qリリース以降は申込みなし（過去申請分の表示用）"]
[{"$f":"A351+1","v":349},"共通ID","利用しない",null,"3G/LTE","テレワーク7GB_1年(UNO Virtual)","有","共通ID利用しない3G/LTEテレワーク7GB_1年(UNO Virtual)有","OCNモバONEforBizテレワーク7GB_1年（UNOv)(LTE)(SMS）","2022年3Qリリース以降は申込みなし（過去申請分の表示用）"]
[350,"共通ID","利用しない",null,"3G/LTE","テレワーク10GB_1年(UNO Virtual)","有","共通ID利用しない3G/LTEテレワーク10GB_1年(UNO Virtual)有","OCNモバONEforBizテレワーク10GB_1年（UNOv)(LTE)(SMS）","2022年3Qリリース以降は申込みなし（過去申請分の表示用）"]
[351,"共通ID","利用しない",null,"3G/LTE","テレワーク20GB_1年(UNO Virtual)","有","共通ID利用しない3G/LTEテレワーク20GB_1年(UNO Virtual)有","OCNモバONEforBizテレワーク20GB_1年（UNOv)(LTE)(SMS）","2022年3Qリリース以降は申込みなし（過去申請分の表示用）"]
[352,"共通ID","利用しない",null,"3G/LTE","テレワーク30GB_1年(UNO Virtual)","有","共通ID利用しない3G/LTEテレワーク30GB_1年(UNO Virtual)有","OCNモバONEforBizテレワーク30GB_1年（UNOv)(LTE)(SMS）","2022年3Qリリース以降は申込みなし（過去申請分の表示用）"]
[353,"共通ID","利用しない",null,"3G/LTE","テレワーク50GB_1年(UNO Virtual)","有",{"$f":"CONCATENATE(B356,C356,D356,E356,F356,G356)","v":"共通ID利用しない3G/LTEテレワーク50GB_1年(UNO Virtual)有"},"OCNモバONEforBizテレワーク50GB_1年（UNOv)(LTE)(SMS）","2022年3Qリリース以降は申込みなし（過去申請分の表示用）"]
[354,"共通ID","利用しない",null,"3G/LTE","テレワーク2in1_1GB_1年(UNO Virtual)","有","共通ID利用しない3G/LTEテレワーク2in1_1GB_1年(UNO Virtual)有","OCNモバONE for Biz テレワーク 1GB_1年（UNOv)(LTE,SMS）2in1","2022年3Qリリース以降は申込みなし（過去申請分の表示用）"]
[355,"共通ID","利用しない",null,"3G/LTE","テレワーク2in1_3GB_1年(UNO Virtual)","有","共通ID利用しない3G/LTEテレワーク2in1_3GB_1年(UNO Virtual)有","OCNモバONE for Biz テレワーク 3GB_1年（UNOv)(LTE,SMS）2in1","2022年3Qリリース以降は申込みなし（過去申請分の表示用）"]
[356,"共通ID","利用しない",null,"3G/LTE","テレワーク2in1_7GB_1年(UNO Virtual)","有","共通ID利用しない3G/LTEテレワーク2in1_7GB_1年(UNO Virtual)有","OCNモバONE for Biz テレワーク 7GB_1年（UNOv)(LTE,SMS）2in1","2022年3Qリリース以降は申込みなし（過去申請分の表示用）"]
[357,"共通ID","利用しない",null,"3G/LTE","テレワーク2in1_10GB_1年(UNO Virtual)","有","共通ID利用しない3G/LTEテレワーク2in1_10GB_1年(UNO Virtual)有","OCNモバONE for Biz テレワーク 10GB_1年（UNOv)(LTE,SMS）2in1","2022年3Qリリース以降は申込みなし（過去申請分の表示用）"]
[358,"共通ID","利用しない",null,"3G/LTE","テレワーク2in1_20GB_1年(UNO Virtual)","有","共通ID利用しない3G/LTEテレワーク2in1_20GB_1年(UNO Virtual)有","OCNモバONE for Biz テレワーク 20GB_1年（UNOv)(LTE,SMS）2in1","2022年3Qリリース以降は申込みなし（過去申請分の表示用）"]
[359,"共通ID","利用しない",null,"3G/LTE","テレワーク2in1_30GB_1年(UNO Virtual)","有","共通ID利用しない3G/LTEテレワーク2in1_30GB_1年(UNO Virtual)有","OCNモバONE for Biz テレワーク 30GB_1年（UNOv)(LTE,SMS）2in1","2022年3Qリリース以降は申込みなし（過去申請分の表示用）"]
[360,"共通ID","利用しない",null,"3G/LTE","テレワーク2in1_50GB_1年(UNO Virtual)","有","共通ID利用しない3G/LTEテレワーク2in1_50GB_1年(UNO Virtual)有","OCNモバONE for Biz テレワーク 50GB_1年（UNOv)(LTE,SMS）2in1","2022年3Qリリース以降は申込みなし（過去申請分の表示用）"]
[361,"共通ID","利用しない",null,"3G/LTE","テレワーク1GB_1年(マジックコネクト)","有","共通ID利用しない3G/LTEテレワーク1GB_1年(マジックコネクト)有","OCNモバONEforBizテレワーク1GB_1年（マジコネ)(LTE)(SMS）","2022年3Qリリース以降は申込みなし（過去申請分の表示用）"]
[362,"共通ID","利用しない",null,"3G/LTE","テレワーク3GB_1年(マジックコネクト)","有","共通ID利用しない3G/LTEテレワーク3GB_1年(マジックコネクト)有","OCNモバONEforBizテレワーク3GB_1年（マジコネ)(LTE)(SMS）","2022年3Qリリース以降は申込みなし（過去申請分の表示用）"]
[363,"共通ID","利用しない",null,"3G/LTE","テレワーク7GB_1年(マジックコネクト)","有","共通ID利用しない3G/LTEテレワーク7GB_1年(マジックコネクト)有","OCNモバONEforBizテレワーク7GB_1年（マジコネ)(LTE)(SMS）","2022年3Qリリース以降は申込みなし（過去申請分の表示用）"]
[364,"共通ID","利用しない",null,"3G/LTE","テレワーク10GB_1年(マジックコネクト)","有","共通ID利用しない3G/LTEテレワーク10GB_1年(マジックコネクト)有","OCNモバONEforBizテレワーク10GB_1年（マジコネ)(LTE)(SMS）","2022年3Qリリース以降は申込みなし（過去申請分の表示用）"]
[365,"共通ID","利用しない",null,"3G/LTE","テレワーク20GB_1年(マジックコネクト)","有","共通ID利用しない3G/LTEテレワーク20GB_1年(マジックコネクト)有","OCNモバONEforBizテレワーク20GB_1年（マジコネ)(LTE)(SMS）","2022年3Qリリース以降は申込みなし（過去申請分の表示用）"]
[366,"共通ID","利用しない",null,"3G/LTE","テレワーク30GB_1年(マジックコネクト)","有","共通ID利用しない3G/LTEテレワーク30GB_1年(マジックコネクト)有","OCNモバONEforBizテレワーク30GB_1年（マジコネ)(LTE)(SMS）","2022年3Qリリース以降は申込みなし（過去申請分の表示用）"]
[367,"共通ID","利用しない",null,"3G/LTE","テレワーク50GB_1年(マジックコネクト)","有","共通ID利用しない3G/LTEテレワーク50GB_1年(マジックコネクト)有","OCNモバONEforBizテレワーク50GB_1年（マジコネ)(LTE)(SMS）","2022年3Qリリース以降は申込みなし（過去申請分の表示用）"]
[368,"共通ID","利用しない",null,"3G/LTE","テレワーク2in1_1GB_1年(マジックコネクト)","有","共通ID利用しない3G/LTEテレワーク2in1_1GB_1年(マジックコネクト)有","OCNモバONE for Biz テレワーク 1GB_1年（マジコネ)(LTE,SMS）2in1","2022年3Qリリース以降は申込みなし（過去申請分の表示用）"]
[369,"共通ID","利用しない",null,"3G/LTE","テレワーク2in1_3GB_1年(マジックコネクト)","有","共通ID利用しない3G/LTEテレワーク2in1_3GB_1年(マジックコネクト)有","OCNモバONE for Biz テレワーク 3GB_1年（マジコネ)(LTE,SMS）2in1","2022年3Qリリース以降は申込みなし（過去申請分の表示用）"]
[370,"共通ID","利用しない",null,"3G/LTE","テレワーク2in1_7GB_1年(マジックコネクト)","有","共通ID利用しない3G/LTEテレワーク2in1_7GB_1年(マジックコネクト)有","OCNモバONE for Biz テレワーク 7GB_1年（マジコネ)(LTE,SMS）2in1","2022年3Qリリース以降は申込みなし（過去申請分の表示用）"]
[371,"共通ID","利用しない",null,"3G/LTE","テレワーク2in1_10GB_1年(マジックコネクト)","有","共通ID利用しない3G/LTEテレワーク2in1_10GB_1年(マジックコネクト)有","OCNモバONE for Biz テレワーク 10GB_1年（マジコネ)(LTE,SMS）2in1","2022年3Qリリース以降は申込みなし（過去申請分の表示用）"]
[372,"共通ID","利用しない",null,"3G/LTE","テレワーク2in1_20GB_1年(マジックコネクト)","有","共通ID利用しない3G/LTEテレワーク2in1_20GB_1年(マジックコネクト)有","OCNモバONE for Biz テレワーク 20GB_1年（マジコネ)(LTE,SMS）2in1","2022年3Qリリース以降は申込みなし（過去申請分の表示用）"]
[373,"共通ID","利用しない",null,"3G/LTE","テレワーク2in1_30GB_1年(マジックコネクト)","有","共通ID利用しない3G/LTEテレワーク2in1_30GB_1年(マジックコネクト)有","OCNモバONE for Biz テレワーク 30GB_1年（マジコネ)(LTE,SMS）2in1","2022年3Qリリース以降は申込みなし（過去申請分の表示用）"]
[374,"共通ID","利用しない",null,"3G/LTE","テレワーク2in1_50GB_1年(マジックコネクト)","有","共通ID利用しない3G/LTEテレワーク2in1_50GB_1年(マジックコネクト)有","OCNモバONE for Biz テレワーク 50GB_1年（マジコネ)(LTE,SMS）2in1","2022年3Qリリース以降は申込みなし（過去申請分の表示用）"]
[375,"個別ID","利用しない","利用しない","LTE","10GB",null,{"$f":"CONCATENATE(B378,C378,D378,E378,F378,G378)","v":"個別ID利用しない利用しないLTE10GB"},"OCN モバイル ONE for Business 10GB (LTE)","2022年4Q：パターン削除（個別IDでは提供しない）"]
[376,"個別ID","利用しない","利用しない","LTE","10GB","無","個別ID利用しない利用しないLTE10GB無","OCN モバイル ONE for Business 10GB (LTE)","2022年4Q：パターン削除（個別IDでは提供しない）"]
[377,"個別ID","利用しない","利用しない","LTE","10GB","有","個別ID利用しない利用しないLTE10GB有","OCN モバイル ONE for Business 10GB (LTE，SMS)","2022年4Q：パターン削除（個別IDでは提供しない）"]
[378,"個別ID","利用しない","利用しない","LTE","15GB",null,"個別ID利用しない利用しないLTE15GB","OCN モバイル ONE for Business 15GB (LTE)","2022年4Q：パターン削除（個別IDでは提供しない）"]
[379,"個別ID","利用しない","利用しない","LTE","15GB","無","個別ID利用しない利用しないLTE15GB無","OCN モバイル ONE for Business 15GB (LTE)","2022年4Q：パターン削除（個別IDでは提供しない）"]
[380,"個別ID","利用しない","利用しない","LTE","15GB","有","個別ID利用しない利用しないLTE15GB有","OCN モバイル ONE for Business 15GB (LTE，SMS)","2022年4Q：パターン削除（個別IDでは提供しない）"]
[381,"個別ID","利用しない","利用しない","LTE","20GB",null,"個別ID利用しない利用しないLTE20GB","OCN モバイル ONE for Business 20GB (LTE)","2022年4Q：パターン削除（個別IDでは提供しない）"]
[382,"個別ID","利用しない","利用しない","LTE","20GB","無","個別ID利用しない利用しないLTE20GB無","OCN モバイル ONE for Business 20GB (LTE)","2022年4Q：パターン削除（個別IDでは提供しない）"]
[383,"個別ID","利用しない","利用しない","LTE","20GB","有","個別ID利用しない利用しないLTE20GB有","OCN モバイル ONE for Business 20GB (LTE，SMS)","2022年4Q：パターン削除（個別IDでは提供しない）"]
[384,"個別ID","利用しない","利用しない","LTE","30GB",null,"個別ID利用しない利用しないLTE30GB","OCN モバイル ONE for Business 30GB (LTE)","2022年4Q：パターン削除（個別IDでは提供しない）"]
[385,"個別ID","利用しない","利用しない","LTE","30GB","無","個別ID利用しない利用しないLTE30GB無","OCN モバイル ONE for Business 30GB (LTE)","2022年4Q：パターン削除（個別IDでは提供しない）"]
[386,"個別ID","利用しない","利用しない","LTE","30GB","有","個別ID利用しない利用しないLTE30GB有","OCN モバイル ONE for Business 30GB (LTE，SMS)","2022年4Q：パターン削除（個別IDでは提供しない）"]
[387,"個別ID","利用しない","利用しない","LTE","50GB",null,"個別ID利用しない利用しないLTE50GB","OCN モバイル ONE for Business 50GB (LTE)","2022年4Q：パターン削除（個別IDでは提供しない）"]
[388,"個別ID","利用しない","利用しない","LTE","50GB","無","個別ID利用しない利用しないLTE50GB無","OCN モバイル ONE for Business 50GB (LTE)","2022年4Q：パターン削除（個別IDでは提供しない）"]
[389,"個別ID","利用しない","利用しない","LTE","50GB","有","個別ID利用しない利用しないLTE50GB有","OCN モバイル ONE for Business 50GB (LTE，SMS)","2022年4Q：パターン削除（個別IDでは提供しない）"]
[390,"個別ID","利用しない","利用する","LTE","10GB",null,"個別ID利用しない利用するLTE10GB","OCN モバイル ONE for Business 10GB IP1 (LTE)","2022年4Q：パターン削除（個別IDでは提供しない）"]
[391,"個別ID","利用しない","利用する","LTE","10GB","無","個別ID利用しない利用するLTE10GB無","OCN モバイル ONE for Business 10GB IP1 (LTE)","2022年4Q：パターン削除（個別IDでは提供しない）"]
[392,"個別ID","利用しない","利用する","LTE","10GB","有","個別ID利用しない利用するLTE10GB有","OCN モバイル ONE for Business 10GB IP1 (LTE，SMS)","2022年4Q：パターン削除（個別IDでは提供しない）"]
[393,"個別ID","利用しない","利用する","LTE","15GB",null,"個別ID利用しない利用するLTE15GB","OCN モバイル ONE for Business 15GB IP1 (LTE)","2022年4Q：パターン削除（個別IDでは提供しない）"]
[394,"個別ID","利用しない","利用する","LTE","15GB","無","個別ID利用しない利用するLTE15GB無","OCN モバイル ONE for Business 15GB IP1 (LTE)","2022年4Q：パターン削除（個別IDでは提供しない）"]
[395,"個別ID","利用しない","利用する","LTE","15GB","有","個別ID利用しない利用するLTE15GB有","OCN モバイル ONE for Business 15GB IP1 (LTE，SMS)","2022年4Q：パターン削除（個別IDでは提供しない）"]
[396,"個別ID","利用しない","利用する","LTE","20GB",null,"個別ID利用しない利用するLTE20GB","OCN モバイル ONE for Business 20GB IP1 (LTE)","2022年4Q：パターン削除（個別IDでは提供しない）"]
[397,"個別ID","利用しない","利用する","LTE","20GB","無","個別ID利用しない利用するLTE20GB無","OCN モバイル ONE for Business 20GB IP1 (LTE)","2022年4Q：パターン削除（個別IDでは提供しない）"]
[398,"個別ID","利用しない","利用する","LTE","20GB","有","個別ID利用しない利用するLTE20GB有","OCN モバイル ONE for Business 20GB IP1 (LTE，SMS)","2022年4Q：パターン削除（個別IDでは提供しない）"]
[399,"個別ID","利用しない","利用する","LTE","30GB",null,"個別ID利用しない利用するLTE30GB","OCN モバイル ONE for Business 30GB IP1 (LTE)","2022年4Q：パターン削除（個別IDでは提供しない）"]
[400,"個別ID","利用しない","利用する","LTE","30GB","無","個別ID利用しない利用するLTE30GB無","OCN モバイル ONE for Business 30GB IP1 (LTE)","2022年4Q：パターン削除（個別IDでは提供しない）"]
[401,"個別ID","利用しない","利用する","LTE","30GB","有","個別ID利用しない利用するLTE30GB有","OCN モバイル ONE for Business 30GB IP1 (LTE，SMS)","2022年4Q：パターン削除（個別IDでは提供しない）"]
[402,"個別ID","利用しない","利用する","LTE","50GB",null,"個別ID利用しない利用するLTE50GB","OCN モバイル ONE for Business 50GB IP1 (LTE)","2022年4Q：パターン削除（個別IDでは提供しない）"]
[403,"個別ID","利用しない","利用する","LTE","50GB","無","個別ID利用しない利用するLTE50GB無","OCN モバイル ONE for Business 50GB IP1 (LTE)","2022年4Q：パターン削除（個別IDでは提供しない）"]
[404,"個別ID","利用しない","利用する","LTE","50GB","有","個別ID利用しない利用するLTE50GB有","OCN モバイル ONE for Business 50GB IP1 (LTE，SMS)","2022年4Q：パターン削除（個別IDでは提供しない）"]

{"sheet":"改版履歴","index":7,"n_rows":77,"n_cols":9,"rows_kept":77,"cut":false,"hidden":true,"merged":[]}
["改版履歴"]
[null,"No.","更新日","更新者","Ver.","シート名","概要","詳細","備考"]
[null,1,"2020-03-18","石田香織","Ver.1.00A","-","初版",null,"Webエントリリリース：2020/3/18"]
[null,2,"2020-04-08","石田香織","Ver.1.01A","端末SIM情報\nlist","新規販売停止機種をプルダウンから削除","「機種」について、以下のプルダウン値を削除\n　\"MP01LN(WiFiルータータイプ)\"\n　\"MP01LN(WiFiルータータイプ)あんしん保証付\"","Webエントリ：2020年1Q改修"]
[null,3,"2020-08-12","石田香織","Ver.1.01B","基本情報2","料金明細サイト閲覧用ID/パスワード通知先コピーリスト、端末送付先コピーリストのプルダウン値制御修正","コピーリストで\"次のとおり\"以外が選択されている住所項目について、プルダウンに表示されないよう制御修正\n（Webエントリの画面と同一の制御とするため）"]
[null,4,"2020-09-07","石田香織","Ver.1.01C","基本情報","サービスメニュー留意事項追記","サービスメニュー項目に選択肢についての説明文を追記"]
[null,5,"2020-09-07","石田香織","Ver.1.02A","基本情報2","OCN IWSaaS利用有無の項目名変更","サービス名称変更に伴い、項目名を以下へ変更\n■変更後項目名：OCN TMWSaaSサービス利用有無","Webエントリ：2020年2Q改修"]
[null,6,"2021-02-02","石田香織","Ver.1.03A","基本情報","申込受付部門　組織名の桁数修正","組織名の入力可能桁数を全角20桁以内→全角16桁以内へ修正\n（SIRIUSの桁数とあわせるため）","Webエントリ：2020年4Q改修"]
[null,7,"2021-03-31","石田香織","Ver.1.03B","基本情報","「ご利用案内に関する情報の注意事項修正","開案送信元アドレスのドメイン名変更に伴い記載を修正\n旧）customer@info.ocn.ne.jp\n新）customer@mail.kaian.ntt.com"]
[null,8,"2021-03-17","石田香織","Ver.1.04A","list","・新規提供開始の機種をプルダウンに追加\n・販売停止機種をプルダウンから削除","◆「機種」に以下のプルダウン値を追加（LTE限定の時表示）\n　\"RX220(M2Mルータータイプ)\"\n◆「機種」から以下のプルダウン値を削除\n　\"RX210(M2Mルータータイプ)\"","Webエントリ：2021年4月維持対応"]
[null,9,"2021-03-17","石田香織","Ver.1.04A","変換","各種変換表に新規提供開始の機種を追加","下記変換表に\"RX220(M2Mルータータイプ)\"を追加\n　・SMS\n　・国際ローミング\n　・SIM種別","Webエントリ：2021年4月維持対応"]
[null,10,"2021-05-21","石田香織","Ver.1.05A","基本情報","項目追加（CPQ番号）","新項目：CPQ番号を追加\n※NPCRMの後継システム用項目\n※利用開始までは項目非表示とする（8月開始予定）","Webエントリ：2021年2Q改修"]
[null,11,"2021-05-21","石田香織","Ver.1.05A","list","定数追加","◆「サービスメニュー」に以下を追加\n　　\"テレワーク・スタートパック(マジックコネクトセット)\"\n　　\"テレワーク・スタートパック(UNO Virtualセット)\"\n◆「コース」に以下を追加\n    ・既存のテレワーク・スタートパック用のコース：10\n　　・テレワーク・スタートパック(UNO Virtualセット)用のコース：14\n　　・テレワーク・スタートパック(マジックコネクトセット)用のコース：14","Webエントリ：2021年2Q改修"]
[null,12,"2021-05-21","石田香織","Ver.1.05A","変換","各種変換表にテレワーク新プラン追加","下記変換表にテレワーク新プランを追加\n　・テレワークコース\n　・料金プランMVNO表示用","Webエントリ：2021年2Q改修"]
[null,13,"2021-05-21","石田香織","Ver.1.05A","端末SIM情報","テレワーク新プラン対応のため入力規則・制御用関数修正","◆下記項目の入力規則を修正\n　・規格（B11~20）\n◆下記、各項目制御用の関数を修正\n　・コース【プルダウン制御用】（CB6）\n　・＜コース参照用＞テレワーク（CD6）\n　・機種【リスト制御用】（CA11～CA20）\n　・「料金プラン(MVMO)」用_基本のプラン名（CM列）\n　・「料金プラン(MVMO)」用_（カッコ）（CP列）\n　・「料金プラン(MVMO)」用_SMS/ビジパク（CR列）","Webエントリ：2021年2Q改修"]
[null,14,"2021-05-21","石田香織","Ver.1.05A","基本情報2","テレワーク新プラン対応のため制御用関数修正","◆下記項目制御用の関数を修正\n　・ビジネスパック利用有無\n　・固定IP利用有無\n　・OCN TMWSaaSサービス利用有無","Webエントリ：2021年2Q改修"]
[null,15,"2022-07-22","石田香織","Ver.1.06A","端末SIM情報","＜5G-NSA対応＞\n項目名変更","下記のとおり、項目名を変更\n　・「規格」 → 「アクセス方式」","Webエントリ：2022年3Q改修"]
[null,16,"2022-07-22","石田香織","Ver.1.06A","list","＜5G-NSA対応＞\n・リスト値追加、変更、削除\n・リスト表示パターンの修正、削除","◆以下のとおり「アクセス方式」のリスト値を追加、変更、削除\n　・\"5G-NSA\"を追加\n　・\"3G/LTE\" → \"LTE\"へ変更\n　・\"LTE限定\"を削除\n\n◆「コース」のリスト値に以下を追加（course2）\n  ・10GB\n　・15GB\n　・20GB\n　・30GB\n　・50GB\n\n◆「機種」の表示パターン：Model2、Model3に以下を追加\n　・RX220\n　・AX220\n\n◆「機種」の表示パターン：Model4（LTE限定用）を削除　\n\n◆「SMS」の表示パターンを追加（terminalOption3：無のみ表示）","Webエントリ：2022年3Q改修"]
[null,17,"2022-07-22","石田香織","Ver.1.06A","変換","＜5G-NSA対応＞\n変換表の記載内容修正、追加","◆「SIM種別」のSIM種別検索用文字列の文言を修正\n　・\"3G/LTE\" → \"LTE\"\n　・\"LTE限定\" → \"LTE\"\n\n◆「SIM種別」のSIM種別検索用文字列に\"5G-NSA\"のパターンを追加","Webエントリ：2022年3Q改修"]
[null,18,"2022-07-22","石田香織","Ver.1.06A","端末SIM情報","＜5G-NSA対応＞\nアクセス方式の入力規則修正","「アクセス方式」用のリスト制御用関数を追加し入力規則を修正\n　（INDIRECT関数で参照する）","Webエントリ：2022年3Q改修"]
[null,19,"2022-07-22","石田香織","Ver.1.06A","端末SIM情報","＜5G-NSA対応＞\n機種のリスト制御用関数を修正","「機種」のリスト制御用関数の条件に、\"5G-NSA\"を追加\n※まなびポケットと同じリスト値を表示","Webエントリ：2022年3Q改修"]
[null,20,"2022-07-22","石田香織","Ver.1.06A","端末SIM情報","＜5G-NSA対応＞\nSMSの入力規則修正","「SMS」用のリスト制御用関数と入力規則を修正\n（VLOOKUPの結果を名前定義で表示し、INDIRECT関数で参照する）","Webエントリ：2022年3Q改修"]
[null,21,"2022-07-22","石田香織","Ver.1.06A","端末SIM情報","＜5G-NSA対応＞\n「品名(OCN)」の表示用関数修正","「品名(OCN)」用　の「アクセス方式」の表示用関数を修正\n・共通IDの時、LTEを表示させないよう関数修正","Webエントリ：2022年3Q改修"]
[null,22,"2022-09-01","石田香織","Ver.1.06A","端末SIM情報","＜5G-NSA対応＞\n「料金プラン(MVMO)」表示用関数修正","「料金プラン(MVMO)」の関数を修正\n・欄外に検索値用の関数を追加し、VLOOKUP関数で検索するよう変更","Webエントリ：2022年3Q改修"]
[null,23,"2022-10-24","石田香織","Ver.1.06A","料金プランMVNO","＜5G-NSA対応＞\nシート追加","「料金プラン(MVMO)」用の変換表シートを追加","Webエントリ：2022年3Q改修"]
[null,24,"2022-10-24","石田香織","Ver.1.06A","変換","＜5G-NSA対応＞\n「料金プラン(MVMO)」用変換表を削除","No.22、23の修正に伴い、変換シートの「料金プラン(MVMO)」用の変換表を削除","Webエントリ：2022年3Q改修"]
[null,25,"2022-10-24","石田香織","Ver.1.06A","基本情報","＜5G-NSA対応＞\nサービスメニューの留意文修正","サービスメニュー選択の留意事項を修正\n　旧）※月次容量コース（1GB/3GB/7GB）、～\n　新）※月次容量コース（1GB～50GB）、～"]
[null,26,"2022-10-24","石田香織","Ver.1.06A","基本情報\n基本情報2\n端末SIM情報","＜申込書統一化対応＞\n項目制御用セルの修正","申込書作成ルール統一対応の為、以下のとおり修正\n・リスト値を設定するセルは欄外の「リスト」列に名前定義を表示し、入力規則でINDIRECT関数を使用し欄外セルを参照する。\n・条件付き書式は欄外の「条件付き書式」列にTRUE/FALSEを表示し、FALSEの場合にグレーアウトするよう一律の条件とする"]
[null,27,"2022-11-22","石田香織","Ver.1.06A","list","提供開始前のアクセス方式・コースの非表示対応","◆「アクセス方式」に以下リスト値が表示されないよう名前定義範囲を修正\n　　・5G-NSA\n◆「コース」に以下リスト値が表示されないよう名前定義範囲を修正（course2）\n 　 ・10GB\n　　・15GB\n　　・20GB\n　　・30GB\n　　・50GB","2022/12/16Webエントリリリース時点では提供開始しないため、リスト非表示とする。\n※2023年2月提供開始予定。"]
[null,28,"2023-03-09","石田香織","Ver.1.07A","list","＜5G-NSA対応＞\n5G-NSA・追加コースの再表示対応","No.27で修正した名前定義範囲を5G-NSA・追加コースが表示されるよう修正","Webエントリ：2022年度4Q改修"]
[null,29,"2023-03-09","石田香織","Ver.1.07A","list","＜5G-NSA対応＞\n・リスト値修正\n・リスト表示パターンの追加","◆「コース」の10GB～50GBの文字列を以下へ修正（course2）\n 　 ・10GBバリュー\n　　・15GBバリュー\n　　・20GBバリュー\n　　・30GBバリュー\n　　・50GBバリュー\n\n◆「コース」に個別ID／総量規制／約款対象外フラグがOff（22）の時の表示パターンを追加（course10）\n　＃個別IDでは10GB～50GBを提供しないため。","Webエントリ：2022年度4Q改修"]
[null,30,"2023-03-09","石田香織","Ver.1.07A","端末SIM情報","＜5G-NSA対応＞\nコース表示用の関数修正","◆「【コース参照用】総量規制」の関数を修正\n　・個別ID／総量規制／約款対象外フラグがOff（22）の時、course10を表示","Webエントリ：2022年度4Q改修"]
[null,31,"2023-03-09","石田香織","Ver.1.07A","料金プランMVNO","＜5G-NSA対応＞\n検索値用コースおよび表示用の値修正","No.29の修正に伴い、「コース」および「【表示用】料金プラン(MVNO)」の値を修正","Webエントリ：2022年度4Q改修"]
[null,32,"2023-05-09","石田香織","Ver.1.08A","基本情報2","＜テレワークスタートパック販売促進対応＞\n項目追加（クラウドプロキシ）","新項目：クラウドプロキシを追加\n　※テレワークスタートパック用オプション項目\n　※基本は提供するオプションのため\"利用しない\"のみ選択とする\n　　（\"利用しない\"選択時に、「クラウドプロキシOFF」という着側オプションをつける）","Webエントリ：2023年度1Q改修"]
[null,33,"2023-05-10","石田香織","Ver.1.08A","list","＜テレワークスタートパック販売促進対応＞\n・定数追加（リースプラン）\n・表示パターン追加（リース用PC）","◆「コース」のリスト値に以下を追加（course11）\n　　・テレワーク1GB_3年リース\n　　・テレワーク3GB_3年リース\n　　・テレワーク7GB_3年リース\n　　・テレワーク10GB_3年リース\n　　・テレワーク20GB_3年リース\n　　・テレワーク30GB_3年リース\n　　・テレワーク50GB_3年リース\n　　※約款対象外フラグがON（11）の時かつテレワーク区分がリースプランの場合のみ選択可能。\n　　※1年コースについて、約款対象外フラグがON（11）の時表示しないよう修正\n\n◆「機種」にリース用コースが選択された場合の表示パターンを追加\n　　・テレワーク●GB_3年リース:端末調達フラグがON（1）の時、course13\n　　・テレワーク●GB_3年リース:端末調達フラグがOff（2）の時、course14","Webエントリ：2023年度1Q改修\n\n※1年コースを約款対象外フラグがON（11）の時非表示とする対応はWebエントリでは未実施。"]
[null,34,"2023-05-10","石田香織","Ver.1.08A","変換","＜テレワークスタートパック販売促進対応＞\n変換表にリースプラン、リース用PCのパターンを追加","◆以下の変換表にリースプラン、リース用PCの変換パターンを追記\n　・テレワークコース\n　・SMS\n　・国際ローミング\n　・SIM種別","Webエントリ：2023年度1Q改修"]
[null,35,"2023-05-10","石田香織","Ver.1.08A","料金プランMVNO","＜テレワークスタートパック販売促進対応＞\nリースプランのパターンを追加","料金プランMVNOの変換表にリースプランのパターンを追加","Webエントリ：2023年度1Q改修"]
[null,36,"2023-09-15","石田香織","Ver.1.08B","list","＜標準プラン新規販売停止対応＞\n・リスト値削除\n・リスト表示パターンの追加","◆「コース」の以下リスト値を削除（course2）\n　・1GB\n　・3GB\n　・7GB\n\n◆「コース」に端末追加／共通ID／総量規制／約款対象外フラグがOff（22）の時の表示パターンを追加（course12）\n　＃端末追加/共通IDでは1,3,7GBを申込可能とするため。","2023年9末改版"]
[null,37,"2023-09-15","石田香織","Ver.1.08B","端末SIM情報","＜標準プラン新規販売停止対応＞\n・コース表示用の関数修正","◆「【コース参照用】総量規制」の関数を修正\n・端末追加／共通ID／総量規制／約款対象外フラグがOff（22）の時course12を表示","2023年9末改版"]
[null,38,"2023-09-15","石田香織","Ver.1.08B","list","＜5G端末追加対応＞\n・リスト値追加","◆「機種」に以下リスト値を追加した5G-NSA用表示パターンを追加（Model6）\n　・MR51FN\n　・MR51FNあんしん保証付\n\n　※提供開始まで、名前定義は「SIMのみ/nanoSIMのみ/microSIMのみ」の範囲とする。","新端末の提供開始は2023年11月下旬予定。\n⇒提供開始時に名前定義の範囲を変更する。"]
[null,39,"2023-09-15","石田香織","Ver.1.08B","端末SIM情報","＜5G端末追加対応＞\n・機種表示用の関数修正\n・SMS表示用の関数修正","◆「機種」表示用の関数を修正\n　・5G-NSAの時、Model6を表示\n\n◆「SMS」表示用の関数を修正\n　・5G対応端末が選択された時非活性とする","新端末の提供開始は2023年11月下旬予定。"]
[null,40,"2023-09-15","石田香織","Ver.1.08B","変換","＜5G端末追加対応＞\n・変換表に5G端末のパターンを追加","◆以下の変換表に5G対応端末の変換パターンを追記\n　・SMS\n　・国際ローミング\n　・SIM種別","新端末の提供開始は2023年11月下旬予定。"]
[null,41,"2023-10-06","石田香織","Ver.1.09A","list","＜テレパックUNOv終了対応＞\n・リスト値削除\n・リスト表示パターンの削除","◆「サービスメニュー」のリスト値から以下を削除\n　・テレワーク・スタートパック(UNO Virtualセット)\n\n◆「コース」の表示パターン：course9（UNOv用）を削除","Webエントリ：2023年度2Q改修\n※リリース日は変則で2023/10/25"]
[null,42,"2023-10-06","石田香織","Ver.1.09A","list","＜バリューコース追加対応＞\n・リスト値追加\n・リスト表示パターンの修正","◆「コース」のリスト値に以下を追加（course2、course12）\n　・1GBバリュー\n　・3GBバリュー\n　・7GBバリュー","Webエントリ：2023年度2Q改修\n※リリース日は変則で2023/10/25"]
[null,43,"2023-10-06","石田香織","Ver.1.09A","料金プランMVNO","＜バリューコース追加対応＞\nパターンを追加","・料金プランMVNOの変換表にリュープラン1,3,7GBパターンを追加\n・5G-NSAでSMSが空欄のパターンを追加","Webエントリ：2023年度2Q改修\n※リリース日は変則で2023/10/25"]
[null,44,"2023-10-06","石田香織","Ver.1.09A","基本情報2","＜クラウドプロキシ個別設定対応＞\n項目追加","新項目：クラウドプロキシ個別設定利用有無を追加\n　※テレワークスタートパック用オプション項目\n　※「クラウドプロキシ」が\"利用しない\"の場合選択不可（非活性）","Webエントリ：2023年度2Q改修\n※リリース日は変則で2023/10/25"]
[null,45,"2023-10-06","石田香織","Ver.1.09A","クラウドプロキシ個別設定情報","＜クラウドプロキシ個別設定対応＞\nシート追加","新シート：クラウドプロキシ個別設定情報を追加\n　※「クラウドプロキシ個別設定利用有無」が\"利用する\"のとき入力可","Webエントリ：2023年度2Q改修\n※リリース日は変則で2023/10/25"]
[null,46,"2023-10-06","石田香織","Ver.1.09A","list","＜クラウドプロキシ個別設定対応＞\n定数追加","クラウドプロキシ個別設定情報の「制御」項目用の定数を追加","Webエントリ：2023年度2Q改修\n※リリース日は変則で2023/10/25"]
[null,47,"2023-10-23","石田香織","Ver.1.09A","クラウドプロキシ個別設定情報","シート非表示","クラウドプロキシ個別設定の提供開始日が延期となったため、シート非表示とする\n※提供開始にあわせて再表示予定"]
[null,48,"2023-10-23","石田香織","Ver.1.09A","基本情報2","「クラウドプロキシ個別設定利用有無」項目の固定値設定","・クラウドプロキシ個別設定の提供開始日が延期に伴い、テレワークスタートパックの場合には一律”利用しない”となるよう関数設定\n・項目を非表示とする\n※提供開始にあわせて関数削除→入力規則設定し再表示予定"]
[null,49,"2023-10-06","石田香織","Ver.1.10A","list","＜5G端末提供開始対応＞\nリスト表示範囲の変更","◆「機種」の5G-NSA用表示パターン（Model6）で以下リスト値が表示されるよう名前定義範囲を変更。\n　・MR51FN\n　・MR51FNあんしん保証付","5G端末提供開始：2023/11/20"]
[null,50,"2023-12-18","石田香織","Ver.1.11A","クラウドプロキシ個別設定情報","シート再表示","クラウドプロキシ個別設定の提供開始日が2023/12/19で確定したためシート再表示","クラウドプロキシ個別設定の提供開始対応"]
[null,51,"2023-12-18","石田香織","Ver.1.11A","基本情報2","「クラウドプロキシ個別設定利用有無」項目の固定値設定削除","・クラウドプロキシ個別設定の提供開始に伴い、テレワークスタートパックの場合の固定値表示を削除","クラウドプロキシ個別設定の提供開始対応"]
[null,52]
[null,53]
[null,54]
[null,55]
[null,56]
[null,57]
[null,58]
[null,59]
[null,60]
[null,61]
[null,62]
[null,63]
[null,64]
[null,65]
[null,66]
[null,67]
[null,68]
[null,69]
[null,70]
[null,71]
[null,72]
[null,73]
[null,74]
[null,75]